Workbook

Sheet INDEX
A1: INDEX | B1: Required updates (if not specifically stated, no input required)
A2: Model Specs
A3: 1. Information Sheet | B3: update
A4: 2. Current Tariff Schedule
A5: 3. Continuity Schedule
A6: 4. Billing Det. for Def-Var | B6: column T - Account 1568 balances by rate class
A7: 5. Allocating Def-Var Balances
A8: 6. GA Calculation | B8: columns E & G - 2016 Class A data; NEW - Column H
A9: 6A. GA Allocation_Class A | B9: Table "Allocation of GA Balances to Former Class B Customers" - Class A data
A10: 6B. GA Allocation_new Class B | B10: NEW - Input only required in Table "Allocation of GA Balances to Former Class A Customers"
A11: 7. CBR Calculation
A12: 7A. CBR Allocation_Class A
A13: 7B. CBR Allocation_new Class B
A14: 8. Calculation of Def-Var RR | B14: update recovery period, if different from the default "12"
A15: 9. STS-Tax Change
A16: 10. Shared Tax - RR
A17: 11. RTSR - Current Rates
A18: 12. RTSR-UTRs & Sub-Tx | B18: Update wholesale rates, if required
A19: 13. RTSR-Historic Wholesale
A20: 14. RTSR-Current Wholesale
A21: 15. RTSR-Forecast Wholesale
A22: 16. RTSR-Rates to Forecast
A23: 17. Rev2Cost-GDPIPI
A24: 18. Regulatory Charges
A25: 19. Additional Rates
A26: 20. Final Tariff Schedule | B26: map rates from RATES tab
A27: RATES
A28: 21. Bill Impacts
A29: BoD Reporting
A30: 10th percentile | B30: not active

Sheet Model Specs
A1: Back to Index | K1: Lists:
B2: Model Specifications
K3: Yes
B4: Utility | C4: Alectra - Hydro One Brampton | K4: No
B6: Applying for Rates Effective | C6: 2019-01-01 | K6: kWh
K7: kW
K8: kVA
B9: Line Loss Factor | C9: 1.0341
K10: Alectra - PowerStream
K11: Alectra - Enersource
K12: Alectra - Horizon Utilites
K13: Alectra - Hydro One Brampton
C14: Rate Classes (select from the List)
B15: =IFERROR(VLOOKUP(C15,$K$16:$L$29,2,FALSE),"") -> RES | C15: RESIDENTIAL SERVICE CLASSIFICATION
B16: =IFERROR(VLOOKUP(C16,$K$16:$L$29,2,FALSE),"") -> GSL | C16: GENERAL SERVICE LESS THAN 50 kW SERVICE CLASSIFICATION | K16: RESIDENTIAL SERVICE CLASSIFICATION | L16: RES
B17: GS50_699 | C17: GENERAL SERVICE 50 TO 699 KW SERVICE CLASSIFICATION | K17: GENERAL SERVICE LESS THAN 50 kW SERVICE CLASSIFICATION | L17: GSL
B18: GS700 | C18: GENERAL SERVICE 700 to 4,999 KW SERVICE CLASSIFICATION | K18: GENERAL SERVICE 50 to 499 kW SERVICE CLASSIFICATION | L18: GS50_499
B19: LU | C19: LARGE USE SERVICE CLASSIFICATION | K19: GENERAL SERVICE 50 to 699 KW SERVICE CLASSIFICATION | L19: GS50_699
B20: SB | C20: STANDBY POWER SERVICE CLASSIFICATION | K20: GENERAL SERVICE 500 to 4,999 kW SERVICE CLASSIFICATION | L20: GS500
B21: USL | C21: UNMETERED SCATTERED LOAD SERVICE CLASSIFICATION | K21: GENERAL SERVICE 700 to 4,999 KW SERVICE CLASSIFICATION | L21: GS700
B22: SL | C22: STREET LIGHTING SERVICE CLASSIFICATION | K22: LARGE USE SERVICE CLASSIFICATION | L22: LU
B23: EMB | C23: EMBEDDED DISTRIBUTOR SERVICE CLASSIFICATION | K23: UNMETERED SCATTERED LOAD SERVICE CLASSIFICATION | L23: USL
B24: DG | C24: DISTRIBUTED GENERATION [DGEN] SERVICE CLASSIFICATION | K24: STREET LIGHTING SERVICE CLASSIFICATION | L24: SL
B25: WST | C25: ENERGY FROM WASTE SERVICE CLASSIFICATION | K25: STANDBY POWER SERVICE CLASSIFICATION | L25: SB
K26: SENTINEL LIGHTING SERVICE CLASSIFICATION | L26: SEN
K27: EMBEDDED DISTRIBUTOR SERVICE CLASSIFICATION | L27: EMB
K28: DISTRIBUTED GENERATION [DGEN] SERVICE CLASSIFICATION | L28: DG
K29: ENERGY FROM WASTE SERVICE CLASSIFICATION | L29: WST
B34: Have one or more Class A customers | C34: Yes

Sheet 1. Information Sheet
A1: Back to Index | V1: a
B2: INCENTIVE REGULATION MODEL FOR 2019 FILERS
N12: Version | O12: 1
F14: Utility Name | G14: Alectra - Hydro One Brampton
F16: Service Territory
F18: Assigned EB Number | G18: EB-2018-0016
F20: Name of Contact and Title | G20: Indy J. Butany-DeSouza, Vice-President, Regulatory Affairs
F22: Phone Number | G22: 905-821-5727
F24: Email Address | G24: indy.butany@alectrautilities.com
F26: We are applying for rates effective | G26: 2019-01-01
F28: Rate-Setting Method | G28: Price Cap IR
B30: Please indicate in which Rate Year the Group 1 accounts were last cleared1 | G30: 2018
B32: Please indicate the last Cost of Service Re-Basing Year | G32: 2015
C35: Notes
D37: Pale gray cells represent input cells.
D39: Pale blue cells represent drop-down lists.
D41: White cells contain fixed values, automatically generated values or formulae.
B44: Note: 1. Rate year of application

Sheet 2. Current Tariff Schedule
A1: Back to Index
B2: =+'1. Information Sheet'!B2 -> INCENTIVE REGULATION MODEL FOR 2019 FILERS
B10: Alectra Utilities Corporation
B11: Brampton Rate Zone
B12: TARIFF OF RATES AND CHARGES
B13: Effective Date January 1, 2018
B14: Implementation Date May 1, 2018
B16: This schedule supersedes and replaces all previously
B17: approved schedules of Rates, Charges and Loss Factors
B18: EB-2017-0024
B19: RESIDENTIAL SERVICE CLASSIFICATION
B20: This classification applies to an account where the electricity is supplied exclusively to single-family dwelling units for domestic or household purposes, including seasonal occupancy. This includes, but is not limited to, detached houses, one unit of a semi-detached, duplex, triplex or quadruplex house, with a residential zoning. Separately metered dwellings within a town house complex also qualify as residential customers. Class B consumers are defined in accordance with O. Reg. 429/04. Further servicing details are available in the distributor’s Conditions of Service.
B22: APPLICATION
B24: The application of these rates and charges shall be in accordance with the Licence of the Distributor and any Code or Order of the Ontario Energy Board, and amendments thereto as approved by the Ontario Energy Board, which may be applicable to the administration of this schedule.
B26: No rates and charges for the distribution of electricity and charges to meet the costs of any work or service done or furnished for the purpose of the distribution of electricity shall be made except as permitted by this schedule, unless required by the Distributor’s Licence or a Code or Order of the Ontario Energy Ontario Energy Board, and amendments thereto as approved by the Ontario Energy Board, or as specified herein.
B28: Unless specifically noted, this schedule does not contain any charges for the electricity commodity, be it under the Regulated Price Plan, a contract with a retailer or the wholesale market price, as applicable. In addition, the charges in the MONTHLY RATES AND CHARGES - Regulatory Component of this schedule do not apply to a customer that is an embedded wholesale market participant.
B30: It should be noted that this schedule does not list any charges, assessments, or credits that are required by law to be invoiced by a distributor and that are not subject to Ontario Energy Board approval, such as the Debt Retirement Charge, the Global Adjustment and the HST.
B32: MONTHLY RATES AND CHARGES - Delivery Component
A34: R_F | B34: Service Charge | C34: $ | D34: =VLOOKUP(A34,RATES!$A:$Y,8,FALSE) -> 20.92
A35: R_SME | B35: Rate Rider for Smart Metering Entity Charge effective until December 31, 2022 | C35: $ | D35: =VLOOKUP(A35,RATES!$A:$Y,8,FALSE) -> 0.57
A36: R_ICM_F | B36: Rate Rider for Incremental Capital Module (ICM) - in effect from May 1, 2018 until the effective date of the next cost of service based rate order | C36: $ | D36: =VLOOKUP(A36,RATES!$A:$Y,8,FALSE) -> 0.23
A37: R_FRR18 | B37: Rate Rider for Recovery of 2018 Foregone Revenue - effective until December 31, 2018 | C37: $ | D37: =VLOOKUP(A37,RATES!$A:$Y,8,FALSE) -> 0.27
A38: R_V | B38: Distribution Volumetric Rate | C38: $/kWh | D38: =VLOOKUP(A38,RATES!$A:$Y,8,FALSE) -> 0.004
A39: R_GA18 | B39: Rate Rider for Disposition of Global Adjustment Account (2018) - effective until April 30, 2019 Applicable only for Non-RPP Customers | C39: $/kWh | D39: =VLOOKUP(A39,RATES!$A:$Y,8,FALSE) -> -0.0009
A40: R_DVA18 | B40: Rate Rider for Disposition of Deferral/Variance Accounts (2018) - effective until April 30, 2019 | C40: $/kWh | D40: =VLOOKUP(A40,RATES!$A:$Y,8,FALSE) -> -0.001
A41: R_TN | B41: Retail Transmission Rate – Network Service Rate | C41: $/kWh | D41: =VLOOKUP(A41,RATES!$A:$Y,8,FALSE) -> 0.0074
A42: R_TC | B42: Retail Transmission Rate – Line and Transformation Connection Service Rate | C42: $/kWh | D42: =VLOOKUP(A42,RATES!$A:$Y,8,FALSE) -> 0.0065
B44: MONTHLY RATES AND CHARGES - Regulatory Component
B46: Wholesale Market Service Rate (WMS) - not including CBR | C46: $/kWh | D46: 0.0032
B47: Capacity Based Recovery (CBR) - Applicable for Class B Customers | C47: $/kWh | D47: 0.0004
B48: Rural or Remote Electricity Rate Protection Charge (RRRP) | C48: $/kWh | D48: 0.0003
B49: Standard Supply Service - Administrative Charge (if applicable) | C49: $ | D49: 0.25
B50: GENERAL SERVICE LESS THAN 50 KW SERVICE CLASSIFICATION
B51: This classification applies to a non residential account whose average monthly maximum demand is less than, or is forecast to be less than, 50 kW. Multi-unit residential establishments such as apartment buildings supplied through one service (bulk metered) shall normally be classified as general service. Where service is provided to combined residential and business, or residential and agricultural, whether seasonal or all-year premises, and the wiring does not provide for separate metering, the service shall normally be classed as general service. Class B consumers are defined in accordance with O. Reg. 429/04. Further servicing details are available in the distributor’s Conditions of Service.
B53: APPLICATION
B55: The application of these rates and charges shall be in accordance with the Licence of the Distributor and any Code or Order of the Ontario Energy Board, and amendments thereto as approved by the Ontario Energy Board, which may be applicable to the administration of this schedule.
B57: No rates and charges for the distribution of electricity and charges to meet the costs of any work or service done or furnished for the purpose of the distribution of electricity shall be made except as permitted by this schedule, unless required by the Distributor’s Licence or a Code or Order of the Ontario Energy Board, and amendments thereto as approved by the Ontario Energy Board, or as specified herein.
B59: Unless specifically noted, this schedule does not contain any charges for the electricity commodity, be it under the Regulated Price Plan, a contract with a retailer or the wholesale market price, as applicable. In addition, the charges in the MONTHLY RATES AND CHARGES - Regulatory Component of this schedule do not apply to a customer that is an embedded wholesale market participant.
B61: It should be noted that this schedule does not list any charges, assessments, or credits that are required by law to be invoiced by a distributor and that are not subject to Ontario Energy Board approval, such as the Debt Retirement Charge, the Global Adjustment and the HST.
B63: MONTHLY RATES AND CHARGES - Delivery Component
A65: GSL_F | B65: Service Charge | C65: $ | D65: =VLOOKUP(A65,RATES!$A:$Y,8,FALSE) -> 25.35
A66: GSL_SME | B66: Rate Rider for Smart Metering Entity Charge effective until December 31, 2022 | C66: $ | D66: =VLOOKUP(A66,RATES!$A:$Y,8,FALSE) -> 0.57
A67: GSL_ICMF | B67: Rate Rider for Incremental Capital Module (ICM) - in effect from May 1, 2018 until the effective date of the next cost of service based rate order | C67: $ | D67: =VLOOKUP(A67,RATES!$A:$Y,8,FALSE) -> 0.24
A68: GSL_FRR18 | B68: Rate Rider for Recovery of 2018 Foregone Revenue - effective until December 31, 2018 | C68: $ | D68: =VLOOKUP(A68,RATES!$A:$Y,8,FALSE) -> 0.4
A69: GSL_V | B69: Distribution Volumetric Rate | C69: $/kWh | D69: =VLOOKUP(A69,RATES!$A:$Y,8,FALSE) -> 0.0169
A70: GSL_GA18 | B70: Rate Rider for Disposition of Global Adjustment Account (2018) - effective until April 30, 2019 Applicable only for Non-RPP Customers | C70: $/kWh | D70: =VLOOKUP(A70,RATES!$A:$Y,8,FALSE) -> -0.0009
A71: GSL_DVA18 | B71: Rate Rider for Disposition of Deferral/Variance Accounts (2018) - effective until April 30, 2019 | C71: $/kWh | D71: =VLOOKUP(A71,RATES!$A:$Y,8,FALSE) -> -0.001
A72: GSL_ICMV | B72: Rate Rider for Incremental Capital Module (ICM) - in effect from May 1, 2018 until the effective date of the next cost of service based rate order | C72: $/kWh | D72: =VLOOKUP(A72,RATES!$A:$Y,8,FALSE) -> 0.0002
A73: GSL_TN | B73: Retail Transmission Rate - Network Service Rate | C73: $/kWh | D73: =VLOOKUP(A73,RATES!$A:$Y,8,FALSE) -> 0.0066
A74: GSL_TC | B74: Retail Transmission Rate - Line and Transformation Connection Service Rate | C74: $/kWh | D74: =VLOOKUP(A74,RATES!$A:$Y,8,FALSE) -> 0.0055
B76: MONTHLY RATES AND CHARGES - Regulatory Component
B78: Wholesale Market Service Rate (WMS) - not including CBR | C78: $/kWh | D78: 0.0032
B79: Capacity Based Recovery (CBR) - Applicable for Class B Customers | C79: $/kWh | D79: 0.0004
B80: Rural or Remote Electricity Rate Protection Charge (RRRP) | C80: $/kWh | D80: 0.0003
B81: Standard Supply Service - Administrative Charge (if applicable) | C81: $ | D81: 0.25
B82: GENERAL SERVICE 50 TO 699 KW SERVICE CLASSIFICATION
B83: This classification applies to a non residential account whose average monthly maximum demand used for billing purposes is equal to or greater than, or is forecast to be equal to or greater than, 50 kW but less than 700 kW. Class B consumers are defined in accordance with O. Reg. 429/04. Further servicing details are available in the distributor’s Conditions of Service.
B85: APPLICATION
B87: The application of these rates and charges shall be in accordance with the Licence of the Distributor and any Code or Order of the Ontario Energy Board, and amendments thereto as approved by the Ontario Energy Board, which may be applicable to the administration of this schedule.
B89: No rates and charges for the distribution of electricity and charges to meet the costs of any work or service done or furnished for the purpose of the distribution of electricity shall be made except as permitted by this schedule, unless required by the Distributor’s Licence or a Code or Order of the Ontario Energy Board, and amendments thereto as approved by the Ontario Energy Board, or as specified herein.
B91: Unless specifically noted, this schedule does not contain any charges for the electricity commodity, be it under the Regulated Price Plan, a contract with a retailer or the wholesale market price, as applicable. In addition, the charges in the MONTHLY RATES AND CHARGES - Regulatory Component of this schedule do not apply to a customer that is an embedded wholesale market participant.
B93: It should be noted that this schedule does not list any charges, assessments, or credits that are required by law to be invoiced by a distributor and that are not subject to Ontario Energy Board approval, such as the Debt Retirement Charge, the Global Adjustment and the HST.
B95: MONTHLY RATES AND CHARGES - Delivery Component
A96: GS50_699_F | B96: Service Charge | C96: $ | D96: =VLOOKUP(A96,RATES!$A:$Y,8,FALSE) -> 126.46
A97: GS50_699_ICMF | B97: Rate Rider for Incremental Capital Module (ICM) - in effect from May 1, 2018 until the effective date of the next cost of service based rate order | C97: $ | D97: =VLOOKUP(A97,RATES!$A:$Y,8,FALSE) -> 1.21
A98: GS50_699_FRR18 | B98: Rate Rider for Recovery of 2018 Foregone Revenue - effective until December 31, 2018 | C98: $ | D98: =VLOOKUP(A98,RATES!$A:$Y,8,FALSE) -> 2.62
A99: GS50_699_V | B99: Distribution Volumetric Rate | C99: $/kW | D99: =VLOOKUP(A99,RATES!$A:$Y,8,FALSE) -> 2.8642
A100: GS50_699_GA18 | B100: Rate Rider for Disposition of Global Adjustment Account (2018) - effective until April 30, 2019 Applicable only for Non-RPP Customers | C100: $/kWh | D100: =VLOOKUP(A100,RATES!$A:$Y,8,FALSE) -> -0.0009
A101: GS50_699_DVA18 | B101: Rate Rider for Disposition of Deferral/Variance Accounts (2018) - effective until April 30, 2019 | C101: $/kW | D101: =VLOOKUP(A101,RATES!$A:$Y,8,FALSE) -> 0.0055
A102: GS50_699_DVA18_nonWMP | B102: Rate Rider for Disposition of Deferral/Variance Accounts (2018) - effective until April 30, 2019 Applicable only for Non-Wholesale Market Participants | C102: $/kW | D102: =VLOOKUP(A102,RATES!$A:$Y,8,FALSE) -> -0.3626
A103: GS50_699_ICMV | B103: Rate Rider for Incremental Capital Module (ICM) - in effect from May 1, 2018 until the effective date of the next cost of service based rate order | C103: $/kW | D103: =VLOOKUP(A103,RATES!$A:$Y,8,FALSE) -> 0.0273
A104: GS50_699_TN | B104: Retail Transmission Rate - Network Service Rate | C104: $/kW | D104: =VLOOKUP(A104,RATES!$A:$Y,8,FALSE) -> 2.563
A105: GS50_699_TC | B105: Retail Transmission Rate - Line and Transformation Connection Service Rate | C105: $/kW | D105: =VLOOKUP(A105,RATES!$A:$Y,8,FALSE) -> 2.1878
B108: MONTHLY RATES AND CHARGES - Regulatory Component
B110: Wholesale Market Service Rate (WMS) - not including CBR | C110: $/kWh | D110: 0.0032
B111: Capacity Based Recovery (CBR) - Applicable for Class B Customers | C111: $/kWh | D111: 0.0004
B112: Rural or Remote Electricity Rate Protection Charge (RRRP) | C112: $/kWh | D112: 0.0003
B113: Standard Supply Service - Administrative Charge (if applicable) | C113: $ | D113: 0.25
B114: GENERAL SERVICE 700 TO 4,999 KW SERVICE CLASSIFICATION
B115: This classification applies to a non residential account whose average monthly maximum demand used for billing purposes is equal to or greater than, or is forecast to be equal to or greater than, 700 kW but less than 5,000 kW. Further servicing details are available in the distributor’s Conditions of Service.
B117: APPLICATION
B119: The application of these rates and charges shall be in accordance with the Licence of the Distributor and any Code or Order of the Ontario Energy Board, and amendments thereto as approved by the Ontario Energy Board, which may be applicable to the administration of this schedule.
B121: No rates and charges for the distribution of electricity and charges to meet the costs of any work or service done or furnished for the purpose of the distribution of electricity shall be made except as permitted by this schedule, unless required by the Distributor’s Licence or a Code or Order of the Ontario Energy Board, and amendments thereto as approved by the Ontario Energy Board, or as specified herein.
B123: Unless specifically noted, this schedule does not contain any charges for the electricity commodity, be it under the Regulated Price Plan, a contract with a retailer or the wholesale market price, as applicable. In addition, the charges in the MONTHLY RATES AND CHARGES - Regulatory Component of this schedule do not apply to a customer that is an embedded wholesale market participant.
B125: The rate rider for the disposition of WMS – Sub-account CBR Class B is not applicable to wholesale market participants (WMP), customers that transitioned between Class A and Class B during the variance account accumulation period, or to customers that were in Class A for the entire period. Customers who transitioned are to be charged or refunded their share of the variance disposed through customer specific billing adjustments. This rate rider is to be consistently applied for the entire period to the sunset date of the rate rider. In addition, this rate rider is applicable to all new Class B customers.
B127: The rate rider for the disposition of Global Adjustment is only applicable to non-RPP Class B customers. It is not applicable to WMP customers that transitioned between Class A and Class B during the variance account accumulation period, or to customers that were in Class A for the entire period. Customers who transitioned are to be charged or refunded their share of the variance disposed through customer specific billing adjustments. This rate order is applicable to all new non-RPP Class B customers.
B129: It should be noted that this schedule does not list any charges, assessments, or credits that are required by law to be invoiced by a distributor and that are not subject to Ontario Energy Board approval, such as the Debt Retirement Charge, the Global Adjustment and the HST.
B131: MONTHLY RATES AND CHARGES - Delivery Component
A133: GS700_F | B133: Service Charge | C133: $ | D133: =VLOOKUP(A133,RATES!$A:$Y,8,FALSE) -> 1141.02
A134: GS700_ICMF | B134: Rate Rider for Incremental Capital Module (ICM) - in effect from May 1, 2018 until the effective date of the next cost of service based rate order | C134: $ | D134: =VLOOKUP(A134,RATES!$A:$Y,8,FALSE) -> 10.89
A135: GS700_FRR18 | B135: Rate Rider for Recovery of 2018 Foregone Revenue - effective until December 31, 2018 | C135: $ | D135: =VLOOKUP(A135,RATES!$A:$Y,8,FALSE) -> 28.18
A136: GS700_V | B136: Distribution Volumetric Rate | C136: $/kW | D136: =VLOOKUP(A136,RATES!$A:$Y,8,FALSE) -> 3.325
A137: GS700_GA18 | B137: Rate Rider for Disposition of Global Adjustment Account (2018) - effective until April 30, 2019 Applicable only for Non-RPP Customers | C137: $/kWh | D137: =VLOOKUP(A137,RATES!$A:$Y,8,FALSE) -> -0.0009
A138: GS700_DVA18 | B138: Rate Rider for Disposition of Deferral/Variance Accounts (2018) - effective until April 30, 2019 | C138: $/kW | D138: =VLOOKUP(A138,RATES!$A:$Y,8,FALSE) -> 0.0067
A139: GS700_DVA18_nonWMP | B139: Rate Rider for Disposition of Deferral/Variance Accounts (2018) - effective until April 30, 2019 Applicable only for Non-Wholesale Market Participants | C139: $/kW | D139: =VLOOKUP(A139,RATES!$A:$Y,8,FALSE) -> -0.4225
A140: GS700_ICMV | B140: Rate Rider for Incremental Capital Module (ICM) - in effect from May 1, 2018 until the effective date of the next cost of service based rate order | C140: $/kW | D140: =VLOOKUP(A140,RATES!$A:$Y,8,FALSE) -> 0.0317
A141: GS700_TN | B141: Retail Transmission Rate - Network Service Rate | C141: $/kW | D141: =VLOOKUP(A141,RATES!$A:$Y,8,FALSE) -> 2.8743
A142: GS700_TC | B142: Retail Transmission Rate - Line and Transformation Connection Service Rate | C142: $/kW | D142: =VLOOKUP(A142,RATES!$A:$Y,8,FALSE) -> 2.3517
B144: MONTHLY RATES AND CHARGES - Regulatory Component
B146: Wholesale Market Service Rate (WMS) - not including CBR | C146: $/kWh | D146: 0.0032
B147: Capacity Based Recovery (CBR) - Applicable for Class B Customers | C147: $/kWh | D147: 0.0004
B148: Rural or Remote Electricity Rate Protection Charge (RRRP) | C148: $/kWh | D148: 0.0003
B149: Standard Supply Service - Administrative Charge (if applicable) | C149: $ | D149: 0.25
B150: LARGE USE SERVICE CLASSIFICATION
B151: This classification applies to an account whose average monthly maximum demand over 12 consecutive months used for billing purposes is equal to or greater than 5,000 kW, or is forecast to be equal to or greater than 5,000 kW. Class A and Class B consumers are defined in accordance with O. Reg. 429/04. Further servicing details are available in the distributor’s Conditions of Service.
B153: APPLICATION
B155: The application of these rates and charges shall be in accordance with the Licence of the Distributor and any Code or Order of the Ontario Energy Board, and amendments thereto as approved by the Ontario Energy Board, which may be applicable to the administration of this schedule.
B157: No rates and charges for the distribution of electricity and charges to meet the costs of any work or service done or furnished for the purpose of the distribution of electricity shall be made except as permitted by this schedule, unless required by the Distributor’s Licence or a Code or Order of the Ontario Energy Board, and amendments thereto as approved by the Ontario Energy Board, or as specified herein.
B159: Unless specifically noted, this schedule does not contain any charges for the electricity commodity, be it under the Regulated Price Plan, a contract with a retailer or the wholesale market price, as applicable. In addition, the charges in the MONTHLY RATES AND CHARGES - Regulatory Component of this schedule do not apply to a customer that is an embedded wholesale market participant.
B161: The rate rider for the disposition of WMS – Sub-account CBR Class B is not applicable to wholesale market participants (WMP), customers that transitioned between Class A and Class B during the variance account accumulation period, or to customers that were in Class A for the entire period. Customers who transitioned are to be charged or refunded their share of the variance disposed through customer specific billing adjustments. This rate rider is to be consistently applied for the entire period to the sunset date of the rate rider. In addition, this rate rider is applicable to all new Class B customers.
B163: The rate rider for the disposition of Global Adjustment is only applicable to non-RPP Class B customers. It is not applicable to WMP customers that transitioned between Class A and Class B during the variance account accumulation period, or to customers that were in Class A for the entire period. Customers who transitioned are to be charged or refunded their share of the variance disposed through customer specific billing adjustments. This rate order is applicable to all new non-RPP Class B customers.
B165: It should be noted that this schedule does not list any charges, assessments, or credits that are required by law to be invoiced by a distributor and that are not subject to Ontario Energy Board approval, such as the Debt Retirement Charge, the Global Adjustment and the HST.
B167: MONTHLY RATES AND CHARGES - Delivery Component
A169: LU_F | B169: Service Charge | C169: $ | D169: =VLOOKUP(A169,RATES!$A:$Y,8,FALSE) -> 4748.01
A170: LU_ICMF | B170: Rate Rider for Incremental Capital Module (ICM) - in effect from May 1, 2018 until the effective date of the next cost of service based rate order | C170: $ | D170: =VLOOKUP(A170,RATES!$A:$Y,8,FALSE) -> 45.33
A171: LU_FRR18 | B171: Rate Rider for Recovery of 2018 Foregone Revenue - effective until December 31, 2018 | C171: $ | D171: =VLOOKUP(A171,RATES!$A:$Y,8,FALSE) -> 119.38
A172: LU_V | B172: Distribution Volumetric Rate | C172: $/kW | D172: =VLOOKUP(A172,RATES!$A:$Y,8,FALSE) -> 2.5174
A173: LU_GA18 | B173: Rate Rider for Disposition of Global Adjustment Account (2018) - effective until April 30, 2019 Applicable only for Non-RPP Customers | C173: $/kWh | D173: =VLOOKUP(A173,RATES!$A:$Y,8,FALSE) -> -0.0009
A174: LU_DVA18 | B174: Rate Rider for Disposition of Deferral/Variance Accounts (2018) - effective until April 30, 2019 | C174: $/kW | D174: =VLOOKUP(A174,RATES!$A:$Y,8,FALSE) -> -0.552
A175: LU_ICMV | B175: Rate Rider for Incremental Capital Module (ICM) - in effect from May 1, 2018 until the effective date of the next cost of service based rate order | C175: $/kW | D175: =VLOOKUP(A175,RATES!$A:$Y,8,FALSE) -> 0.024
A176: LU_TN | B176: Retail Transmission Rate - Network Service Rate | C176: $/kW | D176: =VLOOKUP(A176,RATES!$A:$Y,8,FALSE) -> 3.2532
A177: LU_TC | B177: Retail Transmission Rate - Line and Transformation Connection Service Rate | C177: $/kW | D177: =VLOOKUP(A177,RATES!$A:$Y,8,FALSE) -> 2.7181
B179: MONTHLY RATES AND CHARGES - Regulatory Component
B181: Wholesale Market Service Rate (WMS) - not including CBR | C181: $/kWh | D181: 0.0032
B182: Capacity Based Recovery (CBR) - Applicable for Class B Customers | C182: $/kWh | D182: 0.0004
B183: Rural or Remote Electricity Rate Protection Charge (RRRP) | C183: $/kWh | D183: 0.0003
B184: Standard Supply Service - Administrative Charge (if applicable) | C184: $ | D184: 0.25
B185: UNMETERED SCATTERED LOAD SERVICE CLASSIFICATION
B186: This classification applies to an account whose average monthly maximum demand is less than, or is forecast to be less than, 50 kW and the consumption is unmetered. Such connections include cable TV power packs, bus shelters, telephone booths, traffic lights, railway crossings, etc. The level of the consumption will be agreed to by the distributor and the customer, based on detailed manufacturer information/documentation with regard to electrical consumption of the unmetered load or periodic monitoring of actual consumption. Class B consumers are defined in accordance with O. Reg. 429/04. Further servicing details are available in the distributor’s Conditions of Service.
B188: APPLICATION
B190: The application of these rates and charges shall be in accordance with the Licence of the Distributor and any Code or Order of the Ontario Energy Board, and amendments thereto as approved by the Ontario Energy Board, which may be applicable to the administration of this schedule.
B192: No rates and charges for the distribution of electricity and charges to meet the costs of any work or service done or furnished for the purpose of the distribution of electricity shall be made except as permitted by this schedule, unless required by the Distributor’s Licence or a Code or Order of the Ontario Energy Board, and amendments thereto as approved by the Ontario Energy Board, or as specified herein.
B194: Unless specifically noted, this schedule does not contain any charges for the electricity commodity, be it under the Regulated Price Plan, a contract with a retailer or the wholesale market price, as applicable. In addition, the charges in the MONTHLY RATES AND CHARGES - Regulatory Component of this schedule do not apply to a customer that is an embedded wholesale market participant.
B196: It should be noted that this schedule does not list any charges, assessments, or credits that are required by law to be invoiced by a distributor and that are not subject to Ontario Energy Board approval, such as the Debt Retirement Charge, the Global Adjustment and the HST.
B198: MONTHLY RATES AND CHARGES - Delivery Component
A200: USL_F | B200: Service Charge | C200: $ | D200: =VLOOKUP(A200,RATES!$A:$Y,8,FALSE) -> 1.1
A201: USL_ICMF | B201: Rate Rider for Incremental Capital Module (ICM) - in effect from May 1, 2018 until the effective date of the next cost of service based rate order | C201: $ | D201: =VLOOKUP(A201,RATES!$A:$Y,8,FALSE) -> 0.01
A202: USL_FRR18 | B202: Rate Rider for Recovery of 2018 Foregone Revenue - effective until December 31, 2018 | C202: $ | D202: =VLOOKUP(A202,RATES!$A:$Y,8,FALSE) -> 0.04
A203: USL_V | B203: Distribution Volumetric Rate | C203: $/kWh | D203: =VLOOKUP(A203,RATES!$A:$Y,8,FALSE) -> 0.02
A204: USL_GA18 | B204: Rate Rider for Disposition of Global Adjustment Account (2018) - effective until April 30, 2019 Applicable only for Non-RPP Customers | C204: $/kWh | D204: =VLOOKUP(A204,RATES!$A:$Y,8,FALSE) -> -0.0009
A205: USL_DVA18 | B205: Rate Rider for Disposition of Deferral/Variance Accounts (2018) - effective until April 30, 2019 | C205: $/kWh | D205: =VLOOKUP(A205,RATES!$A:$Y,8,FALSE) -> -0.001
A206: USL_ICMV | B206: Rate Rider for Incremental Capital Module (ICM) - in effect from May 1, 2018 until the effective date of the next cost of service based rate order | C206: $/kWh | D206: =VLOOKUP(A206,RATES!$A:$Y,8,FALSE) -> 0.0002
A207: USL_TN | B207: Retail Transmission Rate - Network Service Rate | C207: $/kWh | D207: =VLOOKUP(A207,RATES!$A:$Y,8,FALSE) -> 0.0066
A208: USL_TC | B208: Retail Transmission Rate - Line and Transformation Connection Service Rate | C208: $/kWh | D208: =VLOOKUP(A208,RATES!$A:$Y,8,FALSE) -> 0.0055
B210: MONTHLY RATES AND CHARGES - Regulatory Component
B212: Wholesale Market Service Rate (WMS) - not including CBR | C212: $/kWh | D212: 0.0032
B213: Capacity Based Recovery (CBR) - Applicable for Class B Customers | C213: $/kWh | D213: 0.0004
B214: Rural or Remote Electricity Rate Protection Charge (RRRP) | C214: $/kWh | D214: 0.0003
B215: Standard Supply Service - Administrative Charge (if applicable) | C215: $ | D215: 0.25
B216: STREET LIGHTING SERVICE CLASSIFICATION
B217: All service supplied to roadway lighting equipment owned by or operated by the City of Brampton, Regional Municipality of Peel, or the Ministry of Transportation, controlled by photo cells. The consumption for these customers will be based on the calculated connected load times the required lighting times established in the approved Ontario Energy Board street lighting load shape template. Class B consumers are defined in accordance with O. Reg. 429/04. Further servicing details are available in the distributor’s Conditions of Service.
B219: APPLICATION
B221: The application of these rates and charges shall be in accordance with the Licence of the Distributor and any Code or Order of the Ontario Energy Board, and amendments thereto as approved by the Ontario Energy Board, which may be applicable to the administration of this schedule.
B223: No rates and charges for the distribution of electricity and charges to meet the costs of any work or service done or furnished for the purpose of the distribution of electricity shall be made except as permitted by this schedule, unless required by the Distributor’s Licence or a Code or Order of the Ontario Energy Board, and amendments thereto as approved by the Ontario Energy Board, or as specified herein.
B225: Unless specifically noted, this schedule does not contain any charges for the electricity commodity, be it under the Regulated Price Plan, a contract with a retailer or the wholesale market price, as applicable. In addition, the charges in the MONTHLY RATES AND CHARGES - Regulatory Component of this schedule do not apply to a customer that is an embedded wholesale market participant.
B227: It should be noted that this schedule does not list any charges, assessments, or credits that are required by law to be invoiced by a distributor and that are not subject to Ontario Energy Board approval, such as the Debt Retirement Charge, the Global Adjustment and the HST.
B229: MONTHLY RATES AND CHARGES - Delivery Component
A231: SL_F | B231: Service Charge (per connection) | C231: $ | D231: =VLOOKUP(A231,RATES!$A:$Y,8,FALSE) -> 2.32
A232: SL_ICMF | B232: Rate Rider for Incremental Capital Module (ICM) - in effect from May 1, 2018 until the effective date of the next cost of service based rate order | C232: $ | D232: =VLOOKUP(A232,RATES!$A:$Y,8,FALSE) -> 0.02
A233: SL_FRR18 | B233: Rate Rider for Recovery of 2018 Foregone Revenue - effective until December 31, 2018 | C233: $ | D233: =VLOOKUP(A233,RATES!$A:$Y,8,FALSE) -> 0.03
A234: SL_V | B234: Distribution Volumetric Rate | C234: $/kW | D234: =VLOOKUP(A234,RATES!$A:$Y,8,FALSE) -> 11.6426
A235: SL_GA18 | B235: Rate Rider for Disposition of Global Adjustment Account (2018) - effective until April 30, 2019 Applicable only for Non-RPP Customers | C235: $/kWh | D235: =VLOOKUP(A235,RATES!$A:$Y,8,FALSE) -> -0.0009
A236: SL_DVA18 | B236: Rate Rider for Disposition of Deferral/Variance Accounts (2018) - effective until April 30, 2019 | C236: $/kW | D236: =VLOOKUP(A236,RATES!$A:$Y,8,FALSE) -> -0.3219
A237: SL_ICMV | B237: Rate Rider for Incremental Capital Module (ICM) - in effect from May 1, 2018 until the effective date of the next cost of service based rate order | C237: $/kW | D237: =VLOOKUP(A237,RATES!$A:$Y,8,FALSE) -> 0.1112
A238: SL_TN | B238: Retail Transmission Rate - Network Service Rate | C238: $/kW | D238: =VLOOKUP(A238,RATES!$A:$Y,8,FALSE) -> 2.1341
A239: SL_TC | B239: Retail Transmission Rate - Line and Transformation Connection Service Rate | C239: $/kW | D239: =VLOOKUP(A239,RATES!$A:$Y,8,FALSE) -> 1.8215
B241: MONTHLY RATES AND CHARGES - Regulatory Component
B243: Wholesale Market Service Rate (WMS) - not including CBR | C243: $/kWh | D243: 0.0032
B244: Capacity Based Recovery (CBR) - Applicable for Class B Customers | C244: $/kWh | D244: 0.0004
B245: Rural or Remote Electricity Rate Protection Charge (RRRP) | C245: $/kWh | D245: 0.0003
B246: Standard Supply Service - Administrative Charge (if applicable) | C246: $ | D246: 0.25
B247: STANDBY POWER SERVICE CLASSIFICATION
B248: This classification refers to an account that has Load Displacement Generation and requires the distributor to provide back-up service. Further servicing details are available in the distributor’s Conditions of Service.
B250: APPLICATION
B252: The application of these rates and charges shall be in accordance with the Licence of the Distributor and any Code or Order of the Ontario Energy Board, and amendments thereto as approved by the Ontario Energy Board, which may be applicable to the administration of this schedule.
B254: No rates and charges for the distribution of electricity and charges to meet the costs of any work or service done or furnished for the purpose of the distribution of electricity shall be made except as permitted by this schedule, unless required by the Distributor’s Licence or a Code or Order of the Ontario Energy Board, and amendments thereto as approved by the Ontario Energy Board, or as specified herein.
B256: Unless specifically noted, this schedule does not contain any charges for the electricity commodity, be it under the Regulated Price Plan, a contract with a retailer or the wholesale market price, as applicable. In addition, the charges in the MONTHLY RATES AND CHARGES - Regulatory Component of this schedule do not apply to a customer that is an embedded wholesale market participant.
B258: It should be noted that this schedule does not list any charges, assessments, or credits that are required by law to be invoiced by a distributor and that are not subject to Ontario Energy Board approval, such as the Debt Retirement Charge, the Global Adjustment and the HST.
B260: MONTHLY RATES AND CHARGES - Delivery Component - Approved on an Interim Basis
A262: SB_V | B262: Distribution Volumetric Rate | C262: $/kW | D262: =VLOOKUP(A262,RATES!$A:$Y,8,FALSE) -> 1.6931
B263: EMBEDDED DISTRIBUTOR SERVICE CLASSIFICATION
B265: This classification applies to an electricity distributor licensed by the Ontario Energy Board, that is provided electricity by means of this distributor's facilities. Class B consumers are defined in accordance with O. Reg. 429/04. Further servicing details are available in the distributor’s Conditions of Service.
B267: APPLICATION
B269: The application of these rates and charges shall be in accordance with the Licence of the Distributor and any Code or Order of the Ontario Energy Board, and amendments thereto as approved by the Ontario Energy Board, which may be applicable to the administration of this schedule.
B271: No rates and charges for the distribution of electricity and charges to meet the costs of any work or service done or furnished for the purpose of the distribution of electricity shall be made except as permitted by this schedule, unless required by the Distributor’s Licence or a Code or Order of the Ontario Energy Board, and amendments thereto as approved by the Ontario Energy Board, or as specified herein.
B273: Unless specifically noted, this schedule does not contain any charges for the electricity commodity, be it under the Regulated Price Plan, a contract with a retailer or the wholesale market price, as applicable. In addition, the charges in the MONTHLY RATES AND CHARGES - Regulatory Component of this schedule do not apply to a customer that is an embedded wholesale market participant.
B275: It should be noted that this schedule does not list any charges, assessments, or credits that are required by law to be invoiced by a distributor and that are not subject to Ontario Energy Board approval, such as the Debt Retirement Charge, the Global Adjustment and the HST.
B277: MONTHLY RATES AND CHARGES - Delivery Component
A279: EMD_F | B279: Service Charge | C279: $ | D279: =VLOOKUP(A279,RATES!$A:$Y,8,FALSE) -> 4197.26
A280: EMD_ICMF | B280: Rate Rider for Incremental Capital Module (ICM) - in effect from May 1, 2018 until the effective date of the next cost of service based rate order | C280: $ | D280: =VLOOKUP(A280,RATES!$A:$Y,8,FALSE) -> 40.07
A281: EMD_FRR18 | B281: Rate Rider for Recovery of 2018 Foregone Revenue - effective until December 31, 2018 | C281: $ | D281: =VLOOKUP(A281,RATES!$A:$Y,8,FALSE) -> 18.72
A282: EMD_GA18 | B282: Rate Rider for Disposition of Global Adjustment Account (2018) - effective until April 30, 2019 Applicable only for Non-RPP Customers | C282: $/kWh | D282: =VLOOKUP(A282,RATES!$A:$Y,8,FALSE) -> -0.0009
A283: EMD_DVA18 | B283: Rate Rider for Disposition of Deferral/Variance Accounts (2018) - effective until April 30, 2019 | C283: $/kWh | D283: =VLOOKUP(A283,RATES!$A:$Y,8,FALSE) -> -0.0009
A284: EMD_TN | B284: Retail Transmission Rate - Network Service Rate | C284: $/kW | D284: =VLOOKUP(A284,RATES!$A:$Y,8,FALSE) -> 2.8743
A285: EMD_TC | B285: Retail Transmission Rate - Line and Transformation Connection Service Rate | C285: $/kW | D285: =VLOOKUP(A285,RATES!$A:$Y,8,FALSE) -> 2.3517
B286: MONTHLY RATES AND CHARGES - Regulatory Component
B288: Wholesale Market Service Rate (WMS) - not including CBR | C288: $/kWh | D288: 0.0032
B289: Capacity Based Recovery (CBR) - Applicable for Class B Customers | C289: $/kWh | D289: 0.0004
B290: Rural or Remote Electricity Rate Protection Charge (RRRP) | C290: $/kWh | D290: 0.0003
B291: Standard Supply Service - Administrative Charge (if applicable) | C291: $ | D291: 0.25
... 107 more rows

Sheet 3. Continuity Schedule
A1: Back to Index | B1: Back to Index | CU1: FALSE
C2: =+'1. Information Sheet'!B2 -> INCENTIVE REGULATION MODEL FOR 2019 FILERS | CU2: FALSE
CU3: FALSE
CU4: FALSE
CU5: FALSE
CU6: FALSE
CU7: FALSE
CU8: FALSE
CU9: FALSE
CU10: TRUE
CU11: TRUE
C12: Please complete the following continuity schedule for the following Deferral/Variance Accounts. Enter information into green cells only. Column CE shoudl match the latest 2.1.7 RRR filing. When inputting balances in the continuity schedule, Account 1580 RSVA - Wholesale Market Service Charge is to exclude any amounts relating to CBR. The CBR amounts are to be entered separately in the Class A and Class B 1580 sub-accounts. Only Class B amounts are to be disposed. Class A amounts are not to be disposed. If you have received approval to dispose of balances from prior years, the starting point for entries in the schedule below will be the balance sheet date as per your general ledger for which you received approval. For example, if in the 2016 EDR process (CoS or IRM) you received approval for the December 31, 2014 balances, the starting point for your entries below should be the 2013 year. This will allow for the correct starting point for the 2014 opening balance columns for both principal and interest. Please refer to the footnotes for further instructions.
E16: 2010 | O16: 2011 | Y16: 2012 | AI16: 2013 | AS16: 2014 | BC16: 2015 | BM16: 2016 | BW16: 2017 | CG16: 2018 | CK16: Projected Interest on Dec-31-17 Balances | CO16: 2.1.7 RRR
C17: Account Descriptions | D17: Account Number | E17: Opening Principal Amounts as of Jan 1, 2010 | F17: Transactions2 Debit / (Credit) during 2010 | G17: OEB-Approved Disposition during 2010 | H17: Principal Adjustments1 during 2010 | I17: Closing Principal Balance as of Dec 31, 2010 | J17: Opening Interest Amounts as of Jan 1, 2010 | K17: Interest Jan 1 to Dec 31, 2010 | L17: OEB-Approved Disposition during 2010 | M17: Interest Adjustments1 during 2010 | N17: Closing Interest Amounts as of Dec 31, 2010 | O17: Opening Principal Amounts as of Jan 1, 2011 | P17: Transactions2 Debit / (Credit) during 2011 | Q17: OEB-Approved Disposition during 2011 | R17: Principal Adjustments1 during 2011 | S17: Closing Principal Balance as of Dec 31, 2011 | T17: Opening Interest Amounts as of Jan 1, 2011 | U17: Interest Jan 1 to Dec 31, 2011 | V17: OEB-Approved Disposition during 2011 | W17: Interest Adjustments1 during 2011 | X17: Closing Interest Amounts as of Dec 31, 2011 | Y17: Opening Principal Amounts as of Jan 1, 2012 | Z17: Transactions2 Debit / (Credit) during 2012 | AA17: OEB-Approved Disposition during 2012 | AB17: Principal Adjustments1 during 2012 | AC17: Closing Principal Balance as of Dec 31, 2012 | AD17: Opening Interest Amounts as of Jan 1, 2012 | AE17: Interest Jan 1 to Dec 31, 2012 | AF17: OEB-Approved Disposition during 2012 | AG17: Interest Adjustments1 during 2012 | AH17: Closing Interest Amounts as of Dec 31, 2012 | AI17: Opening Principal Amounts as of Jan 1, 2013 | AJ17: Transactions2 Debit / (Credit) during 2013 | AK17: OEB-Approved Disposition during 2013 | AL17: Principal Adjustments1 during 2013 | AM17: Closing Principal Balance as of Dec 31, 2013 | AN17: Opening Interest Amounts as of Jan 1, 2013 | AO17: Interest Jan 1 to Dec 31, 2013 | AP17: OEB-Approved Disposition during 2013 | AQ17: Interest Adjustments1 during 2013 | AR17: Closing Interest Amounts as of Dec 31, 2013 | AS17: Opening Principal Amounts as of Jan 1, 2014 | AT17: Transactions2 Debit / (Credit) during 2014 | AU17: OEB-Approved Disposition during 2014 | AV17: Principal Adjustments1 during 2014 | AW17: Closing Principal Balance as of Dec 31, 2014 | AX17: Opening Interest Amounts as of Jan 1, 2014 | AY17: Interest Jan 1 to Dec 31. 2014 | AZ17: OEB-Approved Disposition during 2014 | BA17: Interest Adjustments1 during 2014 | BB17: Closing Interest Amounts as of Dec 31, 2014 | BC17: Opening Principal Amounts as of Jan 1, 2015 | BD17: Transactions2 Debit / (Credit) during 2015 | BE17: OEB-Approved Disposition during 2015 | BF17: Principal Adjustments1 during 2015 | BG17: Closing Principal Balance as of Dec 31, 15 | BH17: Opening Interest Amounts as of Jan 1, 15 | BI17: Interest Jan 1 to Dec 31, 15 | BJ17: OEB-Approved Disposition during 2015 | BK17: Interest Adjustments1 during 2015 | BL17: Closing Interest Amounts as of Dec 31, 15 | BM17: Opening Principal Amounts as of Jan 1, 2016 | BN17: Transactions2 Debit / (Credit) during 2016 | BO17: OEB-Approved Disposition during 2016 | BP17: Principal Adjustments1 during 2016 | BQ17: Closing Principal Balance as of Dec 31, 16 | BR17: Opening Interest Amounts as of Jan 1, 16 | BS17: Interest Jan 1 to Dec 31, 16 | BT17: OEB-Approved Disposition during 2016 | BU17: Interest Adjustments1 during 2016 | BV17: Closing Interest Amounts as of Dec 31, 16 | BW17: Opening Principal Amounts as of Jan 1, 2017 | BX17: Transactions2 Debit / (Credit) during 2017 | BY17: OEB-Approved Disposition during 2017 | BZ17: Principal Adjustments1 during 2017 | CA17: Closing Principal Balance as of Dec 31, 2017 | CB17: Opening Interest Amounts as of Jan 1, 2017 | CC17: Interest Jan 1 to Dec 31, 17 | CD17: OEB-Approved Disposition during 2017 | CE17: Interest Adjustments1 during 2017 | CF17: Closing Interest Amounts as of Dec 31, 17 | CG17: Principal Disposition during 2018 - instructed by OEB | CH17: Interest Disposition during 2018 - instructed by OEB | CI17: Closing Principal Balances as of Dec 31, 2017 Adjusted for Dispositions during 2018 | CJ17: Closing Interest Balances as of Dec 31, 2017 Adjusted for Disposition in 2018 | CK17: Projected Interest from January 1, 2018 to December 31, 2018 on December 31, 2017 balance adjusted for disposition during 2019 3 | CL17: Projected Interest from January 1, 2019 to April 30, 2019 on Dec 31 -17 balance adjusted for disposition during 2019 3 | CM17: Total Interest | CN17: Total Claim | CO17: As of Dec 31-17 | CP17: Variance RRR vs. 2017 Balance (Principal + Interest)
CN19: Claim before Forecasted Transactions
C20: Group 1 Accounts
C21: LV Variance Account | D21: 1550 | I21: =E21+F21-G21+H21 -> 0 | N21: =J21+K21-L21+M21 -> 0 | O21: =I21 -> 0 | P21: 67166.5 | S21: =O21+P21-Q21+SUM(R21:R21) -> 67166.5 | T21: =N21 -> 0 | U21: 110.61 | X21: =T21+U21-V21+W21 -> 110.61 | Y21: =S21 -> 67166.5 | Z21: 129687.79 | AA21: 0 | AB21: 0 | AC21: =Y21+Z21-AA21+SUM(AB21:AB21) -> 196854.29 | AD21: =X21 -> 110.61 | AE21: 1934.8 | AH21: =AD21+AE21-AF21+AG21 -> 2045.41 | AI21: =AC21 -> 196854.29 | AJ21: 159066.83 | AM21: =AI21+AJ21-AK21+SUM(AL21:AL21) -> 355921.12 | AN21: =AH21 -> 2045.41 | AO21: 3889.81 | AR21: =AN21+AO21-AP21+AQ21 -> 5935.22 | AS21: =AM21 -> 355921.12 | AT21: =2045.71+153880.84 -> 155926.55 | AU21: =2045.71+196854.29 -> 198900 | AW21: =AS21+AT21-AU21+SUM(AV21:AV21) -> 312947.67 | AX21: =AR21 -> 5935.22 | AY21: =-2045.41+3206.04 -> 1160.63 | AZ21: =-2045.41+4939.41 -> 2894 | BB21: =AX21+AY21-AZ21+BA21 -> 4201.85 | BC21: =AW21 -> 312947.67 | BD21: 248566.56 | BE21: 159066.83 | BG21: =BC21+BD21-BE21+SUM(BF21:BF21) -> 402447.4 | BH21: =BB21 -> 4201.85 | BI21: 3001.42 | BJ21: 3334.09 | BL21: =BH21+BI21-BJ21+BK21 -> 3869.18 | BM21: =BG21 -> 402447.4 | BN21: 247216.54 | BQ21: =BM21+BN21-BO21+SUM(BP21:BP21) -> 649663.94 | BR21: =BL21 -> 3869.18 | BS21: 5671.28 | BV21: =BR21+BS21-BT21+BU21 -> 9540.46 | BW21: =BQ21 -> 649663.94 | BX21: 200279.71 | BY21: 402447.4 | CA21: =BW21+BX21-BY21+SUM(BZ21:BZ21) -> 447496.25 | CB21: =BV21 -> 9540.46 | CC21: 4124.4 | CD21: 8296.1 | CF21: =CB21+CC21-CD21+CE21 -> 5368.76 | CG21: 247216.54 | CH21: 5527.386555 | CI21: =CA21-CG21 -> 200279.71 | CJ21: =CF21-CH21 -> -158.6265555 | CK21: =+CI21*1.5%/4+CI21*1.89%*3/4 -> 3590.013802 | CM21: =CJ21+CK21+CL21 -> 3431.387246 | CN21: =SUM(CI21:CL21) -> 203711.0972 | CO21: 452865.01 | CP21: =CO21-SUM(CA21,CF21) -> 0
C22: Smart Metering Entity Charge Variance Account | D22: 1551 | I22: =E22+F22-G22+H22 -> 0 | N22: =J22+K22-L22+M22 -> 0 | O22: =I22 -> 0 | P22: 0 | S22: 0 | T22: 0 | U22: 0 | X22: =T22+U22-V22+W22 -> 0 | Y22: 0 | AC22: =Y22+Z22-AA22+SUM(AB22:AB22) -> 0 | AD22: =X22 -> 0 | AH22: =AD22+AE22-AF22+AG22 -> 0 | AI22: 0 | AJ22: -44087.23 | AM22: -44087.23 | AN22: 0 | AO22: -378.86 | AR22: =AN22+AO22-AP22+AQ22 -> -378.86 | AS22: -44087.23 | AT22: -64162.87 | AW22: -108250.1 | AX22: -378.86 | AY22: -1008.84 | BB22: =AX22+AY22-AZ22+BA22 -> -1387.7 | BC22: -108250.1 | BD22: =-54699.37-378.77 -> -55078.14 | BE22: =-44087.23-378.77 -> -44466 | BG22: -118862.24 | BH22: -1387.7 | BI22: =-937.04+378.77 -> -558.27 | BJ22: =-1032.51+378.77 -> -653.74 | BL22: =BH22+BI22-BJ22+BK22 -> -1292.23 | BM22: =BG22 -> -118862.24 | BN22: -59949.3 | BQ22: =BM22+BN22-BO22+SUM(BP22:BP22) -> -178811.54 | BR22: -1292.23 | BS22: -1545.4 | BV22: =BR22+BS22-BT22+BU22 -> -2837.63 | BW22: =BQ22 -> -178811.54 | BX22: -65888.54 | BY22: -118862.24 | CA22: =BW22+BX22-BY22+SUM(BZ22:BZ22) -> -125837.84 | CB22: -2837.63 | CC22: -970.38 | CD22: -2599.71 | CF22: =CB22+CC22-CD22+CE22 -> -1208.3 | CG22: -59949.3 | CH22: -1276.541622 | CI22: =CA22-CG22 -> -65888.54 | CJ22: =CF22-CH22 -> 68.2416225 | CK22: =+CI22*1.5%/4+CI22*1.89%*3/4 -> -1181.05208 | CM22: =CJ22+CK22+CL22 -> -1112.810457 | CN22: -67001.35046 | CO22: -127046.14 | CP22: 0
C23: RSVA - Wholesale Market Service Charge | D23: 1580 | I23: =E23+F23-G23+H23 -> 0 | N23: =J23+K23-L23+M23 -> 0 | O23: =I23 -> 0 | P23: -7817418.24 | S23: =O23+P23-Q23+SUM(R23:R23) -> -7817418.24 | T23: 0 | U23: -123699.46 | X23: =T23+U23-V23+W23 -> -123699.46 | Y23: -7817418.24 | Z23: -4935145 | AA23: 0 | AB23: 0 | AC23: =Y23+Z23-AA23+SUM(AB23:AB23) -> -12752563.24 | AD23: -123699.46 | AE23: -148594.66 | AH23: =AD23+AE23-AF23+AG23 -> -272294.12 | AI23: -12752563.24 | AJ23: -2481578.98 | AM23: -15234142.22 | AN23: -272294.12 | AO23: -209914.28 | AR23: =AN23+AO23-AP23+AQ23 -> -482208.4 | AS23: -15234142.22 | AT23: =-871126.24-272293.76 -> -1143420 | AU23: =-12752563.24-272293.76 -> -13024857 | AW23: -3352705.22 | AX23: -482208.4 | AY23: =-9921.42+272294.12 -> 262372.7 | AZ23: =-459757.12+272294.12 -> -187463 | BB23: =AX23+AY23-AZ23+BA23 -> -32372.7 | BC23: -3352705.22 | BD23: -8458613.72 | BE23: -2481578.98 | BG23: -9329739.96 | BH23: -32372.7 | BI23: -35534.35 | BJ23: -58930.49 | BL23: =BH23+BI23-BJ23+BK23 -> -8976.56 | BM23: -9329739.96 | BN23: =-3723875.51-2366.51 -> -3726242.02 | BQ23: =BM23+BN23-BO23+SUM(BP23:BP23) -> -13055981.98 | BR23: -8976.56 | BS23: -119774.12 | BV23: =BR23+BS23-BT23+BU23 -> -128750.68 | BW23: -13055981.98 | BX23: -3926629.52 | BY23: =-9329739.96+BY24 -> -9329739.96 | CA23: =BW23+BX23-BY23+SUM(BZ23:BZ23) -> -7652871.54 | CB23: -128750.68 | CC23: -63751.01 | CD23: -111603.7 | CF23: =CB23+CC23-CD23+CE23 -> -80897.99 | CG23: -3726242.02 | CH23: -81704.123 | CI23: -3926629.52 | CJ23: 806.1329965 | CK23: -70384.83415 | CM23: -69578.70115 | CN23: -3996208.221 | CO23: =-7652871.54-80897.99 -> -7733769.53 | CP23: 0
C24: Variance WMS – Sub-account CBR Class A | D24: 1580 | I24: 0 | N24: 0 | O24: 0 | P24: 0 | S24: 0 | T24: 0 | U24: 0 | X24: 0 | Y24: 0 | AC24: 0 | AD24: 0 | AH24: 0 | AI24: 0 | AM24: 0 | AN24: 0 | AR24: 0 | AS24: 0 | AW24: 0 | AX24: 0 | BB24: 0 | BC24: 0 | BD24: 76773.57 | BF24: =84783-76774 -> 8009 | BG24: =BC24+BD24-BE24+SUM(BF24:BF24) -> 84782.57 | BH24: 0 | BI24: 63 | BK24: 7 | BL24: 70 | BM24: 84782.57 | BN24: =-87149.1+2366.51 -> -84782.59 | BQ24: =BM24+BN24-BO24+SUM(BP24:BP24) -> -0.02000000002 | BR24: 70 | BS24: =-36.1799999999999-33.82 -> -70 | BV24: 9.947598301e-14 | BW24: -0.02000000002 | CA24: =BW24+BX24-BY24+SUM(BZ24:BZ24) -> -0.02000000002 | CB24: 9.947598301e-14 | CF24: 9.947598301e-14 | CG24: -0.02000000002 | CH24: -0.0003465000002 | CI24: 0 | CJ24: 0.0003465000003 | CK24: 0 | CM24: 0.0003465000003 | CN24: 0.0003465000003 | CO24: =365.18+32.29 -> 397.47 | CP24: 397.49
C25: Variance WMS – Sub-account CBR Class B | D25: 1580 | I25: 0 | N25: 0 | O25: 0 | P25: 0 | S25: 0 | T25: 0 | U25: 0 | X25: 0 | Y25: 0 | AC25: 0 | AD25: 0 | AH25: 0 | AI25: 0 | AM25: 0 | AN25: 0 | AR25: 0 | AS25: 0 | AW25: 0 | AX25: 0 | BB25: 0 | BC25: 0 | BD25: 887200.84 | BF25: =964946-887201 -> 77745 | BG25: 964945.84 | BH25: 0 | BI25: 734.96808 | BK25: 78 | BL25: 812.96808 | BM25: 964945.84 | BN25: -97871.8 | BQ25: =BM25+BN25-BO25+SUM(BP25:BP25) -> 867074.04 | BR25: 812.96808 | BS25: =8962.48192+33.82 -> 8996.30192 | BV25: 9809.27 | BW25: 867074.04 | BX25: -24070.75 | BY25: 964945.84 | CA25: =BW25+BX25-BY25+SUM(BZ25:BZ25) -> -121942.55 | CB25: 9809.27 | CC25: -1266.68768 | CD25: 11427.37 | CF25: -2884.78768 | CI25: -121942.55 | CJ25: -2884.78768 | CK25: -2185.820209 | CM25: -5070.607889 | CN25: -127013.1579 | CO25: =-121942.55-2884.79 -> -124827.34 | CP25: -0.002319999941
C26: RSVA - Retail Transmission Network Charge | D26: 1584 | I26: 0 | N26: 0 | O26: =I26 -> 0 | P26: 2802828.02 | S26: 2802828.02 | T26: 0 | U26: 41205.81 | X26: =T26+U26-V26+W26 -> 41205.81 | Y26: 2802828.02 | Z26: -131628.08 | AA26: 0 | AB26: 0 | AC26: 2671199.94 | AD26: 41205.81 | AE26: 40722.63 | AH26: =AD26+AE26-AF26+AG26 -> 81928.44 | AI26: 2671199.94 | AJ26: 1048861.42 | AM26: 3720061.36 | AN26: 81928.44 | AO26: 43640.07 | AR26: =AN26+AO26-AP26+AQ26 -> 125568.51 | AS26: 3720061.36 | AT26: =81928.06+716819.9 -> 798747.96 | AU26: =2671199.94+81928.06 -> 2753128 | AW26: 1765681.32 | AX26: 125568.51 | AY26: =-81928.06+21273.62 -> -60654.44 | AZ26: =-81928.06+121195.44 -> 39267.38 | BB26: =AX26+AY26-AZ26+BA26 -> 25646.69 | BC26: 1765681.32 | BD26: -1213537.23 | BE26: 1048861.42 | BG26: -496717.33 | BH26: 25646.69 | BI26: 2377.21 | BJ26: 19791.33 | BL26: =BH26+BI26-BJ26+BK26 -> 8232.57 | BM26: -496717.33 | BN26: -479527.58 | BQ26: -976244.91 | BR26: 8232.57 | BS26: -8982.35 | BV26: =BR26+BS26-BT26+BU26 -> -749.78 | BW26: -976244.91 | BX26: 19930.21 | BY26: -496717.33 | CA26: -459597.37 | CB26: -749.78 | CC26: -5134.38 | CD26: 2768.68 | CF26: -8652.84 | CG26: -479527.58 | CH26: -11826.27532 | CI26: 19930.21 | CJ26: 3173.435323 | CK26: 357.2490143 | CM26: 3530.684338 | CN26: 23460.89434 | CO26: -468250.21 | CP26: 0
C27: RSVA - Retail Transmission Connection Charge | D27: 1586 | I27: 0 | N27: 0 | O27: 0 | P27: 794420.64 | S27: 794420.64 | T27: 0 | U27: 2379.68 | X27: 2379.68 | Y27: 794420.64 | Z27: -15977.83 | AA27: 0 | AB27: 0 | AC27: 778442.81 | AD27: 2379.68 | AE27: 12855.64 | AH27: 15235.32 | AI27: 778442.81 | AJ27: -300104.84 | AM27: 478337.97 | AN27: 15235.32 | AO27: 7917.27 | AR27: 23152.59 | AS27: 478337.97 | AT27: =15235.19+477699.11 -> 492934.3 | AU27: =15235.19+778442.810000001 -> 793678 | AW27: 177594.27 | AX27: 23152.59 | AY27: =-231.89-15235.32 -> -15467.21 | AZ27: =-15235.32+26678.32 -> 11443 | BB27: -3757.62 | BC27: 177594.27 | BD27: -60225.37 | BE27: -300104.84 | BG27: 417473.74 | BH27: -3757.62 | BI27: 5119.57 | BJ27: -7937.27 | BL27: 9299.22 | BM27: 417473.74 | BN27: 555267.17 | BQ27: 972740.91 | BR27: 9299.22 | BS27: 6812.32 | BV27: 16111.54 | BW27: 972740.91 | BX27: -71372.45 | BY27: 417473.74 | CA27: 483894.72 | CB27: 16111.54 | CC27: 4978.76 | CD27: 13891.43 | CF27: 7198.87 | CG27: 555267.17 | CH27: 11840.11372 | CI27: -71372.45 | CJ27: -4641.24372 | CK27: -1279.351166 | CM27: -5920.594886 | CN27: -77293.04489 | CO27: 491093.59 | CP27: 0
C28: RSVA - Power | D28: 1588 | I28: 0 | N28: 0 | O28: 0 | P28: -429113.32 | S28: -429113.32 | T28: 0 | U28: -6396.41 | X28: -6396.41 | Y28: -429113.32 | Z28: -414329.38 | AA28: 0 | AB28: 0 | AC28: -843442.7 | AD28: -6396.41 | AE28: -18709.04 | AH28: -25105.45 | AI28: -843442.7 | AJ28: -1530583.91 | AM28: -2374026.61 | AN28: -25105.45 | AO28: -30854.78 | AR28: -55960.23 | AS28: -2374026.61 | AT28: =-4590839.52-25105.3 -> -4615944.82 | AU28: =-843442.7-25105.3 -> -868548 | AW28: -6121423.43 | AX28: -55960.23 | AY28: =-22744.8+25105.45 -> 2360.65 | AZ28: =-37504.45+25105.45 -> -12399 | BB28: -41200.58 | BC28: -6121423.43 | BD28: -723029.18 | BE28: -1530583.91 | BG28: -5313868.7 | BH28: -41200.58 | BI28: -60980.25 | BJ28: -40955.36 | BL28: -61225.47 | BM28: -5313868.7 | BN28: -1020480.31 | BP28: =803138.79 -> 803138.79 | BQ28: -5531210.22 | BR28: -61225.47 | BS28: -69198.17 | BV28: -130423.64 | BW28: -5531210.22 | BX28: =-806670.23+BP28 -> -3531.44 | BY28: -5313868.7 | BZ28: =-BP28+179597.31 -> -623541.48 | CA28: =BW28+BX28-BY28+SUM(BZ28:BZ28) -> -844414.44 | CB28: -130423.64 | CC28: -3223.35 | CD28: -119678.03 | CF28: -13968.96 | CG28: -217341.52 | CH28: -14511.05183 | CI28: -627072.92 | CJ28: 542.091834 | CK28: -11240.28209 | CM28: -10698.19026 | CN28: -637771.1103 | CO28: -1037980.71 | CP28: -179597.31
C29: RSVA - Global Adjustment | D29: 1589 | I29: 0 | N29: 0 | O29: 0 | P29: 4893434.3 | S29: 4893434.3 | T29: 0 | U29: 22182.53 | X29: 22182.53 | Y29: 4893434.3 | Z29: -2946122.07 | AA29: 0 | AB29: 0 | AC29: 1947312.23 | AD29: 22182.53 | AE29: 26117.1 | AH29: 48299.63 | AI29: 1947312.23 | AJ29: 3459067.38 | AM29: 5406379.61 | AN29: 48299.63 | AO29: 67180.66 | AR29: 115480.29 | AS29: 5406379.61 | AT29: =48299.77+7681841.8 -> 7730141.57 | AU29: =48299.77+1947312.23 -> 1995612 | AW29: 11140909.18 | AX29: 115480.29 | AY29: =-48299.63+56521.81 -> 8222.18 | AZ29: =-48299.63+76924.63 -> 28625 | BB29: 95077.47 | BC29: 11140909.18 | BD29: 1769070.5 | BE29: 3459067.38 | BG29: 9450912.3 | BH29: 95077.47 | BI29: 73364.44 | BJ29: 89403.95 | BL29: 79037.96 | BM29: 9450912.3 | BN29: 8213.26 | BP29: =-1619355.47 -> -1619355.47 | BQ29: 7839770.09 | BR29: 79037.96 | BS29: 114760.96 | BV29: 193798.92 | BW29: 7839770.09 | BX29: =1150819.39+BP29 -> -468536.08 | BY29: 9450912.3 | BZ29: =-BP29+593355.95 -> 2212711.42 | CA29: 133033.13 | CB29: 193798.92 | CC29: -531.04 | CD29: 182998 | CF29: 10269.88 | CG29: -1611142.21 | CH29: -17112.11879 | CI29: 1744175.34 | CJ29: 27381.99879 | CK29: =+CI29*1.5%/4+CI29*1.89%*3/4 -> 31264.34297 | CM29: 58646.34176 | CN29: 1802821.682 | CO29: -450052.94 | CP29: -593355.95
C30: Disposition and Recovery/Refund of Regulatory Balances (2009)4 | D30: 1595 | I30: 0 | N30: 0 | O30: 0 | P30: 0 | S30: 0 | T30: 0 | U30: 0 | X30: 0 | Y30: 0 | Z30: 0 | AC30: 0 | AD30: 0 | AH30: 0 | AI30: 0 | AM30: 0 | AN30: 0 | AR30: 0 | AS30: 0 | AW30: 0 | AX30: 0 | BB30: 0 | BC30: 0 | BE30: 0 | BG30: 0 | BH30: 0 | BL30: 0 | BM30: 0 | BQ30: 0 | BR30: 0 | BV30: 0 | BW30: 0 | CA30: 0 | CB30: 0 | CF30: 0 | CG30: 0 | CH30: 0 | CI30: 0 | CJ30: 0 | CK30: 0 | CM30: 0 | CN30: =IF(CD30=0,IF(SUM(CG30:CH30)=0,SUM(CI30:CL30),0),SUM(CI30:CL30)) -> 0 | CO30: 0 | CP30: 0
C31: Disposition and Recovery/Refund of Regulatory Balances (2010)4 | D31: 1595 | I31: 0 | N31: 0 | O31: 0 | P31: -2388706.54 | S31: -2388706.54 | T31: 0 | U31: 744532.79 | X31: 744532.79 | Y31: -2388706.54 | Z31: 2601535.68 | AC31: 212829.14 | AD31: 744532.79 | AE31: -874564.29 | AH31: -130031.5 | AI31: 212829.14 | AM31: 212829.14 | AN31: -130031.5 | AO31: 3128 | AR31: -126903.5 | AS31: 212829.14 | AT31: -130031.14 | AU31: =-130031.14+212829.14 -> 82798 | AW31: 1.164153218e-10 | AX31: -126903.5 | AY31: 130032.5 | AZ31: =-126903.5+130032.5 -> 3129 | BB31: 0 | BC31: 1.164153218e-10 | BE31: 0 | BG31: 1.164153218e-10 | BH31: 0 | BL31: 0 | BM31: 1.164153218e-10 | BQ31: 1.164153218e-10 | BR31: 0 | BV31: 0 | BW31: 1.164153218e-10 | CA31: 1.164153218e-10 | CB31: 0 | CF31: 0 | CG31: 1.164153218e-10 | CH31: 2.016895451e-12 | CI31: 0 | CJ31: -2.016895451e-12 | CK31: 0 | CM31: -2.016895451e-12 | CN31: 0 | CO31: 1.176958904e-10 | CP31: 1.28056854e-12
C32: Disposition and Recovery/Refund of Regulatory Balances (2011)4 | D32: 1595 | I32: 0 | N32: 0 | O32: 0 | P32: -132847.62 | S32: =O32+P32-Q32+SUM(R32:R32) -> -132847.62 | T32: 0 | U32: 11550.81 | X32: 11550.81 | Y32: -132847.62 | Z32: =97294.12-98295 -> -1000.88 | AC32: -133848.5 | AD32: 11550.81 | AE32: -4437.07 | AH32: 7113.74 | AI32: -133848.5 | AJ32: -22.78 | AM32: -133871.28 | AN32: 7113.74 | AO32: -1967 | AR32: 5146.74 | AS32: -133871.28 | AT32: 7113.5 | AU32: =-133848.5+7113.5 -> -126735 | AW32: -22.78 | AX32: 5146.74 | AY32: =-6.57-7114.74 -> -7121.31 | AZ32: =-7114.74+5146.74 -> -1968 | BB32: -6.57 | BC32: -22.78 | BD32: -15.04 | BG32: -37.82 | BH32: -6.57 | BI32: 6.99 | BL32: 0.42 | BM32: -37.82 | BN32: 37.82 | BQ32: 0 | BR32: 0.42 | BV32: 0.42 | BW32: 0 | CA32: 0 | CB32: 0.42 | CF32: 0.42 | CG32: 0 | CH32: 0.42 | CI32: 0 | CJ32: 0 | CK32: 0 | CM32: 0 | CN32: 0 | CO32: 0 | CP32: -0.42
C33: Disposition and Recovery/Refund of Regulatory Balances (2012)4 | D33: 1595 | I33: 0 | N33: 0 | O33: 0 | P33: 0 | S33: 0 | T33: 0 | U33: 0 | X33: 0 | Y33: 0 | AC33: 0 | AD33: 0 | AH33: 0 | AI33: 0 | AJ33: -86304 | AM33: -86304 | AN33: 0 | AR33: 0 | AS33: -86304 | AW33: -86304 | AX33: 0 | AY33: -1215.83 | BB33: -1215.83 | BC33: -86304 | BE33: -86304 | BG33: 0 | BH33: -1215.83 | BI33: -53 | BJ33: -1268.83 | BL33: 0 | BM33: 0 | BQ33: 0 | BR33: 0 | BS33: 0 | BV33: 0 | BW33: 0 | CA33: 0 | CB33: 0 | CF33: 0 | CG33: 0 | CH33: 0 | CI33: 0 | CJ33: 0 | CK33: 0 | CM33: 0 | CN33: 0 | CO33: 0 | CP33: 0
C34: Disposition and Recovery/Refund of Regulatory Balances (2013)4 | D34: 1595 | I34: 0 | N34: 0 | O34: 0 | P34: 0 | S34: 0 | T34: 0 | U34: 0 | X34: 0 | Y34: 0 | AC34: 0 | AD34: 0 | AH34: 0 | AI34: 0 | AM34: 0 | AN34: 0 | AR34: 0 | AS34: 0 | AW34: 0 | AX34: 0 | BB34: 0 | BC34: 0 | BG34: 0 | BH34: 0 | BL34: 0 | BM34: 0 | BN34: =-885.81-37.82 -> -923.63 | BQ34: -923.63 | BR34: 0 | BS34: -4.81 | BV34: -4.81 | BW34: -923.63 | CA34: -923.63 | CB34: -4.81 | CC34: -10.45 | CF34: -15.26 | CG34: -923.63 | CH34: -20.81188975 | CI34: 0 | CJ34: 5.55188975 | CK34: 0 | CM34: 5.55188975 | CN34: 0 | CO34: -938.89 | CP34: 0
C35: Disposition and Recovery/Refund of Regulatory Balances (2014)4 | D35: 1595 | I35: 0 | N35: 0 | O35: 0 | P35: 0 | S35: 0 | T35: 0 | U35: 0 | X35: 0 | Y35: 0 | AC35: 0 | AD35: 0 | AH35: 0 | AI35: 0 | AM35: 0 | AN35: 0 | AR35: 0 | AS35: 0 | AT35: =-86832.55+4134200.72+272807.97 -> 4320176.14 | AU35: 8196023.6 | AW35: -3875847.46 | AX35: 0 | AY35: =-88961.04-272808.53 -> -361769.57 | AZ35: 116471.5 | BB35: -478241.07 | BC35: -3875847.46 | BD35: =3789015+6866.09 -> 3795881.09 | BG35: =BC35+BD35-BE35+SUM(BF35:BF35) -> -79966.37 | BH35: -478241.07 | BI35: =-113674.48+478241.8 -> 364567.32 | BL35: -113673.75 | BM35: -79966.37 | BN35: =343885.48-0.5 -> 343884.98 | BQ35: =BM35+BN35-BO35+SUM(BP35:BP35) -> 263918.61 | BR35: =BL35 -> -113673.75 | BS35: =8099.75-949.32 -> 7150.43 | BV35: -106523.32 | BW35: 263918.61 | BX35: 495.79 | CA35: =BW35+BX35-BY35+SUM(BZ35:BZ35) -> 264414.4 | CB35: =BV35 -> -106523.32 | CC35: 7628.99 | CF35: -98894.33 | CG35: 263918.61 | CH35: -101950.9301 | CI35: 495.79 | CJ35: =CF35-CH35 -> 3056.600082 | CK35: 8.88703575 | CM35: 3065.487118 | CN35: 0 | CO35: 165519.75 | CP35: -0.3200000023
C36: Disposition and Recovery/Refund of Regulatory Balances (2015)4 | D36: 1595 | I36: 0 | N36: 0 | O36: 0 | P36: 0 | S36: 0 | T36: 0 | U36: 0 | X36: 0 | Y36: 0 | AC36: 0 | AD36: 0 | AH36: 0 | AI36: 0 | AM36: 0 | AN36: 0 | AR36: 0 | AS36: 0 | AW36: 0 | AX36: 0 | BB36: 0 | BC36: 0 | BD36: =-397083.04-223958 -> -621041.04 | BE36: -223958 | BG36: -397083.04 | BH36: 0 | BI36: =13800.31-2784 -> 11016.31 | BJ36: -2783.68 | BL36: 13799.99 | BM36: -397083.04 | BN36: =-288009.96+260189.4 -> -27820.56 | BQ36: -424903.6 | BR36: 13799.99 | BS36: =-357.11-7502.03 -> -7859.14 | BV36: 5940.85 | BW36: -424903.6 | BX36: -1.27 | CA36: =BW36+BX36-BY36+SUM(BZ36:BZ36) -> -424904.87 | CB36: =BV36 -> 5940.85 | CC36: -6623.42 | CF36: -682.57 | CG36: -424903.6 | CH36: -1420.60487 | CI36: -1.27 | CJ36: 738.03487 | CK36: -0.02276475 | CM36: 738.0121053 | CN36: 0 | CO36: -425587.12 | CP36: 0.3199999997
C37: Disposition and Recovery/Refund of Regulatory Balances (2017)4 Not to be disposed of unless rate rider has expired and balance has been audited | D37: 1595 | I37: 0 | N37: 0 | O37: 0 | S37: 0 | T37: 0 | X37: 0 | Y37: 0 | AC37: 0 | AD37: 0 | AH37: 0 | AI37: 0 | AM37: 0 | AN37: 0 | AR37: 0 | AS37: 0 | AW37: 0 | AX37: 0 | BB37: 0 | BC37: 0 | BG37: 0 | BH37: 0 | BL37: 0 | BM37: 0 | BQ37: 0 | BR37: 0 | BV37: 0 | BW37: 0 | BX37: =3667790.91-BX35-BX36 -> 3667296.39 | BY37: =4023408.95 -> 4023408.95 | CA37: -356112.56 | CB37: =BV37 -> 0 | CC37: =-271999.82-CC34-CC35-CC36 -> -272994.94 | CD37: =14499.86-CD34-CD35-CD36 -> 14499.86 | CF37: -287494.8 | CH37: 0 | CI37: -356112.56 | CJ37: -287494.8 | CK37: -6383.317638 | CM37: -293878.1176 | CN37: 0 | CO37: =-904614.05-CO34-CO35-CO36 -> -643607.79 | CP37: -0.429999998
C39: =C29 -> RSVA - Global Adjustment | D39: 1589 | E39: =E29 -> 0 | F39: 0 | G39: 0 | H39: 0 | I39: 0 | J39: 0 | K39: 0 | L39: 0 | M39: 0 | N39: 0 | O39: 0 | P39: 4893434.3 | Q39: 0 | R39: 0 | S39: 4893434.3 | T39: 0 | U39: 22182.53 | V39: 0 | W39: 0 | X39: 22182.53 | Y39: 4893434.3 | Z39: -2946122.07 | AA39: 0 | AB39: 0 | AC39: 1947312.23 | AD39: 22182.53 | AE39: 26117.1 | AF39: 0 | AG39: 0 | AH39: 48299.63 | AI39: 1947312.23 | AJ39: 3459067.38 | AK39: =AK29 -> 0 | AL39: 0 | AM39: 5406379.61 | AN39: 48299.63 | AO39: 67180.66 | AP39: 0 | AQ39: 0 | AR39: 115480.29 | AS39: 5406379.61 | AT39: 7730141.57 | AU39: 1995612 | AV39: 0 | AW39: 11140909.18 | AX39: 115480.29 | AY39: 8222.18 | AZ39: 28625 | BA39: 0 | BB39: 95077.47 | BC39: 11140909.18 | BD39: 1769070.5 | BE39: 3459067.38 | BF39: 0 | BG39: 9450912.3 | BH39: 95077.47 | BI39: 73364.44 | BJ39: 89403.95 | BK39: 0 | BL39: 79037.96 | BM39: 9450912.3 | BN39: 8213.26 | BO39: 0 | BP39: -1619355.47 | BQ39: =BQ29 -> 7839770.09 | BR39: 79037.96 | BS39: 114760.96 | BT39: 0 | BU39: 0 | BV39: 193798.92 | BW39: 7839770.09 | BX39: -468536.08 | BY39: 9450912.3 | BZ39: 2212711.42 | CA39: 133033.13 | CB39: 193798.92 | CC39: -531.04 | CD39: 182998 | CE39: 0 | CF39: 10269.88 | CG39: -1611142.21 | CH39: -17112.11879 | CI39: 1744175.34 | CJ39: 27381.99879 | CK39: 31264.34297 | CL39: 0 | CM39: 58646.34176 | CN39: 1802821.682 | CO39: -450052.94 | CP39: =CO39-SUM(CA39,CF39) -> -593355.95
C40: Total Group 1 Balance excluding Account 1589 - Global Adjustment | E40: =SUM(E21:E37)-E29 -> 0 | F40: 0 | G40: 0 | H40: 0 | I40: 0 | J40: 0 | K40: 0 | L40: 0 | M40: 0 | N40: 0 | O40: 0 | P40: -7103670.56 | Q40: 0 | R40: 0 | S40: -7103670.56 | T40: 0 | U40: 669683.83 | V40: 0 | W40: 0 | X40: 669683.83 | Y40: -7103670.56 | Z40: -2766857.7 | AA40: 0 | AB40: 0 | AC40: -9870528.26 | AD40: 669683.83 | AE40: -990791.99 | AF40: 0 | AG40: 0 | AH40: -321108.16 | AI40: -9870528.26 | AJ40: -3234753.49 | AK40: =SUM(AK21:AK37)-AK29 -> 0 | AL40: 0 | AM40: -13105281.75 | AN40: -321108.16 | AO40: -184539.77 | AP40: 0 | AQ40: 0 | AR40: -505647.93 | AS40: -13105281.75 | AT40: -178660.38 | AU40: -1995612.4 | AV40: 0 | AW40: -11288329.73 | AX40: -505647.93 | AY40: -51310.72 | AZ40: -28625.12 | BA40: 0 | BB40: -528333.53 | BC40: -11288329.73 | BD40: -6123117.66 | BE40: -3459067.48 | BF40: 85754 | BG40: -13866625.91 | BH40: -528333.53 | BI40: 289760.9181 | BJ40: -89403.95 | BK40: 85 | BL40: -149083.6619 | BM40: -13866625.91 | BN40: -4351191.28 | BO40: 0 | BP40: 803138.79 | BQ40: =SUM(BQ21:BQ37)-BQ29 -> -17414678.4 | BR40: -149083.6619 | BS40: -178803.6581 | BT40: 0 | BU40: 0 | BV40: -327887.32 | BW40: -17414678.4 | BX40: -203491.87 | BY40: -9450912.3 | BZ40: -623541.48 | CA40: -8790799.45 | CB40: -327887.32 | CC40: -337242.4677 | CD40: -182998 | CE40: 0 | CF40: -482131.7877 | CG40: -3842485.35 | CH40: -195342.4187 | CI40: -4948314.1 | CJ40: -286789.369 | CK40: -88698.53024 | CL40: 0 | CM40: -375487.8992 | CN40: -4678114.893 | CO40: -9452131.91 | CP40: =CO40-SUM(CA40,CF40) -> -179200.6723
C41: Total Group 1 Balance | E41: =SUM(E39,E40) -> 0 | F41: =SUM(F39,F40) -> 0 | G41: 0 | H41: 0 | I41: 0 | J41: 0 | K41: 0 | L41: 0 | M41: 0 | N41: 0 | O41: 0 | P41: =SUM(P39,P40) -> -2210236.26 | Q41: =SUM(Q39,Q40) -> 0 | R41: 0 | S41: -2210236.26 | T41: 0 | U41: 691866.36 | V41: 0 | W41: 0 | X41: 691866.36 | Y41: -2210236.26 | Z41: -5712979.77 | AA41: 0 | AB41: 0 | AC41: -7923216.03 | AD41: 691866.36 | AE41: -964674.89 | AF41: 0 | AG41: 0 | AH41: -272808.53 | AI41: -7923216.03 | AJ41: 224313.89 | AK41: 0 | AL41: 0 | AM41: -7698902.14 | AN41: -272808.53 | AO41: -117359.11 | AP41: 0 | AQ41: 0 | AR41: -390167.64 | AS41: -7698902.14 | AT41: 7551481.19 | AU41: -0.4000000004 | AV41: 0 | AW41: -147420.55 | AX41: -390167.64 | AY41: -43088.54 | AZ41: -0.12 | BA41: 0 | BB41: -433256.06 | BC41: -147420.55 | BD41: -4354047.16 | BE41: -0.1000000001 | BF41: 85754 | BG41: -4415713.61 | BH41: -433256.06 | BI41: 363125.3581 | BJ41: 0 | BK41: 85 | BL41: -70045.70192 | BM41: -4415713.61 | BN41: -4342978.02 | BO41: 0 | BP41: -816216.68 | BQ41: -9574908.31 | BR41: -70045.70192 | BS41: -64042.69808 | BT41: 0 | BU41: 0 | BV41: -134088.4 | BW41: =SUM(BW39,BW40) -> -9574908.31 | BX41: -672027.95 | BY41: 0 | BZ41: 1589169.94 | CA41: -8657766.32 | CB41: -134088.4 | CC41: -337773.5077 | CD41: 0 | CE41: 0 | CF41: -471861.9077 | CG41: -5453627.56 | CH41: -212454.5375 | CI41: -3204138.76 | CJ41: -259407.3702 | CK41: -57434.18727 | CL41: 0 | CM41: -316841.5575 | CN41: =SUM(CN39,CN40) -> -2875293.211 | CO41: =SUM(CO39,CO40) -> -9902184.85 | CP41: =CO41-SUM(CA41,CF41) -> -772556.6223
A43: 29 | C43: LRAM Variance Account (only input amounts if applying for disposition of this account) | D43: 1568 | S43: =O43+P43-Q43+SUM(R43:R43) -> 0 | X43: =T43+U43-V43+W43 -> 0 | Y43: =S43 -> 0 | AC43: =Y43+Z43-AA43+SUM(AB43:AB43) -> 0 | AD43: =X43 -> 0 | AH43: =AD43+AE43-AF43+AG43 -> 0 | AI43: =AC43 -> 0 | AM43: =AI43+AJ43-AK43+SUM(AL43:AL43) -> 0 | AN43: =AH43 -> 0 | AR43: =AN43+AO43-AP43+AQ43 -> 0 | AS43: =AM43 -> 0 | AT43: 142020.89 | AW43: =AS43+AT43-AU43+SUM(AV43:AV43) -> 142020.89 | AX43: =AR43 -> 0 | AY43: -174.59 | BB43: =AX43+AY43-AZ43+BA43 -> -174.59 | BC43: =AW43 -> 142020.89 | BD43: 376487.2 | BE43: 0 | BF43: 360540.93 | BG43: =BC43+BD43-BE43+SUM(BF43:BF43) -> 879049.02 | BH43: =BB43 -> -174.59 | BI43: 2707.56 | BK43: 11069.80157 | BL43: =BH43+BI43-BJ43+BK43 -> 13602.77157 | BM43: =BG43 -> 879049.02 | BN43: 579460 | BQ43: =BM43+BN43-BO43+SUM(BP43:BP43) -> 1458509.02 | BR43: =BL43 -> 13602.77157 | BS43: 16554.63843 | BV43: =BR43+BS43-BT43+BU43 -> 30157.41 | BW43: =BQ43 -> 1458509.02 | BX43: 962480.67 | BY43: 879049.02 | CA43: =BW43+BX43-BY43+SUM(BZ43:BZ43) -> 1541940.67 | CB43: =BV43 -> 30157.41 | CC43: 9968.74 | CD43: 23272.32 | CF43: =CB43+CC43-CD43+CE43 -> 16853.83 | CI43: =CA43-CG43 -> 1541940.67 | CJ43: =CF43-CH43 -> 16853.83 | CK43: =+CI43*1.5%/4+CI43*1.89%*3/4 -> 27639.28651 | CM43: =CJ43+CK43+CL43 -> 44493.11651 | CN43: =SUM(CI43:CL43) -> 1586433.787 | CO43: 1558794.49 | CP43: =CO43-SUM(CA43,CF43) -> -0.01000000047
C45: Total including Account 1568 | E45: =SUM(E41,E43) -> 0 | F45: =SUM(F41,F43) -> 0 | G45: 0 | H45: 0 | I45: 0 | J45: 0 | K45: 0 | L45: 0 | M45: 0 | N45: 0 | O45: 0 | P45: -2210236.26 | Q45: 0 | R45: 0 | S45: -2210236.26 | T45: 0 | U45: 691866.36 | V45: 0 | W45: 0 | X45: 691866.36 | Y45: -2210236.26 | Z45: -5712979.77 | AA45: 0 | AB45: 0 | AC45: -7923216.03 | AD45: 691866.36 | AE45: -964674.89 | AF45: 0 | AG45: 0 | AH45: -272808.53 | AI45: -7923216.03 | AJ45: 224313.89 | AK45: 0 | AL45: 0 | AM45: -7698902.14 | AN45: -272808.53 | AO45: -117359.11 | AP45: 0 | AQ45: 0 | AR45: -390167.64 | AS45: -7698902.14 | AT45: 7693502.08 | AU45: -0.4000000004 | AV45: 0 | AW45: -5399.66 | AX45: -390167.64 | AY45: -43263.13 | AZ45: -0.12 | BA45: 0 | BB45: -433430.65 | BC45: -5399.66 | BD45: -3977559.96 | BE45: -0.1000000001 | BF45: 446294.93 | BG45: -3536664.59 | BH45: -433430.65 | BI45: 365832.9181 | BJ45: 0 | BK45: 11154.80157 | BL45: -56442.93035 | BM45: -3536664.59 | BN45: -3763518.02 | BO45: 0 | BP45: -816216.68 | BQ45: -8116399.29 | BR45: -56442.93035 | BS45: -47488.05965 | BT45: 0 | BU45: 0 | BV45: -103930.99 | BW45: =SUM(BW41,BW43) -> -8116399.29 | BX45: 290452.72 | BY45: 879049.02 | BZ45: 1589169.94 | CA45: -7115825.65 | CB45: -103930.99 | CC45: -327804.7677 | CD45: 23272.32 | CE45: 0 | CF45: -455008.0777 | CG45: -5453627.56 | CH45: -212454.5375 | CI45: -1662198.09 | CJ45: -242553.5402 | CK45: -29794.90076 | CL45: =SUM(CL41,CL43) -> 0 | CM45: =SUM(CM41,CM43) -> -272348.441 | CN45: =SUM(CN41,CN43) -> -1288859.424 | CO45: =SUM(CO41,CO43) -> -8343390.36 | CP45: =SUM(CP41,CP43) -> -772556.6323
CN47: =+CN21+CN22+CN23+CN26+CN27+CN28+CN34+CN35+CN36 -> -4551101.735 | CO47: =SUM(CO30:CO37) -> -904614.05
C48: For all OEB-Approved dispositions, please ensure that the disposition amount has the same sign (e.g: debit balances are to have a positive figure and credit balance are to have a negative figure) as per the related OEB decision. | CF48: =SUM(CF34:CF37) -> -387086.96
B51: 1 | C51: Please provide explanations for the nature of the adjustments. If the adjustment relates to previously OEB-Approved disposed balances, please provide amounts for adjustments and include supporting documentations.
B52: 2 | C52: For RSVA accounts only, report the net variance to the account during the year. For all other accounts, record the transactions during the year.
B53: 3 | C53: If the LDC’s rate year begins on January 1, 2017, the projected interest is recorded from January 1, 2016 to December 31, 2016 on the December 31, 2015 balances adjusted for the disposed balances approved by the OEB in the 2016 rate decision. If the LDC’s rate year begins on May 1, 2017, the projected interest is recorded from January 1, 2016 to April 30, 2017 on the December 31, 2015 balances adjusted for the disposed interest balances approved by the OEB in the 2016 rate decision.
B54: 4 | C54: Include Account 1595 as part of Group 1 accounts (lines 30-36) for review and disposition if the recovery (or refund) period has been completed. If the recovery (or refund) period has not been completed, do not include the respective balance in Account 1595 for disposition at this time.

Sheet 4. Billing Det. for Def-Var
A1: Back to Index | K1: Yes | U1: =IF(D18="YES", "YES", "NO") -> NO
B2: =+'1. Information Sheet'!B2 -> INCENTIVE REGULATION MODEL FOR 2019 FILERS | E2: =+'1. Information Sheet'!E2 -> 0 | H2: =+'1. Information Sheet'!H2 -> 0
B13: Information from the most recent RRR (2017 for 2019 IRM)
L14: Approved Recoveries (class allocation %)
D15: Total Metered kWh, (incl WMP) | E15: Total Metered kW | F15: Metered kWh for Non-RPP Customers | G15: Metered kW for Non-RPP Customers | H15: Metered kWh for Wholesale Market Participants (WMP) | I15: Metered kW for Wholesale Market Participants (WMP) | J15: Total Metered kWh less WMP consumption (if applicable) | K15: Total Metered kW less WMP consumption (if applicable) | L15: 1595 Recovery Proportion (2009) 1 | M15: 1595 Recovery Proportion (2010) 1 | N15: 1595 Recovery Proportion (2011) 1 | O15: 1595 Recovery Proportion (2012) 1 | P15: 1595 Recovery Proportion (2013) 1 | Q15: 1595 Recovery Proportion (2014) 1 | R15: 1595 Recovery Proportion (2015) 1 | S15: 1595 Recovery Proportion (2016) 1 | T15: 1595 Recovery Proportion (2017) 1 | U15: 1568 LRAM Variance Account Class Allocation ($ amounts) | V15: Number of Customers for Residential and GS<50 classes3 (Dec 2017)
B16: Rate Class | C16: Unit
B17: ='Model Specs'!C15 -> RESIDENTIAL SERVICE CLASSIFICATION | C17: kWh | D17: 1239997164 | F17: 67917236 | J17: =D17-H17 -> 1239997164 | K17: =E17-I17 -> 0 | P17: 0.315 | Q17: 0.315 | R17: 0.315 | T17: 0.3131183316 | U17: 265559.0615 | V17: 151346
B18: ='Model Specs'!C16 -> GENERAL SERVICE LESS THAN 50 kW SERVICE CLASSIFICATION | C18: kWh | D18: 334239807 | F18: 64916700 | J18: =D18-H18 -> 334239807 | K18: =E18-I18 -> 0 | P18: 0.091 | Q18: 0.091 | R18: 0.091 | T18: 0.08509602612 | U18: 272093.4656 | V18: 9359
B19: ='Model Specs'!C17 -> GENERAL SERVICE 50 TO 699 KW SERVICE CLASSIFICATION | C19: kW | D19: 1107692803 | E19: 3139342.391 | F19: 945590946 | G19: 2682420.391 | H19: 3490951.94 | I19: 6979.83 | J19: 1104201851 | K19: =E19-I19 -> 3132362.561 | P19: 0.278 | Q19: 0.278 | R19: 0.278 | T19: 0.2761308139 | U19: 96974.26158
B20: ='Model Specs'!C18 -> GENERAL SERVICE 700 to 4,999 KW SERVICE CLASSIFICATION | C20: kW | D20: 847190593.7 | E20: 1984988.844 | F20: 780502431 | G20: 1870757.844 | H20: 62603313.14 | I20: 104439.75 | J20: 784587280.6 | K20: 1880549.094 | P20: 0.211 | Q20: 0.211 | R20: 0.211 | T20: 0.2206904016 | U20: 53411.00046
B21: ='Model Specs'!C19 -> LARGE USE SERVICE CLASSIFICATION | C21: kW | D21: 354854755 | E21: 653806 | F21: 354854755 | G21: 653806 | J21: 354854755 | K21: 653806 | P21: 0.1 | Q21: 0.1 | R21: 0.1 | T21: 0.09278043062 | U21: 34424.44646
B22: ='Model Specs'!C20 -> STANDBY POWER SERVICE CLASSIFICATION | C22: kW | J22: 0 | K22: 0 | T22: 0.001325156564
B23: ='Model Specs'!C21 -> UNMETERED SCATTERED LOAD SERVICE CLASSIFICATION | C23: kWh | D23: 5971806 | F23: 5971806 | J23: 5971806 | K23: 0 | P23: 0.001 | Q23: 0.001 | R23: 0.001 | T23: 0.008456385851
B24: ='Model Specs'!C22 -> STREET LIGHTING SERVICE CLASSIFICATION | C24: kW | D24: 36552543 | E24: 104166 | F24: 36552543 | G24: 104166 | J24: 36552543 | K24: 104166 | P24: 0.004 | Q24: 0.004 | R24: 0.004 | T24: 0
B25: ='Model Specs'!C23 -> EMBEDDED DISTRIBUTOR SERVICE CLASSIFICATION | C25: kWh | D25: 10618669 | F25: 10618669 | J25: 10618669 | K25: 0
B26: ='Model Specs'!C24 -> DISTRIBUTED GENERATION [DGEN] SERVICE CLASSIFICATION | C26: kWh | D26: 192022 | F26: 192022 | J26: 192022 | K26: 0
B27: ='Model Specs'!C25 -> ENERGY FROM WASTE SERVICE CLASSIFICATION | C27: kW | D27: 0 | E27: 0 | F27: 0 | G27: 0 | H27: 0 | I27: 0 | J27: 0 | K27: 0
B28: ='Model Specs'!C26 -> 0 | J28: 0 | K28: 0
C29: Total | D29: =SUM(D17:D28) -> 3937310163 | E29: =SUM(E17:E28) -> 5882303.235 | F29: 2267117108 | G29: 5311150.235 | H29: 66094265.08 | I29: 111419.58 | J29: 3871215898 | K29: 5770883.655 | L29: 0 | M29: 0 | N29: 0 | O29: 0 | P29: 1 | Q29: 1 | R29: 1 | S29: =SUM(S17:S28) -> 0 | T29: 0.9975975463 | U29: 722462.2356 | V29: 160705
B32: Threshold Test | R32: 1568 Account Balance from Continuity Schedule | V32: ='3. Continuity Schedule'!CN43 -> 1586433.787
B33: Total Claim (including Account 1568) | D33: ='3. Continuity Schedule'!CN45 -> -1288859.424 | R33: =IF(V32=U29,"Total Balance of Account 1568 in Column R matches the amount entered on the Continuity Schedule","Total Balance of Account 1568 in Column T DOES NOT MATCH the amount entered on the Continuity Schedule") -> Total Balance of Account 1568 in Column T DOES NOT MATCH the amount entered on the Continuity Schedule
B34: Total Claim for Threshold Test (All Group 1 Accounts) | D34: ='3. Continuity Schedule'!CN41 -> -2875293.211
B35: Threshold Test (Total claim per kWh) 2 | D35: =IFERROR(D34/D29,"") -> -0.0007302684046
B36: Exceeds Threshold? | D36: =IF(D35="","",IF(OR(D35>0.001,D35<-0.001),"Yes","No")) -> No
B37: ELECT TO DISPOSE of the Group 1 Account Balances? | D37: Yes
B40: As per Section 3.2.5 of the 2017 Filing Requirements for Electricity Distribution Rate Applications, an applicant may elect to dispose of the Group 1 account balances below the threshold.
B41: 1 Residual Account balance to be allocated to rate classes in proportion to the recovery share as established when rate riders were implemented.
B42: 2 The Threshold Test does not include the amount in 1568.
B43: 3 The proportion of customers for the Residential and GS<50 Classes will be used to allocate Account 1551.
B45: Information from the 2015 RRR
D47: Total Metered kWh | E47: Total Metered kW | F47: Metered kWh for Non-RPP Customers | G47: Metered kW for Non-RPP Customers | H47: Metered kWh for Wholesale Market Participants (WMP) | I47: Metered kW for Wholesale Market Participants (WMP) | J47: Total Metered kWh less WMP consumption (if applicable) | K47: Total Metered kW less WMP consumption (if applicable)
B48: Rate Class | C48: Unit
B49: =B17 -> RESIDENTIAL SERVICE CLASSIFICATION | C49: kWh | J49: =D49-H49 -> 0 | K49: =E49-I49 -> 0
B50: =B18 -> GENERAL SERVICE LESS THAN 50 kW SERVICE CLASSIFICATION | C50: kWh | J50: =D50-H50 -> 0 | K50: =E50-I50 -> 0
B51: GENERAL SERVICE 50 TO 699 KW SERVICE CLASSIFICATION | C51: kW | J51: 0 | K51: =E51-I51 -> 0
B52: GENERAL SERVICE 700 to 4,999 KW SERVICE CLASSIFICATION | C52: kW | J52: 0 | K52: =E52-I52 -> 0
B53: LARGE USE SERVICE CLASSIFICATION | C53: kWh | J53: 0 | K53: 0
B54: STANDBY POWER SERVICE CLASSIFICATION | C54: kW | J54: 0 | K54: 0
B55: UNMETERED SCATTERED LOAD SERVICE CLASSIFICATION | C55: kW | J55: 0 | K55: 0
B56: STREET LIGHTING SERVICE CLASSIFICATION | C56: kW | J56: 0 | K56: 0
B57: EMBEDDED DISTRIBUTOR SERVICE CLASSIFICATION | C57: kWh | J57: 0 | K57: 0
B58: DISTRIBUTED GENERATION [DGEN] SERVICE CLASSIFICATION | C58: kWh | J58: 0 | K58: 0
B59: ENERGY FROM WASTE SERVICE CLASSIFICATION | C59: kW | J59: 0 | K59: 0
J60: 0 | K60: 0
C61: Total | D61: =SUM(D49:D60) -> 0 | E61: =SUM(E49:E60) -> 0 | F61: 0 | G61: 0 | H61: 0 | I61: 0 | J61: 0 | K61: 0

Sheet 5. Allocating Def-Var Balances
A1: Back to Index
B2: =+'1. Information Sheet'!B2 -> INCENTIVE REGULATION MODEL FOR 2019 FILERS | E2: =+'1. Information Sheet'!E2 -> 0 | H2: =+'1. Information Sheet'!H2 -> 0
B11: No input required. This workshseet allocates the deferral/variance account balances (Group 1 and 1568) to the appropriate classes as per EDDVAR dated July 31, 2009
B13: Allocation of Group 1 Accounts (including Account 1568)
C14: % of Total kWh | D14: % of Total non-RPP kWh | E14: % of Customer Numbers ** | F14: % of Total kWh adjusted for WMP | I14: allocated based on Total less WMP | N14: allocated based on Total less WMP | O14: 1595 | P14: 1595_(2017) | Q14: 1568
B15: Rate Class | G15: 1550 | H15: 1551 | I15: 1580 | J15: 1580 (Class A) | K15: 1580 (Class B) | L15: 1584 | M15: 1586 | N15: 1588
B16: ='4. Billing Det. for Def-Var'!B17 -> RESIDENTIAL SERVICE CLASSIFICATION | C16: =IFERROR('4. Billing Det. for Def-Var'!D17/'4. Billing Det. for Def-Var'!D$29,"") -> 0.3149350985 | D16: =IFERROR('4. Billing Det. for Def-Var'!F17/'4. Billing Det. for Def-Var'!F$29,"") -> 0.02995753319 | E16: =IFERROR('4. Billing Det. for Def-Var'!V17/'4. Billing Det. for Def-Var'!V$29,"") -> 0.9417628574 | F16: =IFERROR('4. Billing Det. for Def-Var'!J17/'4. Billing Det. for Def-Var'!J$29,"") -> 0.3203120665 | G16: =IFERROR(G$28*C16,"") -> 64155.77448 | H16: =IFERROR(H$28*E16,"") -> -63099.38326 | I16: =IFERROR(I$28*F16,"") -> -1280033.713 | L16: =IFERROR(L$28*$C16,"") -> 7388.65907 | M16: =IFERROR(M$28*$C16,"") -> -24342.29271 | N16: =IFERROR(N$28*$F16,"") -> -204285.7823 | O16: ='4. Billing Det. for Def-Var'!T17*O$28 -> 0 | Q16: ='4. Billing Det. for Def-Var'!U17 -> 265559.0615
B17: ='4. Billing Det. for Def-Var'!B18 -> GENERAL SERVICE LESS THAN 50 kW SERVICE CLASSIFICATION | C17: =IFERROR('4. Billing Det. for Def-Var'!D18/'4. Billing Det. for Def-Var'!D$29,"") -> 0.08489039298 | D17: =IFERROR('4. Billing Det. for Def-Var'!F18/'4. Billing Det. for Def-Var'!F$29,"") -> 0.02863403032 | E17: =IFERROR('4. Billing Det. for Def-Var'!V18/'4. Billing Det. for Def-Var'!V$29,"") -> 0.05823714259 | F17: =IFERROR('4. Billing Det. for Def-Var'!J18/'4. Billing Det. for Def-Var'!J$29,"") -> 0.0863397485 | G17: =IFERROR(G$28*C17,"") -> 17293.1151 | H17: =IFERROR(H$28*E17,"") -> -3901.9672 | I17: =IFERROR(I$28*F17,"") -> -345031.6128 | L17: =IFERROR(L$28*$C17,"") -> 1991.60454 | M17: -6561.436955 | N17: =IFERROR(N$28*$F17,"") -> -55064.99726 | O17: ='4. Billing Det. for Def-Var'!T18*O$28 -> 0 | Q17: ='4. Billing Det. for Def-Var'!U18 -> 272093.4656
B18: ='4. Billing Det. for Def-Var'!B19 -> GENERAL SERVICE 50 TO 699 KW SERVICE CLASSIFICATION | C18: =IFERROR('4. Billing Det. for Def-Var'!D19/'4. Billing Det. for Def-Var'!D$29,"") -> 0.2813323709 | D18: =IFERROR('4. Billing Det. for Def-Var'!F19/'4. Billing Det. for Def-Var'!F$29,"") -> 0.4170895904 | E18: =IFERROR('4. Billing Det. for Def-Var'!V19/'4. Billing Det. for Def-Var'!V$29,"") -> 0 | F18: =IFERROR('4. Billing Det. for Def-Var'!J19/'4. Billing Det. for Def-Var'!J$29,"") -> 0.2852338594 | G18: =IFERROR(G$28*C18,"") -> 57310.52596 | H18: =IFERROR(H$28*E18,"") -> 0 | I18: =IFERROR(I$28*F18,"") -> -1139853.894 | L18: 6600.309027 | M18: -21745.03557 | N18: =IFERROR(N$28*$F18,"") -> -181913.9152 | O18: ='4. Billing Det. for Def-Var'!T19*O$28 -> 0 | Q18: ='4. Billing Det. for Def-Var'!U19 -> 96974.26158
B19: ='4. Billing Det. for Def-Var'!B20 -> GENERAL SERVICE 700 to 4,999 KW SERVICE CLASSIFICATION | C19: =IFERROR('4. Billing Det. for Def-Var'!D20/'4. Billing Det. for Def-Var'!D$29,"") -> 0.2151698898 | D19: =IFERROR('4. Billing Det. for Def-Var'!F20/'4. Billing Det. for Def-Var'!F$29,"") -> 0.3442708929 | E19: =IFERROR('4. Billing Det. for Def-Var'!V20/'4. Billing Det. for Def-Var'!V$29,"") -> 0 | F19: =IFERROR('4. Billing Det. for Def-Var'!J20/'4. Billing Det. for Def-Var'!J$29,"") -> 0.2026720548 | G19: 43832.49434 | H19: 0 | I19: -809919.7316 | L19: 5048.078049 | M19: -16631.13595 | N19: -129258.3814 | O19: ='4. Billing Det. for Def-Var'!T20*O$28 -> 0 | Q19: ='4. Billing Det. for Def-Var'!U20 -> 53411.00046
B20: ='4. Billing Det. for Def-Var'!B21 -> LARGE USE SERVICE CLASSIFICATION | C20: =IFERROR('4. Billing Det. for Def-Var'!D21/'4. Billing Det. for Def-Var'!D$29,"") -> 0.09012618776 | D20: =IFERROR('4. Billing Det. for Def-Var'!F21/'4. Billing Det. for Def-Var'!F$29,"") -> 0.1565224636 | E20: =IFERROR('4. Billing Det. for Def-Var'!V21/'4. Billing Det. for Def-Var'!V$29,"") -> 0 | F20: =IFERROR('4. Billing Det. for Def-Var'!J21/'4. Billing Det. for Def-Var'!J$29,"") -> 0.09166493535 | G20: 18359.7046 | H20: 0 | I20: -366312.1683 | L20: 2114.440968 | M20: -6966.127476 | N20: -58461.24759 | O20: ='4. Billing Det. for Def-Var'!T21*O$28 -> 0 | Q20: ='4. Billing Det. for Def-Var'!U21 -> 34424.44646
B21: ='4. Billing Det. for Def-Var'!B22 -> STANDBY POWER SERVICE CLASSIFICATION | C21: =IFERROR('4. Billing Det. for Def-Var'!D22/'4. Billing Det. for Def-Var'!D$29,"") -> 0 | D21: =IFERROR('4. Billing Det. for Def-Var'!F22/'4. Billing Det. for Def-Var'!F$29,"") -> 0 | E21: =IFERROR('4. Billing Det. for Def-Var'!V22/'4. Billing Det. for Def-Var'!V$29,"") -> 0 | F21: =IFERROR('4. Billing Det. for Def-Var'!J22/'4. Billing Det. for Def-Var'!J$29,"") -> 0 | G21: 0 | H21: 0 | I21: 0 | L21: 0 | M21: 0 | N21: 0 | O21: ='4. Billing Det. for Def-Var'!T22*O$28 -> 0 | Q21: ='4. Billing Det. for Def-Var'!U22 -> 0
B22: ='4. Billing Det. for Def-Var'!B23 -> UNMETERED SCATTERED LOAD SERVICE CLASSIFICATION | C22: =IFERROR('4. Billing Det. for Def-Var'!D23/'4. Billing Det. for Def-Var'!D$29,"") -> 0.001516722268 | D22: =IFERROR('4. Billing Det. for Def-Var'!F23/'4. Billing Det. for Def-Var'!F$29,"") -> 0.002634096836 | E22: =IFERROR('4. Billing Det. for Def-Var'!V23/'4. Billing Det. for Def-Var'!V$29,"") -> 0 | F22: =IFERROR('4. Billing Det. for Def-Var'!J23/'4. Billing Det. for Def-Var'!J$29,"") -> 0.001542617658 | G22: 308.9731574 | H22: 0 | I22: -6164.621365 | L22: 35.58366087 | M22: -117.2320823 | N22: -983.8369762 | O22: ='4. Billing Det. for Def-Var'!T23*O$28 -> 0 | Q22: ='4. Billing Det. for Def-Var'!U23 -> 0
B23: ='4. Billing Det. for Def-Var'!B24 -> STREET LIGHTING SERVICE CLASSIFICATION | C23: =IFERROR('4. Billing Det. for Def-Var'!D24/'4. Billing Det. for Def-Var'!D$29,"") -> 0.009283633112 | D23: =IFERROR('4. Billing Det. for Def-Var'!F24/'4. Billing Det. for Def-Var'!F$29,"") -> 0.0161229179 | E23: =IFERROR('4. Billing Det. for Def-Var'!V24/'4. Billing Det. for Def-Var'!V$29,"") -> 0 | F23: =IFERROR('4. Billing Det. for Def-Var'!J24/'4. Billing Det. for Def-Var'!J$29,"") -> 0.009442134969 | G23: 1891.179088 | H23: 0 | I23: -37732.73739 | L23: 217.8023355 | M23: -717.5602709 | N23: -6021.920902 | O23: ='4. Billing Det. for Def-Var'!T24*O$28 -> 0 | Q23: ='4. Billing Det. for Def-Var'!U24 -> 0
B24: ='4. Billing Det. for Def-Var'!B25 -> EMBEDDED DISTRIBUTOR SERVICE CLASSIFICATION | C24: =IFERROR('4. Billing Det. for Def-Var'!D25/'4. Billing Det. for Def-Var'!D$29,"") -> 0.002696934852 | D24: =IFERROR('4. Billing Det. for Def-Var'!F25/'4. Billing Det. for Def-Var'!F$29,"") -> 0.004683776132 | E24: =IFERROR('4. Billing Det. for Def-Var'!V25/'4. Billing Det. for Def-Var'!V$29,"") -> 0 | F24: =IFERROR('4. Billing Det. for Def-Var'!J25/'4. Billing Det. for Def-Var'!J$29,"") -> 0.002742980314 | G24: =IFERROR(G$28*C24,"") -> 549.3955579 | H24: =IFERROR(H$28*E24,"") -> 0 | I24: =IFERROR(I$28*F24,"") -> -10961.52048 | L24: 63.27250359 | M24: -208.4543066 | N24: -1749.393601 | O24: ='4. Billing Det. for Def-Var'!T25*O$28 -> 0 | Q24: ='4. Billing Det. for Def-Var'!U25 -> 0
B25: ='4. Billing Det. for Def-Var'!B26 -> DISTRIBUTED GENERATION [DGEN] SERVICE CLASSIFICATION | C25: =IFERROR('4. Billing Det. for Def-Var'!D26/'4. Billing Det. for Def-Var'!D$29,"") -> 4.876984339e-05 | D25: =IFERROR('4. Billing Det. for Def-Var'!F26/'4. Billing Det. for Def-Var'!F$29,"") -> 8.469875655e-05 | E25: =IFERROR('4. Billing Det. for Def-Var'!V26/'4. Billing Det. for Def-Var'!V$29,"") -> 0 | F25: =IFERROR('4. Billing Det. for Def-Var'!J26/'4. Billing Det. for Def-Var'!J$29,"") -> 4.960250347e-05 | G25: 9.934958309 | H25: 0 | I25: -198.2219322 | L25: 1.144184143 | M25: -3.769569694 | N25: -31.63504371 | O25: ='4. Billing Det. for Def-Var'!T26*O$28 -> 0 | Q25: ='4. Billing Det. for Def-Var'!U26 -> 0
B26: ='4. Billing Det. for Def-Var'!B27 -> ENERGY FROM WASTE SERVICE CLASSIFICATION | C26: =IFERROR('4. Billing Det. for Def-Var'!D27/'4. Billing Det. for Def-Var'!D$29,"") -> 0 | D26: =IFERROR('4. Billing Det. for Def-Var'!F27/'4. Billing Det. for Def-Var'!F$29,"") -> 0 | E26: =IFERROR('4. Billing Det. for Def-Var'!V27/'4. Billing Det. for Def-Var'!V$29,"") -> 0 | F26: =IFERROR('4. Billing Det. for Def-Var'!J27/'4. Billing Det. for Def-Var'!J$29,"") -> 0 | G26: =IFERROR(G$28*C26,"") -> 0 | H26: =IFERROR(H$28*E26,"") -> 0 | I26: =IFERROR(I$28*F26,"") -> 0 | L26: 0 | M26: 0 | N26: 0 | O26: ='4. Billing Det. for Def-Var'!T27*O$28 -> 0 | Q26: ='4. Billing Det. for Def-Var'!U27 -> 0
C28: =SUM(C16:C27) -> 1 | D28: =SUM(D16:D27) -> 1 | E28: =SUM(E16:E27) -> 1 | F28: =SUM(F16:F27) -> 1 | G28: ='3. Continuity Schedule'!CN21 -> 203711.0972 | H28: ='3. Continuity Schedule'!CN22 -> -67001.35046 | I28: ='3. Continuity Schedule'!CN23 -> -3996208.221 | L28: ='3. Continuity Schedule'!CN26 -> 23460.89434 | M28: ='3. Continuity Schedule'!CN27 -> -77293.04489 | N28: ='3. Continuity Schedule'!CN28 -> -637771.1103 | O28: =SUM('3. Continuity Schedule'!CN30:CN37) -> 0 | Q28: =SUM(Q16:Q26) -> 722462.2356
G29: =SUM(G16:G27)-G28 -> 0 | H29: =SUM(H16:H27)-H28 -> 0 | I29: 0 | J29: 0 | K29: 0 | L29: 0 | M29: 0 | N29: 0 | O29: =SUM(#REF!)-#REF! ->  | Q29: 0
Q31: =SUM(G28:Q28) -> -3828639.5
B32: ** Used to allocate Account 1551 as this account records the variances arising from the Smart Metering Entity Charges to Residential and GS<50 customers.
B34: TO DO:
B35: Hid columns

Sheet 6. GA Calculation
A1: Back to Index
B2: =+'1. Information Sheet'!B2 -> INCENTIVE REGULATION MODEL FOR 2019 FILERS | E2: =+'1. Information Sheet'!E2 -> 0 | H2: =+'1. Information Sheet'!H2 -> 0
B13: The purpose of this tab is to calculate the GA rate riders for all current Class B customers of the distributor. Identify the total billed consumption for former Class B customers prior to becoming Class A customers in Column G. Effective January 2017, the billing determinant and all rate riders for the disposition of GA balances will be calculated on an energy basis (kWhs) regardless of the billing determinant used for distribution rates for the particular class (see Chapter 3, Filing Requirements, section 3.2.5.2)
C14: Total Metered Non-RPP consumption minus WMP | E14: Total Metered Class A Consumption in 2017 (partial and/or full year Class A customers)* | G14: Total Metered Consumption for New Class A customer(s) in the period prior to becoming Class A (i.e. Jan. 1 - June 30, 2017) | H14: Total Metered Consumption for New Class B customer(s) in the period after becoming Class B (i.e. Jul 1 - Dec 31, 2017) | I14: Metered Consumption for Current Class B Customers (Non-RPP consumption LESS WMP, Class A and new Class A's former Class B consumption if applicable) | K14: % of total kWh | L14: Total GA $ allocated to Current Class B Customers | M14: GA Rate Rider | O14: Revenue Reconciliation | P14: Variance
C15: kWh | D15: kW | E15: kWh | F15: kW | G15: kWh | H15: kWh | I15: kWh | J15: kW
B17: ='4. Billing Det. for Def-Var'!B17 -> RESIDENTIAL SERVICE CLASSIFICATION | C17: ='4. Billing Det. for Def-Var'!F17-'4. Billing Det. for Def-Var'!H17 -> 67917236 | I17: =C17-E17-G17-H17 -> 67917236 | K17: =IFERROR(I17/I$29,"") -> 0.05570335841 | L17: =IFERROR(L$29*K17,"") -> 83617.53415 | M17: =IFERROR(L17/I17,"") -> 0.001231168096 | N17: kwh | O17: =IFERROR(ROUND(M17,4)*I17,"") -> 81500.6832 | P17: =IFERROR(L17-O17,"") -> 2116.850945
B18: ='4. Billing Det. for Def-Var'!B18 -> GENERAL SERVICE LESS THAN 50 kW SERVICE CLASSIFICATION | C18: ='4. Billing Det. for Def-Var'!F18-'4. Billing Det. for Def-Var'!H18 -> 64916700 | I18: =C18-E18-G18-H18 -> 64916700 | K18: =IFERROR(I18/I$29,"") -> 0.05324242298 | L18: =IFERROR(L$29*K18,"") -> 79923.36995 | M18: =IFERROR(L18/I18,"") -> 0.001231168096 | N18: kwh | O18: =IFERROR(ROUND(M18,4)*I18,"") -> 77900.04 | P18: =IFERROR(L18-O18,"") -> 2023.329951
B19: ='4. Billing Det. for Def-Var'!B19 -> GENERAL SERVICE 50 TO 699 KW SERVICE CLASSIFICATION | C19: ='4. Billing Det. for Def-Var'!F19-'4. Billing Det. for Def-Var'!H19 -> 942099994.1 | E19: 17940621 | G19: 18747390 | I19: 905411983.1 | K19: 0.7425874663 | L19: 1114714.347 | M19: =IFERROR(L19/I19,"") -> 0.001231168096 | N19: kwh | O19: 1086494.38 | P19: 28219.96779
B20: ='4. Billing Det. for Def-Var'!B20 -> GENERAL SERVICE 700 to 4,999 KW SERVICE CLASSIFICATION | C20: ='4. Billing Det. for Def-Var'!F20-'4. Billing Det. for Def-Var'!H20 -> 717899117.9 | E20: 380800144 | G20: 209413484 | I20: 127685489.9 | K20: 0.1047232047 | L20: 157202.3015 | M20: 0.001231168096 | N20: kwh | O20: 153222.5878 | P20: 3979.713631
B21: ='4. Billing Det. for Def-Var'!B21 -> LARGE USE SERVICE CLASSIFICATION | C21: ='4. Billing Det. for Def-Var'!F21-'4. Billing Det. for Def-Var'!H21 -> 354854755 | E21: 337964015 | G21: 16890740 | I21: 0 | K21: 0 | L21: 0 | N21: kwh
B22: ='4. Billing Det. for Def-Var'!B22 -> STANDBY POWER SERVICE CLASSIFICATION | C22: ='4. Billing Det. for Def-Var'!F22-'4. Billing Det. for Def-Var'!H22 -> 0 | I22: 0 | K22: 0 | L22: 0 | N22: kwh
B23: ='4. Billing Det. for Def-Var'!B23 -> UNMETERED SCATTERED LOAD SERVICE CLASSIFICATION | C23: ='4. Billing Det. for Def-Var'!F23-'4. Billing Det. for Def-Var'!H23 -> 5971806 | I23: 5971806 | K23: 0.004897867899 | L23: 7352.297024 | M23: 0.001231168096 | N23: kwh | O23: 7166.1672 | P23: 186.1298239
B24: ='4. Billing Det. for Def-Var'!B24 -> STREET LIGHTING SERVICE CLASSIFICATION | C24: ='4. Billing Det. for Def-Var'!F24-'4. Billing Det. for Def-Var'!H24 -> 36552543 | I24: 36552543 | K24: 0.02997912641 | L24: 45002.32478 | M24: 0.001231168096 | N24: kwh | O24: 43863.0516 | P24: 1139.273177
B25: ='4. Billing Det. for Def-Var'!B25 -> EMBEDDED DISTRIBUTOR SERVICE CLASSIFICATION | C25: ='4. Billing Det. for Def-Var'!F25-'4. Billing Det. for Def-Var'!H25 -> 10618669 | I25: 10618669 | K25: 0.00870906356 | L25: 13073.3665 | M25: 0.001231168096 | N25: kwh | O25: 12742.4028 | P25: 330.9636969
B26: ='4. Billing Det. for Def-Var'!B26 -> DISTRIBUTED GENERATION [DGEN] SERVICE CLASSIFICATION | C26: ='4. Billing Det. for Def-Var'!F26-'4. Billing Det. for Def-Var'!H26 -> 192022 | I26: 192022 | K26: 0.0001574897761 | L26: 236.4113602 | M26: 0.001231168096 | N26: kwh | O26: 230.4264 | P26: 5.984960169
B27: ='4. Billing Det. for Def-Var'!B27 -> ENERGY FROM WASTE SERVICE CLASSIFICATION | C27: ='4. Billing Det. for Def-Var'!F27-'4. Billing Det. for Def-Var'!H27 -> 0
C29: =SUM(C17:C28) -> 2201022843 | D29: =SUM(D17:D28) -> 0 | E29: 736704780 | F29: 0 | G29: 245051614 | H29: 0 | I29: 1219266449 | J29: 0 | K29: 1 | L29: ='6B. GA Allocation_new Class B '!D28 -> 1501121.953 | O29: =SUM(O17:O26) -> 1463119.739 | P29: =SUM(P17:P26) -> 38002.21397
B32: *For new Class A customers (who became Class A in 2016), add their consumption only related to July to December period.
E34: =+C29-E29 -> 1464318063
B36: 2015 DATA | C36: Total Metered Non-RPP consumption minus WMP | E36: Total Metered Class A Consumption in 2015 (partial and/or full year Class A customers)* | G36: Total Metered Consumption for New Class A customer(s) in the period prior to becoming Class A (i.e. Jan. 1 - June 30, 2015)
C37: kWh | D37: kW | E37: kWh | F37: kW | G37: kWh
B39: =B17 -> RESIDENTIAL SERVICE CLASSIFICATION | C39: ='4. Billing Det. for Def-Var'!F49-'4. Billing Det. for Def-Var'!H49 -> 0
B40: =B18 -> GENERAL SERVICE LESS THAN 50 kW SERVICE CLASSIFICATION | C40: ='4. Billing Det. for Def-Var'!F50-'4. Billing Det. for Def-Var'!H50 -> 0
B41: GENERAL SERVICE 50 TO 699 KW SERVICE CLASSIFICATION | C41: ='4. Billing Det. for Def-Var'!F51-'4. Billing Det. for Def-Var'!H51 -> 0
B42: GENERAL SERVICE 700 to 4,999 KW SERVICE CLASSIFICATION | C42: ='4. Billing Det. for Def-Var'!F52-'4. Billing Det. for Def-Var'!H52 -> 0
B43: LARGE USE SERVICE CLASSIFICATION | C43: ='4. Billing Det. for Def-Var'!F53-'4. Billing Det. for Def-Var'!H53 -> 0
B44: STANDBY POWER SERVICE CLASSIFICATION | C44: ='4. Billing Det. for Def-Var'!F54-'4. Billing Det. for Def-Var'!H54 -> 0
B45: UNMETERED SCATTERED LOAD SERVICE CLASSIFICATION | C45: ='4. Billing Det. for Def-Var'!F55-'4. Billing Det. for Def-Var'!H55 -> 0
B46: STREET LIGHTING SERVICE CLASSIFICATION | C46: ='4. Billing Det. for Def-Var'!F56-'4. Billing Det. for Def-Var'!H56 -> 0
B47: EMBEDDED DISTRIBUTOR SERVICE CLASSIFICATION | C47: ='4. Billing Det. for Def-Var'!F57-'4. Billing Det. for Def-Var'!H57 -> 0
B48: DISTRIBUTED GENERATION [DGEN] SERVICE CLASSIFICATION | C48: ='4. Billing Det. for Def-Var'!F58-'4. Billing Det. for Def-Var'!H58 -> 0
B49: ENERGY FROM WASTE SERVICE CLASSIFICATION | C49: ='4. Billing Det. for Def-Var'!F59-'4. Billing Det. for Def-Var'!H59 -> 0
C51: =SUM(C39:C50) -> 0 | D51: =SUM(D39:D50) -> 0 | E51: 0 | F51: 0 | G51: 0

Sheet 6A. GA Allocation_Class A
A1: Back to Index
B2: =+'1. Information Sheet'!B2 -> INCENTIVE REGULATION MODEL FOR 2019 FILERS | E2: =+'1. Information Sheet'!E2 -> 0 | H2: =+'1. Information Sheet'!H2 -> 0
B12: This tab allocates the GA balance to former Class B customers who contributed to the current GA balance but are now Class A customers. The tables below calculate specific amounts for each customer who made the change. Consistent with both decisions for 2016 rates and EDDVAR, distributors are generally expected to settle the amount through 12 equal adjustments to bills. A one-time settlement is acceptable if the affected customer has expressed a clear preference for this approach. (see Filing Requirements section 3.2.5.2)
B14: Year of Group 1 Account Balance Last Disposed | C14: 2016 | D14: (e.g. If in the 2017 EDR process, you received approval to dispose the GA variance account balance as of December 31, 2014, please enter 2014 in cell C16.)
B16: Allocation of total Non-RPP consumption (kWh) between Class B and New Class A (Former Class B) customers
D17: Total | E17: 2017 | F17: 2015 | G17: 2014 | H17: 2013 | I17: 2012
B18: Total Class B Consumption for Years Since Last Disposition (Non-RPP consumption LESS WMP and Class A) | C18: A | D18: =SUM(E18:I18) -> 1464318063 | E18: ='6. GA Calculation'!C29-'6. GA Calculation'!E29 -> 1464318063
B19: New Class A Customer(s)' Former Class B Consumption | C19: B | D19: =SUM(E19:I19) -> 245051614 | E19: =E104 -> 245051614 | F19: =F104 -> 0 | G19: =G104 -> 0 | H19: =H104 -> 0 | I19: =I104 -> 0
B20: Portion of Consumption of Former Class B Customers | C20: C=B/A | D20: =IFERROR(+D19/D18,0) -> 0.1673486247
B23: Allocation of Total GA Balance $
B25: Total GA Balance | C25: D | D25: ='3. Continuity Schedule'!CN29 -> 1802821.682
B26: New Class A Customer(s)' Former Class B Portion of GA Balance | C26: E=C*D | D26: =+D20*D25 -> 301699.7291
B27: GA Balance to be disposed to Current Class B Customers (if no Class A to Class B Transition Customers) | C27: F=D-E | D27: =+D25-D26 -> 1501121.953
B29: Allocation of GA Balances to Former Class B Customers
B30: # of Former Class B customer(s) | E30: 3
B31: Customer | D31: Total Metered kWh Consumption for each new Class A customer for the period prior to becoming Class A | E31: Metered kWh Consumption for each new Class A customer for the period prior to becoming Class A in 2017 | F31: Metered kWh Consumption for each new Class A customer for the period prior to becoming Class A in 2015 | G31: Metered kWh Consumption for each new Class A customer for the period prior to becoming Class A in 2014 | H31: Metered kWh Consumption for each new Class A customer for the period prior to becoming Class A in 2013 | I31: Metered kWh Consumption for each new Class A customer for the period prior to becoming Class A in 2012 | J31: % of kWh | K31: Customer specific GA allocation for the period prior to becoming Class A | L31: Monthly Equal Payments
B32: Customer 1 | D32: =SUM(E32:I32) -> 960500 | E32: 960500 | J32: =IFERROR(+D32/$D$104,0) -> 0.003919582427 | K32: =+J32*$D$26 -> 1182.536956 | L32: =+K32/12 -> 98.54474637
B33: Customer 2 | D33: 928203 | E33: 928203 | J33: 0.003787785703 | K33: =+J33*$D$26 -> 1142.77392 | L33: =+K33/12 -> 95.23116003
B34: Customer 3 | D34: 1691400 | E34: 1691400 | J34: 0.006902219383 | K34: 2082.397718 | L34: 173.5331432
B35: Customer 4 | D35: 1147172 | E35: 1147172 | J35: 0.004681348477 | K35: 1412.361567 | L35: 117.6967973
B36: Customer 5 | D36: 1017070 | E36: 1017070 | J36: 0.004150431754 | K36: 1252.184136 | L36: 104.348678
B37: Customer 6 | D37: 1589783 | E37: 1589783 | J37: 0.006487543477 | K37: 1957.290109 | L37: 163.1075091
B38: Customer 7 | D38: 824305 | E38: 824305 | J38: 0.003363801554 | K38: 1014.858018 | L38: 84.57150146
B39: Customer 8 | D39: 1393237 | E39: 1393237 | J39: 0.005685483875 | K39: 1715.308945 | L39: 142.9424121
B40: Customer 9 | D40: 1088443 | E40: 1088443 | J40: 0.004441688762 | K40: 1340.056296 | L40: 111.671358
B41: Customer 10 | D41: 1328208 | E41: 1328208 | J41: 0.00542011529 | K41: 1635.247315 | L41: 136.2706096
B42: Customer 11 | D42: 842265 | E42: 842265 | J42: 0.003437092236 | K42: 1036.969797 | L42: 86.41414971
B43: Customer 12 | D43: 1598781 | E43: 1598781 | J43: 0.006524262272 | K43: 1968.36816 | L43: 164.03068
B44: Customer 13 | D44: 791305 | E44: 791305 | J44: 0.003229136046 | K44: 974.2294704 | L44: 81.1857892
B45: Customer 14 | D45: 1620160 | E45: 1620160 | J45: 0.006611505117 | K45: 1994.689303 | L45: 166.2241086
B46: Customer 15 | D46: 532837 | E46: 532837 | J46: 0.002174386821 | K46: 656.0119149 | L46: 54.66765957
B47: Customer 16 | D47: 706677 | E47: 706677 | J47: 0.002883788392 | K47: 870.0381767 | L47: 72.50318139
B48: Customer 17 | D48: 687044 | E48: 687044 | J48: 0.002803670577 | K48: 845.8666535 | L48: 70.48888779
B49: Customer 18 | D49: =SUM(E49:I49) -> 5013026 | E49: 5013026 | J49: 0.02045702094 | K49: 6171.877677 | L49: 514.3231397
B50: Customer 19 | D50: 4651661 | E50: 4651661 | J50: 0.01898237242 | K50: 5726.976618 | L50: 477.2480515
B51: Customer 20 | D51: 5686375 | E51: 5686375 | J51: 0.02320480534 | K51: 7000.883483 | L51: 583.4069569
B52: Customer 21 | D52: 4788812 | E52: 4788812 | J52: 0.01954205452 | K52: 5895.832553 | L52: 491.3193794
B53: Customer 22 | D53: 3131791 | E53: 3131791 | J53: 0.01278012803 | K53: 3855.761163 | L53: 321.3134303
B54: Customer 23 | D54: 4664121 | E54: 4664121 | J54: 0.01903321885 | K54: 5742.316972 | L54: 478.5264143
B55: Customer 24 | D55: 6349525 | E55: 6349525 | J55: 0.02591096992 | K55: 7817.332606 | L55: 651.4443838
B56: Customer 25 | D56: 6488598 | E56: 6488598 | J56: 0.02647849526 | K56: 7988.554847 | L56: 665.7129039
B57: Customer 26 | D57: 3388906 | E57: 3388906 | J57: 0.01382935597 | K57: 4172.312948 | L57: 347.6927457
B58: Customer 27 | D58: 1631885 | E58: 1631885 | J58: 0.00665935218 | K58: 2009.124749 | L58: 167.4270624
B59: Customer 28 | D59: 2183164 | E59: 2183164 | J59: 0.008908996617 | K59: 2687.841866 | L59: 223.9868221
B60: Customer 29 | D60: 8085375 | E60: 8085375 | J60: 0.03299457966 | K60: 9954.455746 | L60: 829.5379788
B61: Customer 30 | D61: 4852362 | E61: 4852362 | J61: 0.01980138764 | K61: 5974.073286 | L61: 497.8394405
B62: Customer 31 | D62: 3171753 | E62: 3171753 | J62: 0.01294320388 | K62: 3904.961103 | L62: 325.4134252
B63: Customer 32 | D63: 3043065 | E63: 3043065 | J63: 0.01241805736 | K63: 3746.524543 | L63: 312.2103786
B64: Customer 33 | D64: 4613116 | E64: 4613116 | J64: 0.01882507903 | K64: 5679.521243 | L64: 473.2934369
B65: Customer 34 | D65: 5423526 | E65: 5423526 | J65: 0.02213217824 | K65: 6677.27218 | L65: 556.4393483
B66: Customer 35 | D66: 818174 | E66: 818174 | J66: 0.003338782335 | K66: 1007.309726 | L66: 83.94247716
B67: Customer 36 | D67: 6203443 | E67: 6203443 | J67: 0.02531484245 | K67: 7637.481108 | L67: 636.456759
B68: Customer 37 | D68: 3862850 | E68: 3862850 | J68: 0.01576341383 | K68: 4755.81768 | L68: 396.31814
B69: Customer 38 | D69: 5419942 | E69: 5419942 | J69: 0.02211755275 | K69: 6672.859674 | L69: 556.0716395
B70: Customer 39 | D70: 4739231 | E70: 4739231 | J70: 0.01933972571 | K70: 5834.790008 | L70: 486.2325006
B71: Customer 40 | D71: 2320363 | E71: 2320363 | J71: 0.009468874586 | K71: 2856.756897 | L71: 238.0630748
B72: Customer 41 | D72: 1887093 | E72: 1887093 | J72: 0.007700798086 | K72: 2323.328696 | L72: 193.6107247
B73: Customer 42 | D73: 2268143 | E73: 2268143 | J73: 0.009255776622 | K73: 2792.465299 | L73: 232.7054416
B74: Customer 43 | D74: 5310048 | E74: 5310048 | J74: 0.02166910029 | K74: 6537.561687 | L74: 544.7968072
B75: Customer 44 | D75: 3462527 | E75: 3462527 | J75: 0.01412978655 | K75: 4262.952775 | L75: 355.2460646
B76: Customer 45 | D76: 1849455 | E76: 1849455 | J76: 0.007547205953 | K76: 2276.989991 | L76: 189.7491659
B77: Customer 46 | D77: 2581622 | E77: 2581622 | J77: 0.01053501325 | K77: 3178.410643 | L77: 264.8675536
B78: Customer 47 | D78: 2696305 | E78: 2696305 | J78: 0.01100300853 | K78: 3319.604694 | L78: 276.6337245
B79: Customer 48 | D79: 2102030 | E79: 2102030 | J79: 0.008577907183 | K79: 2587.952273 | L79: 215.6626894
B80: Customer 49 | D80: 4182143 | E80: 4182143 | J80: 0.01706637607 | K80: 5148.921035 | L80: 429.0767529
B81: Customer 50 | D81: 2804518 | E81: 2804518 | J81: 0.01144460122 | K81: 3452.833087 | L81: 287.7360906
B82: Customer 51 | D82: 3468996 | E82: 3468996 | J82: 0.01415618507 | K82: 4270.917201 | L82: 355.9097668
B83: Customer 52 | D83: 2524026 | E83: 2524026 | J83: 0.01029997705 | K83: 3107.500285 | L83: 258.9583571
B84: Customer 53 | D84: 3394919 | E84: 3394919 | J84: 0.01385389365 | K84: 4179.715962 | L84: 348.3096635
B85: Customer 54 | D85: 6511807 | E85: 6511807 | J85: 0.02657320592 | K85: 8017.129027 | L85: 668.0940856
B86: Customer 55 | D86: 78585 | E86: 78585 | J86: 0.000320687543 | K86: 96.75134484 | L86: 8.06261207
B87: Customer 56 | D87: 1717835 | E87: 1717835 | J87: 0.007010094616 | K87: 2114.943647 | L87: 176.2453039
B88: Customer 57 | D88: 7002862 | E88: 7002862 | J88: 0.02857708989 | K88: =+J88*$D$26 -> 8621.700276 | L88: 718.475023
B89: Customer 58 | D89: 2863021 | E89: 2863021 | J89: 0.01168333868 | K89: 3524.860114 | L89: 293.7383428
B90: Customer 59 | D90: 6188444 | E90: 6188444 | J90: 0.02525363493 | K90: 7619.014818 | L90: 634.9179015
B91: Customer 60 | D91: 4303498 | E91: 4303498 | J91: 0.01756159827 | K91: 5298.32944 | L91: 441.5274533
B92: Customer 61 | D92: 4468058 | E92: 4468058 | J92: 0.01823313027 | K92: 5500.930462 | L92: 458.4108718
B93: Customer 62 | D93: 5416405 | E93: 5416405 | J93: 0.02210311906 | K93: 6668.505032 | L93: 555.7087527
B94: Customer 63 | D94: 5714194 | E94: 5714194 | J94: 0.02331832836 | K94: 7035.133348 | L94: 586.2611124
B95: Customer 64 | D95: 2551093 | E95: 2551093 | J95: 0.01041043133 | K95: 3140.824312 | L95: 261.7353593
B96: Customer 65 | D96: =SUM(E96:I96) -> 1047243 | E96: 1047243 | J96: =IFERROR(+D96/$D$104,0) -> 0.004273560916 | K96: 1289.332171 | L96: 107.4443475
B97: Customer 66 | D97: 1640597 | E97: 1640597 | J97: 0.006694903874 | K97: =+J97*$D$26 -> 2019.850685 | L97: =+K97/12 -> 168.3208904
B98: Customer 67 | D98: 5688107 | E98: 5688107 | J98: 0.02321187323 | K98: 7003.015866 | L98: 583.5846555
B99: Customer 68 | D99: 2750222 | E99: 2750222 | J99: 0.01122303157 | K99: 3385.985584 | L99: 282.1654653
B100: Customer 69 | D100: 413107 | E100: 413107 | J100: 0.001685795875 | K100: 508.6041587 | L100: 42.38367989
B101: Customer 70 | D101: 7460376 | E101: 7460376 | J101: 0.03044410065 | K101: 9184.976917 | L101: 765.4147431
B102: Customer 71 | D102: 4535141 | E102: 4535141 | J102: 0.01850688076 | K102: 5583.520911 | L102: 465.2934092
B103: Customer 72 | D103: 16890740 | E103: 16890740 | J103: 0.06892727505 | K103: 20795.34021 | L103: 1732.945017
B104: Total | D104: =SUM(D32:D103) -> 245051614 | E104: =SUM(E32:E103) -> 245051614 | F104: =SUM(F32:F42) -> 0 | G104: =SUM(G32:G38) -> 0 | H104: 0 | I104: 0 | J104: =SUM(J32:J103) -> 1 | K104: =SUM(K32:K103) -> 301699.7291

Sheet 6B. GA Allocation_new Class B
A1: Back to Index
B2: =+'1. Information Sheet'!B2 -> INCENTIVE REGULATION MODEL FOR 2019 FILERS | E2: =+'1. Information Sheet'!E2 -> 0 | H2: =+'1. Information Sheet'!H2 -> 0
B12: This tab allocates the GA balance to former Class A customers who contributed to the current Class B GA balance once switched to Class B customers. The tables below calculate specific amounts for each customer who made the transition. Consistent with both decisions for 2016 rates and EDDVAR, distributors are generally expected to settle the amount through 12 equal adjustments to bills. A one-time settlement is acceptable if the affected customer has expressed a clear preference for this approach. (see Filing Requirements section 3.2.5.2)
B14: Year of Group 1 Account Balance Last Disposed | C14: 2016 | D14: (e.g. If in the 2017 EDR process, you received approval to dispose the GA variance account balance as of December 31, 2014, please enter 2014 in cell C16.)
B16: Allocation of total Non-RPP consumption (kWh) between Class B and New Class B (Former Class A) customers
D17: Total | E17: 2016 | F17: 2015 | G17: 2014 | H17: 2013 | I17: 2012
B18: Total Class B Consumption for Years Since Last Disposition (Non-RPP consumption LESS WMP and Class A) | C18: A | D18: =SUM(E18:I18) -> 1464318063 | E18: ='6. GA Calculation'!C29-'6. GA Calculation'!E29 -> 1464318063
B19: New Class B Customer(s)' Consumption | C19: B | D19: =SUM(E19:I19) -> 0 | E19: =E44 -> 0 | F19: =F44 -> 0 | G19: =G44 -> 0 | H19: =H44 -> 0 | I19: =I44 -> 0
B20: Portion of Consumption of New Class B Customers | C20: C=B/A | D20: =IFERROR(+D19/D18,0) -> 0
B23: Allocation of Total GA Balance $
B25: Total GA Calss B Balance adjusted for Class A | C25: D | D25: ='6A. GA Allocation_Class A'!D25 -> 1802821.682
B26: New Class B Customer(s)' Former Class A Portion of GA Balance attributable to Class B | C26: E=C*D | D26: =+D20*D25 -> 0
B27: New Class A Customer(s)' Former Class B Portion of GA Balance | C27: F=Sheet 6A | D27: ='6A. GA Allocation_Class A'!D26 -> 301699.7291
B28: GA Balance to be disposed to Current Class B Customers | C28: G=D-E-F | D28: =+D25-D26-D27 -> 1501121.953 | E28: Input into Sheet 6. GA Calculation | O28: s
B30: Allocation of GA Balances to Former Class A Customers
B31: # of Former Class A customer(s) | F31: 9
B32: Customer | D32: Total Metered kWh Consumption for each new Class B customer for the period after becoming Class B | E32: Metered kWh Consumption for each new Class B customer for the period after becoming Class B in 2017 | F32: Metered kWh Consumption for each new Class B customer for the period prior to becoming Class B in 2015 | G32: Metered kWh Consumption for each new Class B customer for the period prior to becoming Class B in 2014 | H32: Metered kWh Consumption for each new Class B customer for the period prior to becoming Class B in 2013 | I32: Metered kWh Consumption for each new Class B customer for the period prior to becoming Class B in 2012 | J32: % of kWh | K32: Customer specific GA allocation for the period after becoming Class B | L32: Monthly Equal Payments
B33: Customer 1 | D33: =SUM(E33:I33) -> 0 | E33: 0 | J33: =IFERROR(+D33/$D$44,0) -> 0 | K33: =+J33*$D$26 -> 0 | L33: =+K33/12 -> 0
B34: Customer 2 | D34: 0 | J34: 0 | K34: =+J34*$D$26 -> 0 | L34: =+K34/12 -> 0
B35: Customer 3 | D35: 0 | J35: 0 | K35: 0 | L35: 0
J36: 0 | K36: 0 | L36: 0
J37: 0 | K37: 0 | L37: 0
J38: 0 | K38: 0 | L38: 0
J39: 0 | K39: 0 | L39: 0
J40: 0 | K40: 0 | L40: 0
J41: 0 | K41: 0 | L41: 0
J42: 0 | K42: 0 | L42: 0
J43: 0 | K43: 0 | L43: 0
B44: Total | D44: =SUM(D33:D43) -> 0 | E44: =SUM(E33:E43) -> 0 | F44: =SUM(F33:F43) -> 0 | G44: =SUM(G33:G39) -> 0 | H44: 0 | I44: 0 | J44: =SUM(J33:J43) -> 0 | K44: =SUM(K33:K43) -> 0

Sheet 7. CBR Calculation
A1: Back to Index
B2: =+'1. Information Sheet'!B2 -> INCENTIVE REGULATION MODEL FOR 2019 FILERS | E2: =+'1. Information Sheet'!E2 -> 0 | H2: =+'1. Information Sheet'!H2 -> 0
B13: The purpose of this tab is to calculate the CBR rate riders for all current Class B customers of the distributor. Identify and input the total billed consumption for former Class B customers prior to becoming Class A customers in Column H.
B15: Account 1580
B16: Variance WMS – Sub-account CBR Class A | C16: ='3. Continuity Schedule'!CN24 -> 0.0003465000003
B17: Variance WMS – Sub-account CBR Class B | C17: ='3. Continuity Schedule'!CN25 -> -127013.1579
C19: Total Metered LESS WMP | E19: Total Metered Class A Consumption/Demand in 2017 (partial and/or full year Class A customers)* | G19: Total Metered Consumption/Demand for New Class A customer(s) in the period prior to becoming Class A (i.e. Jan 1 - Jun 30, 2017) | I19: Total Metered Consumption for New Class B customer(s) in the period after becoming Class B (i.e. Jul 1 - Dec 31, 2017) | K19: Metered Consumption for Current Class B Customers (metered consumption/demand LESS WMP, Class A and new Class A's former Class B, new Class B's former Class A, if applicable) | M19: % of total kWh | N19: Total CBR $ allocated to Current Class B Customers | O19: CBR Rate Rider to 4th Decimal | Q19: Revenue Reconciliation | R19: Variance | T19: CBR Rate Rider to 5th Decimal
C20: kWh | D20: kW | E20: kWh | F20: kW | G20: kWh | H20: kW | I20: kWh | J20: kW | K20: kWh | L20: kW
B22: ='4. Billing Det. for Def-Var'!B17 -> RESIDENTIAL SERVICE CLASSIFICATION | C22: ='4. Billing Det. for Def-Var'!D17-'4. Billing Det. for Def-Var'!H17 -> 1239997164 | D22: ='4. Billing Det. for Def-Var'!E17-'4. Billing Det. for Def-Var'!I17 -> 0 | E22: ='6. GA Calculation'!E17 -> 0 | G22: ='6. GA Calculation'!G17 -> 0 | K22: =C22-E22-G22-I22 -> 1239997164 | L22: =D22-F22-H22-J22 -> 0 | M22: =IFERROR(K22/K$34,"") -> 0.4291450226 | N22: =IFERROR(N$34*M22,"") -> -50245.77986 | O22: =IFERROR(IF($L22=0,$N22/$K22,$N22/$L22),"") -> -4.052088288e-05 | P22: kwh | Q22: =IFERROR(IF(L22=0,ROUND(O22,5)*K22,ROUND(O22,5)*L22),"") -> -49599.88656 | R22: =IFERROR(N22-Q22,"") -> -645.8932957 | T22: =IFERROR(IF($L22=0,$N22/$K22,$N22/$L22),"") -> -4.052088288e-05
B23: ='4. Billing Det. for Def-Var'!B18 -> GENERAL SERVICE LESS THAN 50 kW SERVICE CLASSIFICATION | C23: ='4. Billing Det. for Def-Var'!D18-'4. Billing Det. for Def-Var'!H18 -> 334239807 | D23: ='4. Billing Det. for Def-Var'!E18-'4. Billing Det. for Def-Var'!I18 -> 0 | E23: ='6. GA Calculation'!E18 -> 0 | G23: ='6. GA Calculation'!G18 -> 0 | K23: =C23-E23-G23-I23 -> 334239807 | L23: =D23-F23-H23-J23 -> 0 | M23: =IFERROR(K23/K$34,"") -> 0.1156755464 | N23: =IFERROR(N$34*M23,"") -> -13543.69207 | O23: =IFERROR(IF($L23=0,$N23/$K23,$N23/$L23),"") -> -4.052088288e-05 | P23: kwh | Q23: =IFERROR(IF(L23=0,ROUND(O23,5)*K23,ROUND(O23,5)*L23),"") -> -13369.59228 | R23: =IFERROR(N23-Q23,"") -> -174.0997937 | T23: =IFERROR(IF($L23=0,$N23/$K23,$N23/$L23),"") -> -4.052088288e-05
B24: ='4. Billing Det. for Def-Var'!B19 -> GENERAL SERVICE 50 TO 699 KW SERVICE CLASSIFICATION | C24: ='4. Billing Det. for Def-Var'!D19-'4. Billing Det. for Def-Var'!H19 -> 1104201851 | D24: ='4. Billing Det. for Def-Var'!E19-'4. Billing Det. for Def-Var'!I19 -> 3132362.561 | E24: ='6. GA Calculation'!E19 -> 17940621 | F24: 57890.34 | G24: ='6. GA Calculation'!G19 -> 18747390 | H24: 59747.78 | K24: 1067513840 | L24: 3014724.441 | M24: 0.3694510474 | N24: -43256.60329 | O24: -0.01434844349 | P24: kW | Q24: -43261.29573 | R24: 4.692439535 | T24: -0.01434844349
B25: ='4. Billing Det. for Def-Var'!B20 -> GENERAL SERVICE 700 to 4,999 KW SERVICE CLASSIFICATION | C25: ='4. Billing Det. for Def-Var'!D20-'4. Billing Det. for Def-Var'!H20 -> 784587280.6 | D25: ='4. Billing Det. for Def-Var'!E20-'4. Billing Det. for Def-Var'!I20 -> 1880549.094 | E25: ='6. GA Calculation'!E20 -> 380800144 | F25: 845573.13 | G25: ='6. GA Calculation'!G20 -> 209413484 | H25: 487842.48 | I25: ='6. GA Calculation'!H20 -> 0 | K25: 194373652.6 | L25: 547133.4843 | M25: 0.06726990025 | N25: -7876.192012 | O25: -0.01439537561 | P25: kW | Q25: -7878.722173 | R25: 2.530161327 | T25: -0.01439537561
B26: ='4. Billing Det. for Def-Var'!B21 -> LARGE USE SERVICE CLASSIFICATION | C26: ='4. Billing Det. for Def-Var'!D21-'4. Billing Det. for Def-Var'!H21 -> 354854755 | D26: ='4. Billing Det. for Def-Var'!E21-'4. Billing Det. for Def-Var'!I21 -> 653806 | E26: ='6. GA Calculation'!E21 -> 337964015 | F26: 359418.56 | G26: ='6. GA Calculation'!G21 -> 16890740 | H26: 294388.18 | K26: 0 | L26: =D26-F26-H26-J26 -> -0.74 | M26: 0 | N26: 0 | O26: 0 | P26: kW | Q26: 0 | R26: 0 | T26: 0
B27: ='4. Billing Det. for Def-Var'!B22 -> STANDBY POWER SERVICE CLASSIFICATION | C27: ='4. Billing Det. for Def-Var'!D22-'4. Billing Det. for Def-Var'!H22 -> 0 | D27: ='4. Billing Det. for Def-Var'!E22-'4. Billing Det. for Def-Var'!I22 -> 0 | E27: ='6. GA Calculation'!E22 -> 0 | G27: ='6. GA Calculation'!G22 -> 0 | K27: 0 | L27: 0 | M27: 0 | N27: 0 | P27: kW
B28: ='4. Billing Det. for Def-Var'!B23 -> UNMETERED SCATTERED LOAD SERVICE CLASSIFICATION | C28: ='4. Billing Det. for Def-Var'!D23-'4. Billing Det. for Def-Var'!H23 -> 5971806 | D28: ='4. Billing Det. for Def-Var'!E23-'4. Billing Det. for Def-Var'!I23 -> 0 | E28: ='6. GA Calculation'!E23 -> 0 | G28: ='6. GA Calculation'!G23 -> 0 | K28: 5971806 | L28: 0 | M28: 0.002066755389 | N28: -241.9828515 | O28: -4.052088288e-05 | P28: kWh | Q28: -238.87224 | R28: -3.110611516 | T28: -4.052088288e-05
B29: ='4. Billing Det. for Def-Var'!B24 -> STREET LIGHTING SERVICE CLASSIFICATION | C29: ='4. Billing Det. for Def-Var'!D24-'4. Billing Det. for Def-Var'!H24 -> 36552543 | D29: ='4. Billing Det. for Def-Var'!E24-'4. Billing Det. for Def-Var'!I24 -> 104166 | E29: ='6. GA Calculation'!E24 -> 0 | G29: ='6. GA Calculation'!G24 -> 0 | K29: 36552543 | L29: 104166 | M29: 0.01265030465 | N29: -1481.141314 | O29: -0.01421904762 | P29: kW | Q29: -1481.24052 | R29: 0.09920608025 | T29: =IFERROR(IF($L29=0,$N29/$K29,$N29/$L29),"") -> -0.01421904762
B30: ='4. Billing Det. for Def-Var'!B25 -> EMBEDDED DISTRIBUTOR SERVICE CLASSIFICATION | C30: ='4. Billing Det. for Def-Var'!D25-'4. Billing Det. for Def-Var'!H25 -> 10618669 | D30: ='4. Billing Det. for Def-Var'!E25-'4. Billing Det. for Def-Var'!I25 -> 0 | E30: ='6. GA Calculation'!E25 -> 0 | G30: ='6. GA Calculation'!G25 -> 0 | K30: 10618669 | L30: 0 | M30: 0.003674967234 | N30: -430.2778429 | O30: -4.052088288e-05 | P30: kWh | Q30: -424.74676 | R30: -5.531082905 | T30: -4.052088288e-05
B31: ='4. Billing Det. for Def-Var'!B26 -> DISTRIBUTED GENERATION [DGEN] SERVICE CLASSIFICATION | C31: ='4. Billing Det. for Def-Var'!D26-'4. Billing Det. for Def-Var'!H26 -> 192022 | D31: ='4. Billing Det. for Def-Var'!E26-'4. Billing Det. for Def-Var'!I26 -> 0 | E31: ='6. GA Calculation'!E26 -> 0 | G31: ='6. GA Calculation'!G26 -> 0 | K31: 192022 | L31: 0 | M31: 6.645602742e-05 | N31: -7.780900973 | O31: -4.052088288e-05 | P31: kWh | Q31: -7.68088 | R31: -0.1000209726 | T31: -4.052088288e-05
B32: ='4. Billing Det. for Def-Var'!B27 -> ENERGY FROM WASTE SERVICE CLASSIFICATION | C32: ='4. Billing Det. for Def-Var'!D27-'4. Billing Det. for Def-Var'!H27 -> 0 | D32: ='4. Billing Det. for Def-Var'!E27-'4. Billing Det. for Def-Var'!I27 -> 0 | E32: ='6. GA Calculation'!E27 -> 0 | G32: ='6. GA Calculation'!G27 -> 0 | K32: 0 | L32: 0 | M32: 0 | N32: 0 | O32: =IFERROR(IF(L32=0,N32/K32,N32/L32),"") ->  | T32: =IFERROR(IF(Q32=0,S32/P32,S32/Q32),"") -> 
B33: ='4. Billing Det. for Def-Var'!B28 -> 0
C34: =SUM(C22:C33) -> 3871215898 | D34: =SUM(D22:D33) -> 5770883.655 | E34: 736704780 | F34: 1262882.03 | G34: 245051614 | H34: =SUM(H22:H33) -> 841978.44 | I34: =SUM(I22:I33) -> 0 | J34: 0 | K34: 2889459504 | L34: 3666023.185 | M34: 1 | N34: ='7B. CBR Allocation_new Class B'!D28 -> -117083.4501 | Q34: =SUM(Q22:Q33) -> -116262.0371 | R34: =SUM(R22:R33) -> -821.4129979
N35: from Sheet 7B
E36: =+C34-E34 -> 3134511118 | Q36: NOTE: if rate rider is at 5 decimal places, then the balance dispostion is in full
B37: *For new Class A customers (who became Class A in 2016), add their consumption only related to July to December period.

Sheet 7A. CBR Allocation_Class A
A1: Back to Index
B2: =+'1. Information Sheet'!B2 -> INCENTIVE REGULATION MODEL FOR 2019 FILERS | E2: =+'1. Information Sheet'!E2 -> 0 | H2: =+'1. Information Sheet'!H2 -> 0
B12: This tab allocates the CBR balance to former Class B customers who contributed to the current CBR balance but are now Class A customers. The tables below calculate specific amounts for each customer who made the change. Consistent with both decisions for 2016 rates and EDDVAR, distributors are generally expected to settle the amount through 12 equal adjustments to bills. A one-time settlement is acceptable if the affected customer has expressed a clear preference for this approach. (see Filing Requirements section 3.2.5.2)
B14: Year of Group 1 Account Balance Last Disposed | C14: 2016
B16: Allocation of total Non-RPP consumption (kWh) between Class B and New Class A (Former Class B) customers
D17: Total | E17: 2017
B18: Total MeteredConsumption for Years Since Last Disposition (consumption LESS WMP and Class A) | C18: A | D18: =SUM(E18:I18) -> 3134511118 | E18: ='7. CBR Calculation'!C34-'7. CBR Calculation'!E34 -> 3134511118
B19: New Class A Customer(s)' Former Class B Consumption | C19: B | D19: =SUM(E19:I19) -> 245051614 | E19: =E105 -> 245051614
B20: Portion of Consumption of Former Class B Customers | C20: C=B/A | D20: =IFERROR(+D19/D18,0) -> 0.07817857548
B23: Allocation of Total CBR Class B Balance $
B25: Total CBR-Class B Balance | C25: D | D25: ='7. CBR Calculation'!C17 -> -127013.1579
B26: New Class A Customer(s)' Former Class B Portion of CBR-Class B Balance | C26: E=C*D | D26: =+D20*D25 -> -9929.707751
B27: CBR-Class B Balance to be disposed to Current Class B Customers (if no Class A to Class B Transition Customers) | C27: F=D-E | D27: =+D25-D26 -> -117083.4501
B29: Allocation of CBR Class B Balances to Former Class B Customers
B31: # of Former Class B customer(s) | E31: 2
B32: Customer | D32: Total Metered kWh Consumption for each new Class A customer for the period prior to becoming Class A | E32: Metered kWh Consumption for each new Class A customer for the period prior to becoming Class A in 2017 | J32: % of kWh | K32: Customer specific CBR-Class B allocation for the period prior to becoming Class A | L32: Monthly Equal Payments
B33: Customer 1 | D33: =SUM(E33:I33) -> 960500 | E33: 960500 | J33: =IFERROR(+D33/$D$105,0) -> 0.003919582427 | K33: =+J33*$D$26 -> -38.92030801 | L33: =+K33/12 -> -3.243359001
B34: Customer 2 | D34: 928203 | E34: 928203 | J34: 0.003787785703 | K34: =+J34*$D$26 -> -37.61160505 | L34: =+K34/12 -> -3.134300421
B35: Customer 3 | D35: 1691400 | E35: 1691400 | J35: 0.006902219383 | K35: -68.53702131 | L35: -5.711418442
B36: Customer 4 | D36: 1147172 | E36: 1147172 | J36: 0.004681348477 | K36: -46.48442226 | L36: -3.873701855
B37: Customer 5 | D37: 1017070 | E37: 1017070 | J37: 0.004150431754 | K37: -41.21257435 | L37: -3.434381196
B38: Customer 6 | D38: 1589783 | E38: 1589783 | J38: 0.006487543477 | K38: -64.41941075 | L38: -5.368284229
B39: Customer 7 | D39: 824305 | E39: 824305 | J39: 0.003363801554 | K39: =+J39*$D$26 -> -33.40156636 | L39: -2.783463864
B40: Customer 8 | D40: 1393237 | E40: 1393237 | J40: 0.005685483875 | K40: -56.4551933 | L40: -4.704599442
B41: Customer 9 | D41: 1088443 | E41: 1088443 | J41: 0.004441688762 | K41: -44.10467133 | L41: -3.675389277
B42: Customer 10 | D42: 1328208 | E42: 1328208 | J42: 0.00542011529 | K42: -53.82016081 | L42: -4.485013401
B43: Customer 11 | D43: 842265 | E43: 842265 | J43: 0.003437092236 | K43: -34.12932142 | L43: -2.844110118
B44: Customer 12 | D44: 1598781 | E44: 1598781 | J44: =IFERROR(+D44/$D$105,0) -> 0.006524262272 | K44: =+J44*$D$26 -> -64.78401765 | L44: =+K44/12 -> -5.398668138
B45: Customer 13 | D45: 791305 | E45: 791305 | J45: 0.003229136046 | K45: -32.06437723 | L45: -2.672031436
B46: Customer 14 | D46: 1620160 | E46: 1620160 | J46: 0.006611505117 | K46: -65.65031361 | L46: -5.470859467
B47: Customer 15 | D47: 532837 | E47: 532837 | J47: 0.002174386821 | K47: -21.59102567 | L47: -1.799252139
B48: Customer 16 | D48: 706677 | E48: 706677 | J48: 0.002883788392 | K48: -28.63517595 | L48: -2.386264663
B49: Customer 17 | D49: 687044 | E49: 687044 | J49: 0.002803670577 | K49: -27.83962946 | L49: -2.319969122
B50: Customer 18 | D50: 5013026 | E50: 5013026 | J50: 0.02045702094 | K50: -203.1322394 | L50: -16.92768662
B51: Customer 19 | D51: 4651661 | E51: 4651661 | J51: 0.01898237242 | K51: -188.4894106 | L51: -15.70745088
B52: Customer 20 | D52: 5686375 | E52: 5686375 | J52: 0.02320480534 | K52: -230.4169354 | L52: -19.20141128
B53: Customer 21 | D53: 4788812 | E53: 4788812 | J53: 0.01954205452 | K53: -194.0468902 | L53: -16.17057418
B54: Customer 22 | D54: 3131791 | E54: 3131791 | J54: 0.01278012803 | K54: -126.9029363 | L54: -10.57524469
B55: Customer 23 | D55: 4664121 | E55: 4664121 | J55: 0.01903321885 | K55: -188.9943008 | L55: -15.74952507
B56: Customer 24 | D56: 6349525 | E56: 6349525 | J56: 0.02591096992 | K56: -257.2883589 | L56: -21.44069657
B57: Customer 25 | D57: 6488598 | E57: 6488598 | J57: 0.02647849526 | K57: -262.9237196 | L57: -21.91030997
B58: Customer 26 | D58: 3388906 | E58: 3388906 | J58: 0.01382935597 | K58: -137.3214631 | L58: -11.44345526
B59: Customer 27 | D59: 1631885 | E59: 1631885 | J59: 0.00665935218 | K59: -66.12542096 | L59: -5.510451747
B60: Customer 28 | D60: 2183164 | E60: 2183164 | J60: 0.008908996617 | K60: -88.46373275 | L60: -7.37197773
B61: Customer 29 | D61: 8085375 | E61: 8085375 | J61: 0.03299457966 | K61: -327.6265334 | L61: -27.30221112
B62: Customer 30 | D62: 4852362 | E62: 4852362 | J62: 0.01980138764 | K62: -196.6219923 | L62: -16.38516603
B63: Customer 31 | D63: 3171753 | E63: 3171753 | J63: 0.01294320388 | K63: -128.5222318 | L63: -10.71018599
B64: Customer 32 | D64: 3043065 | E64: 3043065 | J64: 0.01241805736 | K64: -123.3076805 | L64: -10.27564004
B65: Customer 33 | D65: 4613116 | E65: 4613116 | J65: 0.01882507903 | K65: -186.9275332 | L65: -15.57729443
B66: Customer 34 | D66: 5423526 | E66: 5423526 | J66: 0.02213217824 | K66: -219.7660619 | L66: -18.31383849
B67: Customer 35 | D67: 818174 | E67: 818174 | J67: 0.003338782335 | K67: -33.15313283 | L67: -2.762761069
B68: Customer 36 | D68: 6203443 | E68: 6203443 | J68: 0.02531484245 | K68: -251.3689873 | L68: -20.94741561
B69: Customer 37 | D69: 3862850 | E69: 3862850 | J69: 0.01576341383 | K69: -156.5260924 | L69: -13.04384104
B70: Customer 38 | D70: 5419942 | E70: 5419942 | J70: 0.02211755275 | K70: -219.620835 | L70: -18.30173625
B71: Customer 39 | D71: 4739231 | E71: 4739231 | J71: 0.01933972571 | K71: -192.0378243 | L71: -16.00315202
B72: Customer 40 | D72: 2320363 | E72: 2320363 | J72: 0.009468874586 | K72: -94.02315737 | L72: -7.835263114
B73: Customer 41 | D73: 1887093 | E73: 1887093 | J73: 0.007700798086 | K73: -76.46667444 | L73: -6.37222287
B74: Customer 42 | D74: 2268143 | E74: 2268143 | J74: 0.009255776622 | K74: -91.90715686 | L74: -7.658929738
B75: Customer 43 | D75: 5310048 | E75: 5310048 | J75: 0.02166910029 | K75: -215.1678331 | L75: -17.93065276
B76: Customer 44 | D76: 3462527 | E76: 3462527 | J76: 0.01412978655 | K76: -140.304651 | L76: -11.69205425
B77: Customer 45 | D77: 1849455 | E77: 1849455 | J77: 0.007547205953 | K77: -74.94154945 | L77: -6.245129121
B78: Customer 46 | D78: 2581622 | E78: 2581622 | J78: 0.01053501325 | K78: -104.6096027 | L78: -8.717466892
B79: Customer 47 | D79: 2696305 | E79: 2696305 | J79: 0.01100300853 | K79: -109.2566591 | L79: -9.104721593
B80: Customer 48 | D80: 2102030 | E80: 2102030 | J80: 0.008577907183 | K80: -85.17611144 | L80: -7.098009287
B81: Customer 49 | D81: 4182143 | E81: 4182143 | J81: 0.01706637607 | K81: -169.4641267 | L81: -14.12201056
B82: Customer 50 | D82: 2804518 | E82: 2804518 | J82: 0.01144460122 | K82: -113.6415454 | L82: -9.470128785
B83: Customer 51 | D83: 3468996 | E83: 3468996 | J83: 0.01415618507 | K83: -140.5667806 | L83: -11.71389839
B84: Customer 52 | D84: 2524026 | E84: 2524026 | J84: 0.01029997705 | K84: -102.2757619 | L84: -8.522980161
B85: Customer 53 | D85: 3394919 | E85: 3394919 | J85: 0.01385389365 | K85: -137.5651152 | L85: -11.4637596
B86: Customer 54 | D86: 6511807 | E86: 6511807 | J86: 0.02657320592 | K86: -263.8641688 | L86: -21.98868073
B87: Customer 55 | D87: 78585 | E87: 78585 | J87: 0.000320687543 | K87: -3.184333581 | L87: -0.2653611318
B88: Customer 56 | D88: 1717835 | E88: 1717835 | J88: 0.007010094616 | K88: -69.60819084 | L88: -5.80068257
B89: Customer 57 | D89: 7002862 | E89: 7002862 | J89: 0.02857708989 | K89: -283.7621509 | L89: -23.64684591
B90: Customer 58 | D90: 2863021 | E90: 2863021 | J90: 0.01168333868 | K90: -116.0121386 | L90: -9.667678219
B91: Customer 59 | D91: 6188444 | E91: 6188444 | J91: 0.02525363493 | K91: -250.7612145 | L91: -20.89676788
B92: Customer 60 | D92: 4303498 | E92: 4303498 | J92: 0.01756159827 | K92: -174.3815384 | L92: -14.53179487
B93: Customer 61 | D93: 4468058 | E93: 4468058 | J93: 0.01823313027 | K93: -181.0496549 | L93: -15.08747124
B94: Customer 62 | D94: 5416405 | E94: 5416405 | J94: 0.02210311906 | K94: -219.4775126 | L94: -18.28979272
B95: Customer 63 | D95: 5714194 | E95: 5714194 | J95: 0.02331832836 | K95: -231.5441858 | L95: -19.29534882
B96: Customer 64 | D96: 2551093 | E96: 2551093 | J96: 0.01041043133 | K96: -103.3725407 | L96: -8.614378389
B97: Customer 65 | D97: =SUM(E97:I97) -> 1047243 | E97: 1047243 | J97: 0.004273560916 | K97: -42.43521095 | L97: -3.536267579
B98: Customer 66 | D98: 1640597 | E98: 1640597 | J98: 0.006694903874 | K98: -66.47843889 | L98: -5.539869908
B99: Customer 67 | D99: 5688107 | E99: 5688107 | J99: 0.02321187323 | K99: -230.4871176 | L99: -19.2072598
B100: Customer 68 | D100: 2750222 | E100: 2750222 | J100: 0.01122303157 | K100: -111.4414236 | L100: -9.286785297
B101: Customer 69 | D101: 413107 | E101: 413107 | J101: 0.001685795875 | K101: -16.73946036 | L101: -1.39495503
B102: Customer 70 | D102: 7460376 | E102: 7460376 | J102: 0.03044410065 | K102: -302.3010221 | L102: -25.19175185
B103: Customer 71 | D103: 4535141 | E103: 4535141 | J103: 0.01850688076 | K103: -183.7679173 | L103: -15.31399311
B104: Customer 72 | D104: 16890740 | E104: 16890740 | J104: 0.06892727505 | K104: -684.4276973 | L104: -57.03564144
B105: Total | D105: =SUM(D33:D104) -> 245051614 | E105: =SUM(E33:E104) -> 245051614 | F105: =SUM(F33:F43) -> 0 | G105: =SUM(G33:G39) -> 0 | H105: 0 | I105: 0 | J105: =SUM(J33:J104) -> 1 | K105: =SUM(K33:K104) -> -9929.707751

Sheet 7B. CBR Allocation_new Class B
A1: Back to Index
B2: =+'1. Information Sheet'!B2 -> INCENTIVE REGULATION MODEL FOR 2019 FILERS | E2: =+'1. Information Sheet'!E2 -> 0 | H2: =+'1. Information Sheet'!H2 -> 0
B12: This tab allocates the CBR-Class B balance to former Class A customers who contributed to the current CBR-Class B balance once switched to Class B customers. The tables below calculate specific amounts for each customer who made the transition. Consistent with both decisions for 2016 rates and EDDVAR, distributors are generally expected to settle the amount through 12 equal adjustments to bills. A one-time settlement is acceptable if the affected customer has expressed a clear preference for this approach. (see Filing Requirements section 3.2.5.2)
B14: Year of Group 1 Account Balance Last Disposed | C14: 2016
B16: Allocation of total Non-RPP consumption (kWh) between Class B and New Class B (Former Class A) customers
D17: Total | E17: 2016 | F17: 2015 | G17: 2014 | H17: 2013 | I17: 2012
B18: Total Class B Consumption for Years Since Last Disposition (Non-RPP consumption LESS WMP and Class A) | C18: A | D18: =SUM(E18:I18) -> 3134511118 | E18: ='7. CBR Calculation'!C34-'7. CBR Calculation'!E34 -> 3134511118
B19: New Class B Customer(s)' Consumption | C19: B | D19: =SUM(E19:I19) -> 0 | E19: =E45 -> 0 | F19: =F45 -> 0 | G19: =G45 -> 0 | H19: =H45 -> 0 | I19: =I45 -> 0
B20: Portion of Consumption of New Class B Customers | C20: C=B/A | D20: =IFERROR(+D19/D18,0) -> 0
B23: Allocation of Total CBR-Class B Balance $
B25: Total CBR-Calss B Balance adjusted for Class A | C25: D | D25: ='7. CBR Calculation'!C17 -> -127013.1579
B26: New Class B Customer(s)' Former Class A Portion of CBR-Class B Balance attributable to Class B | C26: E=C*D | D26: =+D20*D25 -> 0
B27: New Class A Customer(s)' Former Class B Portion of CBR-Class B Balance | C27: F=Sheet 6A | D27: ='7A. CBR Allocation_Class A'!D26 -> -9929.707751
B28: CBR-Class B Balance to be disposed to Current Class B Customers | C28: G=D-E-F | D28: =+D25-D26-D27 -> -117083.4501 | E28: Input into Sheet 7. CBR Calculation
B30: Allocation of CBR-Class B Balances to Former Class A Customers
B32: # of Former Class B customer(s) | E32: 2
B33: Customer | D33: Total Metered kWh Consumption for each new Class B customer for the period after becoming Class B | E33: Metered kWh Consumption for each new Class B customer for the period after becoming Class B in 2016 | J33: % of kWh | K33: Customer specific CBR-Class B allocation for the period after becoming Class B | L33: Monthly Equal Payments
B34: Customer 1 | D34: =SUM(E34:I34) -> 0 | E34: ='6B. GA Allocation_new Class B '!E33 -> 0 | J34: =IFERROR(+D34/$D$45,0) -> 0 | K34: =+J34*$D$26 -> 0 | L34: =+K34/12 -> 0
J35: 0 | K35: =+J35*$D$26 -> 0 | L35: =+K35/12 -> 0
J36: 0 | K36: 0 | L36: 0
J37: 0 | K37: 0 | L37: 0
J38: 0 | K38: 0 | L38: 0
J39: 0 | K39: 0 | L39: 0
J40: 0 | K40: 0 | L40: 0
J41: 0 | K41: 0 | L41: 0
J42: 0 | K42: 0 | L42: 0
J43: 0 | K43: 0 | L43: 0
J44: 0 | K44: 0 | L44: 0
B45: Total | D45: =SUM(D34:D44) -> 0 | E45: =SUM(E34:E44) -> 0 | F45: =SUM(F34:F44) -> 0 | G45: =SUM(G34:G40) -> 0 | H45: 0 | I45: 0 | J45: =SUM(J34:J44) -> 0 | K45: =SUM(K34:K44) -> 0

Sheet 8. Calculation of Def-Var RR
A1: Back to Index
B2: =+'1. Information Sheet'!B2 -> INCENTIVE REGULATION MODEL FOR 2019 FILERS | E2: =+'1. Information Sheet'!E2 -> 0 | H2: =+'1. Information Sheet'!H2 -> 0
B11: Input required at cell D13 only. This workshseet calculates rate riders related to the Deferral/Variance Account Disposition (if applicable) and rate riders for Account 1568. Rate Riders will not be generated for the microFIT class.
B12: Default Rate Rider Recovery Period (in months) | D12: 12
B13: Proposed Rate Rider Recovery Period (in months) | D13: 12 | E13: =IF(D13>0, "Rate Rider Recovery to be used below", "If no rate rider recovery period is proposed then the default recovery period of 12 months will be used") -> Rate Rider Recovery to be used below
D15: Total Metered kWh | E15: Metered kW or kVA | F15: Total Metered kWh less WMP consumption | G15: Total Metered kW less WMP consumption | H15: Allocation of Group 1 Account Balances to All Classes 2 | I15: Allocation of Group 1 Account Balances to Non-WMP Classes Only (if Applicable) 2 | J15: Deferral/Variance Account Rate Rider 2 | K15: Deferral/Variance Account Rate Rider for Non-WMP (if applicable) 2 | L15: Account 1568 Rate Rider
B16: Rate Class | C16: Unit | M16: Revenue Reconciliation: | O16: Revenue Reconcilation 1
B17: ='4. Billing Det. for Def-Var'!B17 -> RESIDENTIAL SERVICE CLASSIFICATION | C17: ='4. Billing Det. for Def-Var'!C17 -> kWh | D17: ='4. Billing Det. for Def-Var'!D17 -> 1239997164 | E17: ='4. Billing Det. for Def-Var'!E17 -> 0 | F17: ='4. Billing Det. for Def-Var'!J17 -> 1239997164 | G17: ='4. Billing Det. for Def-Var'!K17 -> 0 | H17: =SUM('5. Allocating Def-Var Balances'!G16:O16)-I17 -> -1500216.738 | J17: =IF(ISERROR(H17/D17),0,IF(OR(ISBLANK(D$13), OR(D$13=0, D$13="")), H17/D17/(D$12/12), H17/D17/(D$13/12))) -> -0.001209854975 | K17: =IF(ISERROR(I17/F17),0,IF(OR(ISBLANK(D$13), OR(D$13=0, D$13="")), I17/F17/(D$12/12), I17/F17/(D$13/12))) -> 0 | L17: =IF(ISERROR('4. Billing Det. for Def-Var'!U17/D17), 0, IF(OR(ISBLANK(D$13), OR(D$13=0, D$13="")), ('4. Billing Det. for Def-Var'!U17/D17)/(D$12/12), ('4. Billing Det. for Def-Var'!U17/D17)/(D$13/12))) -> 0.0002141610232 | M17: =J17*D17 -> -1500216.738 | N17: =K17*F17 -> 0
B18: ='4. Billing Det. for Def-Var'!B18 -> GENERAL SERVICE LESS THAN 50 kW SERVICE CLASSIFICATION | C18: ='4. Billing Det. for Def-Var'!C18 -> kWh | D18: ='4. Billing Det. for Def-Var'!D18 -> 334239807 | E18: ='4. Billing Det. for Def-Var'!E18 -> 0 | F18: ='4. Billing Det. for Def-Var'!J18 -> 334239807 | G18: ='4. Billing Det. for Def-Var'!K18 -> 0 | H18: =SUM('5. Allocating Def-Var Balances'!G17:O17)-I18 -> -391275.2946 | J18: =IF(ISERROR(H18/D18),0,IF(OR(ISBLANK(D$13), OR(D$13=0, D$13="")), H18/D18/(D$12/12), H18/D18/(D$13/12))) -> -0.001170642414 | K18: =IF(ISERROR(I18/F18),0,IF(OR(ISBLANK(D$13), OR(D$13=0, D$13="")), I18/F18/(D$12/12), I18/F18/(D$13/12))) -> 0 | L18: =IF(ISERROR('4. Billing Det. for Def-Var'!U18/D18), 0, IF(OR(ISBLANK(D$13), OR(D$13=0, D$13="")), ('4. Billing Det. for Def-Var'!U18/D18)/(D$12/12), ('4. Billing Det. for Def-Var'!U18/D18)/(D$13/12))) -> 0.0008140666071 | M18: =J18*D18 -> -391275.2946 | N18: =K18*F18 -> 0
B19: ='4. Billing Det. for Def-Var'!B19 -> GENERAL SERVICE 50 TO 699 KW SERVICE CLASSIFICATION | C19: ='4. Billing Det. for Def-Var'!C19 -> kW | D19: ='4. Billing Det. for Def-Var'!D19 -> 1107692803 | E19: ='4. Billing Det. for Def-Var'!E19 -> 3139342.391 | F19: ='4. Billing Det. for Def-Var'!J19 -> 1104201851 | G19: ='4. Billing Det. for Def-Var'!K19 -> 3132362.561 | H19: =SUM('5. Allocating Def-Var Balances'!G18:O18)-I19 -> 42165.79942 | I19: ='5. Allocating Def-Var Balances'!I18+'5. Allocating Def-Var Balances'!N18 -> -1321767.809 | J19: =IF(ISERROR(H19/E19),0,IF(OR(ISBLANK(D$13), OR(D$13=0, D$13="")), H19/E19/(D$12/12), H19/E19/(D$13/12))) -> 0.01343141148 | K19: =IF(ISERROR(I19/G19),0,IF(OR(ISBLANK(D$13), OR(D$13=0, D$13="")), I19/G19/(D$12/12), I19/G19/(D$13/12))) -> -0.4219715258 | L19: =IF(ISERROR('4. Billing Det. for Def-Var'!U19/E19), 0, IF(OR(ISBLANK(D13), OR(D13=0, D13="")), ('4. Billing Det. for Def-Var'!U19/E19)/(D12/12), ('4. Billing Det. for Def-Var'!U19/E19)/(D13/12))) -> 0.03088999208 | M19: =J19*E19 -> 42165.79942 | N19: =K19*G19 -> -1321767.809
B20: ='4. Billing Det. for Def-Var'!B20 -> GENERAL SERVICE 700 to 4,999 KW SERVICE CLASSIFICATION | C20: ='4. Billing Det. for Def-Var'!C20 -> kW | D20: ='4. Billing Det. for Def-Var'!D20 -> 847190593.7 | E20: ='4. Billing Det. for Def-Var'!E20 -> 1984988.844 | F20: ='4. Billing Det. for Def-Var'!J20 -> 784587280.6 | G20: ='4. Billing Det. for Def-Var'!K20 -> 1880549.094 | H20: =SUM('5. Allocating Def-Var Balances'!G19:O19)-I20 -> 32249.43644 | I20: ='5. Allocating Def-Var Balances'!I19+'5. Allocating Def-Var Balances'!N19 -> -939178.113 | J20: =IF(ISERROR(H20/E20),0,IF(OR(ISBLANK(D$13), OR(D$13=0, D$13="")), H20/E20/(D$12/12), H20/E20/(D$13/12))) -> 0.01624665878 | K20: =IF(ISERROR(I20/G20),0,IF(OR(ISBLANK(D$13), OR(D$13=0, D$13="")), I20/G20/(D$12/12), I20/G20/(D$13/12))) -> -0.4994169607 | L20: =IF(ISERROR('4. Billing Det. for Def-Var'!U20/E20), 0, IF(OR(ISBLANK(D13), OR(D13=0, D13="")), ('4. Billing Det. for Def-Var'!U20/E20)/(D12/12), ('4. Billing Det. for Def-Var'!U20/E20)/(D13/12))) -> 0.02690745624 | M20: =J20*E20 -> 32249.43644 | N20: =K20*G20 -> -939178.113
B21: ='4. Billing Det. for Def-Var'!B21 -> LARGE USE SERVICE CLASSIFICATION | C21: ='4. Billing Det. for Def-Var'!C21 -> kW | D21: ='4. Billing Det. for Def-Var'!D21 -> 354854755 | E21: ='4. Billing Det. for Def-Var'!E21 -> 653806 | F21: ='4. Billing Det. for Def-Var'!J21 -> 354854755 | G21: ='4. Billing Det. for Def-Var'!K21 -> 653806 | H21: =SUM('5. Allocating Def-Var Balances'!G20:O20)-I21 -> -411265.3978 | J21: =IF(ISERROR(H21/E21),0,IF(OR(ISBLANK(D$13), OR(D$13=0, D$13="")), H21/E21/(D$12/12), H21/E21/(D$13/12))) -> -0.6290327678 | K21: =IF(ISERROR(I21/G21),0,IF(OR(ISBLANK(D$13), OR(D$13=0, D$13="")), I21/G21/(D$12/12), I21/G21/(D$13/12))) -> 0 | L21: =IF(ISERROR('4. Billing Det. for Def-Var'!U21/E21), 0, IF(OR(ISBLANK(D$13), OR(D$13=0, D$13="")), ('4. Billing Det. for Def-Var'!U21/E21)/(D$12/12), ('4. Billing Det. for Def-Var'!U21/E21)/(D$13/12))) -> 0.05265238688 | M21: =J21*E21 -> -411265.3978 | N21: =K21*G21 -> 0
B22: ='4. Billing Det. for Def-Var'!B22 -> STANDBY POWER SERVICE CLASSIFICATION | C22: ='4. Billing Det. for Def-Var'!C22 -> kW | D22: ='4. Billing Det. for Def-Var'!D22 -> 0 | E22: ='4. Billing Det. for Def-Var'!E22 -> 0 | F22: ='4. Billing Det. for Def-Var'!J22 -> 0 | G22: ='4. Billing Det. for Def-Var'!K22 -> 0 | H22: =SUM('5. Allocating Def-Var Balances'!G21:O21)-I22 -> 0 | J22: =IF(ISERROR(H22/E22),0,IF(OR(ISBLANK(D$13), OR(D$13=0, D$13="")), H22/E22/(D$12/12), H22/E22/(D$13/12))) -> 0 | K22: 0 | L22: =IF(ISERROR('4. Billing Det. for Def-Var'!U22/E22), 0, IF(OR(ISBLANK(D13), OR(D13=0, D13="")), ('4. Billing Det. for Def-Var'!U22/E22)/(D12/12), ('4. Billing Det. for Def-Var'!U22/E22)/(D13/12))) -> 0 | M22: =J22*E22 -> 0 | N22: =K22*G22 -> 0
B23: ='4. Billing Det. for Def-Var'!B23 -> UNMETERED SCATTERED LOAD SERVICE CLASSIFICATION | C23: ='4. Billing Det. for Def-Var'!C23 -> kWh | D23: ='4. Billing Det. for Def-Var'!D23 -> 5971806 | E23: ='4. Billing Det. for Def-Var'!E23 -> 0 | F23: ='4. Billing Det. for Def-Var'!J23 -> 5971806 | G23: ='4. Billing Det. for Def-Var'!K23 -> 0 | H23: =SUM('5. Allocating Def-Var Balances'!G22:O22)-I23 -> -6921.133605 | J23: =IF(ISERROR(H23/D23),0,IF(OR(ISBLANK(D$13), OR(D$13=0, D$13="")), H23/D23/(D$12/12), H23/D23/(D$13/12))) -> -0.001158968259 | K23: =IF(ISERROR(I23/F23),0,IF(OR(ISBLANK(D$13), OR(D$13=0, D$13="")), I23/F23/(D$12/12), I23/F23/(D$13/12))) -> 0 | L23: =IF(ISERROR('4. Billing Det. for Def-Var'!U23/D23), 0, IF(OR(ISBLANK(D13), OR(D13=0, D13="")), ('4. Billing Det. for Def-Var'!U23/D23)/(D12/12), ('4. Billing Det. for Def-Var'!U23/D23)/(D13/12))) -> 0 | M23: =J23*D23 -> -6921.133605 | N23: =K23*F23 -> 0
B24: ='4. Billing Det. for Def-Var'!B24 -> STREET LIGHTING SERVICE CLASSIFICATION | C24: ='4. Billing Det. for Def-Var'!C24 -> kW | D24: ='4. Billing Det. for Def-Var'!D24 -> 36552543 | E24: ='4. Billing Det. for Def-Var'!E24 -> 104166 | F24: ='4. Billing Det. for Def-Var'!J24 -> 36552543 | G24: ='4. Billing Det. for Def-Var'!K24 -> 104166 | H24: =SUM('5. Allocating Def-Var Balances'!G23:O23)-I24 -> -42363.23714 | J24: =IF(ISERROR(H24/E24),0,IF(OR(ISBLANK(D$13), OR(D$13=0, D$13="")), H24/E24/(D$12/12), H24/E24/(D$13/12))) -> -0.4066896793 | K24: =IF(ISERROR(I24/G24),0,IF(OR(ISBLANK(D$13), OR(D$13=0, D$13="")), I24/G24/(D$12/12), I24/G24/(D$13/12))) -> 0 | L24: =IF(ISERROR('4. Billing Det. for Def-Var'!U24/E24), 0, IF(OR(ISBLANK(D13), OR(D13=0, D13="")), ('4. Billing Det. for Def-Var'!U24/E24)/(D12/12), ('4. Billing Det. for Def-Var'!U24/E24)/(D13/12))) -> 0 | M24: =J24*E24 -> -42363.23714 | N24: =K24*G24 -> 0
B25: ='4. Billing Det. for Def-Var'!B25 -> EMBEDDED DISTRIBUTOR SERVICE CLASSIFICATION | C25: ='4. Billing Det. for Def-Var'!C25 -> kWh | D25: ='4. Billing Det. for Def-Var'!D25 -> 10618669 | E25: ='4. Billing Det. for Def-Var'!E25 -> 0 | F25: ='4. Billing Det. for Def-Var'!J25 -> 10618669 | G25: ='4. Billing Det. for Def-Var'!K25 -> 0 | H25: =SUM('5. Allocating Def-Var Balances'!G24:O24)-I25 -> -12306.70033 | J25: =IF(ISERROR(H25/D25),0,IF(OR(ISBLANK(D$13), OR(D$13=0, D$13="")), H25/D25/(D$12/12), H25/D25/(D$13/12))) -> -0.001158968259 | K25: =IF(ISERROR(I25/G25),0,IF(OR(ISBLANK(D$13), OR(D$13=0, D$13="")), I25/G25/(D$12/12), I25/G25/(D$13/12))) -> 0 | L25: =IF(ISERROR('4. Billing Det. for Def-Var'!U25/D25), 0, IF(OR(ISBLANK(D13), OR(D13=0, D13="")), ('4. Billing Det. for Def-Var'!U25/D25)/(D12/12), ('4. Billing Det. for Def-Var'!U25/D25)/(D13/12))) -> 0 | M25: =J25*D25 -> -12306.70033 | N25: =K25*G25 -> 0
B26: ='4. Billing Det. for Def-Var'!B26 -> DISTRIBUTED GENERATION [DGEN] SERVICE CLASSIFICATION | C26: ='4. Billing Det. for Def-Var'!C26 -> kWh | D26: ='4. Billing Det. for Def-Var'!D26 -> 192022 | E26: ='4. Billing Det. for Def-Var'!E26 -> 0 | F26: ='4. Billing Det. for Def-Var'!J26 -> 192022 | G26: ='4. Billing Det. for Def-Var'!K26 -> 0 | H26: =SUM('5. Allocating Def-Var Balances'!G25:O25)-I26 -> -222.5474031 | J26: =IF(ISERROR(H26/D26),0,IF(OR(ISBLANK(D$13), OR(D$13=0, D$13="")), H26/D26/(D$12/12), H26/D26/(D$13/12))) -> -0.001158968259 | K26: 0 | L26: =IF(ISERROR('4. Billing Det. for Def-Var'!U26/D26), 0, IF(OR(ISBLANK(D13), OR(D13=0, D13="")), ('4. Billing Det. for Def-Var'!U26/D26)/(D12/12), ('4. Billing Det. for Def-Var'!U26/D26)/(D13/12))) -> 0 | M26: =J26*D26 -> -222.5474031 | N26: 0
B27: ='4. Billing Det. for Def-Var'!B27 -> ENERGY FROM WASTE SERVICE CLASSIFICATION | C27: ='4. Billing Det. for Def-Var'!C27 -> kW | D27: ='4. Billing Det. for Def-Var'!D27 -> 0 | E27: ='4. Billing Det. for Def-Var'!E27 -> 0 | F27: ='4. Billing Det. for Def-Var'!J27 -> 0 | G27: ='4. Billing Det. for Def-Var'!K27 -> 0 | H27: =SUM('5. Allocating Def-Var Balances'!G26:O26)-I27 -> 0 | J27: =IF(ISERROR(H27/E27),0,IF(OR(ISBLANK(D$13), OR(D$13=0, D$13="")), H27/E27/(D$12/12), H27/E27/(D$13/12))) -> 0 | K27: 0 | L27: =IF(ISERROR('4. Billing Det. for Def-Var'!U27/D27), 0, IF(OR(ISBLANK(D13), OR(D13=0, D13="")), ('4. Billing Det. for Def-Var'!U27/D27)/(D12/12), ('4. Billing Det. for Def-Var'!U27/D27)/(D13/12))) -> 0 | M27: =SUM(M17:M26) -> -2290155.813 | N27: =SUM(N17:N26) -> -2260945.922 | O27: =SUM(M27:N27) -> -4551101.735
O28: =O27-'3. Continuity Schedule'!CN40+'3. Continuity Schedule'!CN24+'7. CBR Calculation'!N34+'7A. CBR Allocation_Class A'!K105+'7B. CBR Allocation_new Class B'!K45 -> -8.622009773e-10
B30: 1 When calculating the revenue reconciliation for distributors with Class A customers, the balances of sub-account 1580-CBR Class A and B will not be taken into consideration since the rate riders, if any, are calculated outside of the model.
B31: 2 Only for rate classes with WMP customers are the Deferral/Variance Account Rate Riders for Non-WMP (column H and J) calculated separately. For all rate classes without WMP customers, balances in account 1580 and 1588 are included in column H and disposed through a combined Deferral/Variance Account and Rate Rider.

Sheet 9. STS-Tax Change
A1: Back to Index | U1: Tax Rates | V1: Effective
B2: =+'1. Information Sheet'!B2 -> INCENTIVE REGULATION MODEL FOR 2019 FILERS | E2: =+'1. Information Sheet'!E2 -> 0 | H2: =+'1. Information Sheet'!H2 -> 0 | I2: =+'1. Information Sheet'!I2 -> 0 | L2: =+'1. Information Sheet'!L2 -> 0 | O2: =+'1. Information Sheet'!O2 -> 0 | U2: Federal & Provincial | V2: 2016-01-01
U3: As of June 20, 2012
U5: Federal income tax | V5: 0.38
U6: General corporate rate | V6: -0.1
U7: Federal tax abatement | V7: =SUM(V5:V6) -> 0.28
U8: Adjusted federal rate | V8: -0.13
U9: Rate reduction | V9: =V7+V8 -> 0.15
U10: Ontario income tax | V10: 0.115
U12: Combined federal and Ontario | V12: =V9+V10 -> 0.265
B13: Summary - Sharing of Tax Change Forecast Amounts
U14: Federal & Ontario Small Business
B15: ="For the " & '1. Information Sheet'!G32 & " year, enter any Tax Credits from the Cost of Service Tax Calculation (Positive #)" -> For the 2015 year, enter any Tax Credits from the Cost of Service Tax Calculation (Positive #) | M15: 87800 | U15: Federal small business threshold | V15: 500000
U16: Ontario Small Business Threshold | V16: 500000
B18: 1. Tax Related Amounts Forecast from Capital Tax Rate Changes | M18: ='1. Information Sheet'!G32 -> 2015 | O18: 2019 | U18: Federal small business rate | V18: 0.105
B19: Taxable Capital (if you are not claiming capital tax, please enter your OEB-Approved Rate Base) | M19: 404618521.9 | O19: =M19 -> 404618521.9
U20: Ontario small business rate | V20: 0.045
B21: Deduction from taxable capital up to $15,000,000 | O21: =M21 -> 0
B23: Net Taxable Capital | M23: =M19-M21 -> 404618521.9 | O23: =O19-O21 -> 404618521.9
B25: Rate | O25: 0 | U25: Ontario Tax Rate (Maximum 11.5%)
U26: Federal tax rate (Maximum 15%)
B27: Ontario Capital Tax (Deductible, not grossed-up) | M27: =IF(M23>0, M23*M25, 0)*181/365 -> 0 | O27: 0 | U27: Combined tax rate (Maximum 26.5%)
B29: 2. Tax Related Amounts Forecast from lncome Tax Rate Changes
B30: Regulatory Taxable Income | M30: 5574756.881 | O30: =M30 -> 5574756.881
B32: Corporate Tax Rate | M32: 0.265 | O32: =IF(ratebase>15000000, 26.5%, IF(ratebase<10000000, 15%, 15%+11.5%*((ratebase-10000000)/5000000))) -> 0.265
B34: Tax Impact | M34: =M30*M32-M15 -> 1389510.574 | O34: =O30*O32-M15 -> 1389510.574
B36: Grossed-up Tax Amount | M36: =M34/(1-M32) -> 1890490.576 | O36: =O34/(1-O32) -> 1890490.576
B38: Tax Related Amounts Forecast from Capital Tax Rate Changes | M38: =M27 -> 0 | O38: =O27 -> 0
B40: Tax Related Amounts Forecast from lncome Tax Rate Changes | M40: =M36 -> 1890490.576 | O40: =O36 -> 1890490.576
B42: Total Tax Related Amounts | M42: =SUM(M40,M38) -> 1890490.576 | O42: =SUM(O40,O38) -> 1890490.576
B44: Incremental Tax Savings | O44: =O42-M42 -> 0
B46: Sharing of Tax Amount (50%) | O46: =0.5*O44 -> 0

Sheet 10. Shared Tax - RR
A1: Back to Index
B2: =+'1. Information Sheet'!B2 -> INCENTIVE REGULATION MODEL FOR 2019 FILERS | E2: =+'1. Information Sheet'!E2 -> 0 | H2: =+'1. Information Sheet'!H2 -> 0
B12: Calculation of Rebased Revenue Requirement and Allocation of Tax Sharing Amount. Enter data from the last OEB-Approved Cost of Service application in columns D through I.
B13: As per Chapter 3 Filing Requirements, shared tax rate riders are based on a 1 year disposition.
B15: Rate Class | D15: Re-based Billed Customers or Connections | E15: Re-based Billed kWh | F15: Re-based Billed kW | G15: Re-based Service Charge | H15: Re-based Distribution Volumetric Rate kWh | I15: Re-based Distribution Volumetric Rate kW | J15: Service Charge Revenue | K15: Distribution Volumetric Rate Revenue kWh | L15: Distribution Volumetric Rate Revenue kW | M15: Revenue Requirement from Rates | N15: Service Charge % Revenue | O15: Distribution Volumetric Rate % Revenue kWh | P15: Distribution Volumetric Rate % Revenue kW | Q15: Total % Revenue
D16: A | E16: B | F16: C | G16: D | H16: E | I16: F | J16: G = A * D *12 | K16: H = B * E | L16: I = C * F | M16: J = G + H + I | N16: K = G / J | O16: L = H / J | P16: M = I / J | Q16: N = J / R
B17: ='4. Billing Det. for Def-Var'!B17 -> RESIDENTIAL SERVICE CLASSIFICATION | C17: ='4. Billing Det. for Def-Var'!C17 -> kWh | D17: 140979.1817 | E17: 1308264983 | F17: 0 | G17: 11.07 | H17: 0.0155 | I17: 0 | J17: =G17*D17*12 -> 18727674.5 | K17: =E17*H17 -> 20278107.24 | L17: =F17*I17 -> 0 | M17: =J17+K17+L17 -> 39005781.74 | N17: =IF(ISERROR(J17/M17),0,J17/M17) -> 0.4801256035 | O17: =IF(ISERROR(K17/M17),0,K17/M17) -> 0.5198743965 | P17: =IF(ISERROR(L17/M17),0,L17/M17) -> 0 | Q17: =IF(ISERROR(M17/M$30),0,M17/M$30) -> 0.5606736075
B18: ='4. Billing Det. for Def-Var'!B18 -> GENERAL SERVICE LESS THAN 50 kW SERVICE CLASSIFICATION | C18: ='4. Billing Det. for Def-Var'!C18 -> kWh | D18: 8989.460008 | E18: 354668870.3 | F18: 0 | G18: 24.39 | H18: 0.0161 | I18: 0 | J18: 2631035.155 | K18: 5710168.812 | L18: 0 | M18: 8341203.967 | N18: =IF(ISERROR(J18/M18),0,J18/M18) -> 0.3154263061 | O18: =IF(ISERROR(K18/M18),0,K18/M18) -> 0.6845736939 | P18: =IF(ISERROR(L18/M18),0,L18/M18) -> 0 | Q18: =IF(ISERROR(M18/M$30),0,M18/M$30) -> 0.1198974283
B19: ='4. Billing Det. for Def-Var'!B19 -> GENERAL SERVICE 50 TO 699 KW SERVICE CLASSIFICATION | C19: ='4. Billing Det. for Def-Var'!C19 -> kW | D19: 1490.72449 | E19: 1064497599 | F19: 2979825.698 | G19: 121.18 | H19: 0 | I19: 2.7446 | J19: 2167751.925 | K19: 0 | L19: 8178429.611 | M19: 10346181.54 | N19: 0.2095219301 | O19: 0 | P19: =IF(ISERROR(L19/M19),0,L19/M19) -> 0.7904780699 | Q19: 0.1487172072
B20: ='4. Billing Det. for Def-Var'!B20 -> GENERAL SERVICE 700 to 4,999 KW SERVICE CLASSIFICATION | C20: ='4. Billing Det. for Def-Var'!C20 -> kW | D20: 114.6164114 | E20: 806154179.9 | F20: 1969146.402 | G20: 1093.35 | H20: 0 | I20: 3.1861 | J20: 1503790.241 | K20: 0 | L20: 6273897.352 | M20: 7777687.593 | N20: 0.1933467015 | O20: 0 | P20: 0.8066532985 | Q20: 0.1117973789
B21: ='4. Billing Det. for Def-Var'!B21 -> LARGE USE SERVICE CLASSIFICATION | C21: ='4. Billing Det. for Def-Var'!C21 -> kW | D21: 6 | E21: 382619513.4 | F21: 719987.0916 | G21: 4549.67 | H21: 0 | I21: 2.4122 | J21: 327576.24 | K21: 0 | L21: 1736752.862 | M21: 2064329.102 | N21: 0.1586841166 | O21: 0 | P21: 0.8413158834 | Q21: 0.02967290472
B22: ='4. Billing Det. for Def-Var'!B22 -> STANDBY POWER SERVICE CLASSIFICATION | C22: ='4. Billing Det. for Def-Var'!C22 -> kW | D22: 1 | E22: 0 | F22: 54580 | G22: 0 | H22: 0 | I22: 1.6224 | J22: 0 | K22: 0 | L22: 88550.592 | M22: 88550.592 | N22: 0 | O22: 0 | P22: 1 | Q22: 0.001272836427
B23: ='4. Billing Det. for Def-Var'!B23 -> UNMETERED SCATTERED LOAD SERVICE CLASSIFICATION | C23: ='4. Billing Det. for Def-Var'!C23 -> kWh | D23: 1561.718162 | E23: 5931732.904 | F23: 0 | G23: 1.05 | H23: 0.0192 | I23: 0 | J23: 19677.64884 | K23: 113889.2718 | L23: 0 | M23: 133566.9206 | N23: 0.1473242682 | O23: 0.8526757318 | P23: 0 | Q23: 0.001919906329
B24: ='4. Billing Det. for Def-Var'!B24 -> STREET LIGHTING SERVICE CLASSIFICATION | C24: ='4. Billing Det. for Def-Var'!C24 -> kW | D24: 22334.56352 | E24: 33306954.55 | F24: 100671.8914 | G24: 2.22 | H24: 0 | I24: 11.1563 | J24: 594992.7721 | K24: 0 | L24: 1123125.823 | M24: 1718118.595 | N24: 0.3463048325 | O24: 0 | P24: 0.6536951675 | Q24: 0.02469643493
B25: ='4. Billing Det. for Def-Var'!B25 -> EMBEDDED DISTRIBUTOR SERVICE CLASSIFICATION | C25: ='4. Billing Det. for Def-Var'!C25 -> kWh | D25: 1 | E25: 17012414 | F25: 40073 | G25: 4021.92 | H25: 0 | I25: 0 | J25: 48263.04 | K25: 0 | L25: 0 | M25: 48263.04 | N25: 1 | O25: 0 | P25: 0 | Q25: 0.0006937385059
B26: ='4. Billing Det. for Def-Var'!B26 -> DISTRIBUTED GENERATION [DGEN] SERVICE CLASSIFICATION | C26: ='4. Billing Det. for Def-Var'!C26 -> kWh | D26: 67.58333333 | E26: 178815.8383 | F26: 0 | G26: 55.59 | H26: 0 | I26: 0 | J26: =G26*D26*12 -> 45083.49 | K26: =E26*H26 -> 0 | L26: =F26*I26 -> 0 | M26: =J26+K26+L26 -> 45083.49 | N26: =IF(ISERROR(J26/M26),0,J26/M26) -> 1 | O26: =IF(ISERROR(K26/M26),0,K26/M26) -> 0 | P26: =IF(ISERROR(L26/M26),0,L26/M26) -> 0 | Q26: 0.0006480352873
B27: ='4. Billing Det. for Def-Var'!B27 -> ENERGY FROM WASTE SERVICE CLASSIFICATION | C27: ='4. Billing Det. for Def-Var'!C27 -> kW | D27: 1 | E27: 0 | F27: 0 | G27: 61 | H27: 0 | I27: 0 | J27: 732 | K27: 0 | L27: 0 | M27: 732 | N27: 1 | O27: 0 | P27: 0 | Q27: 1.052185246e-05
J28: 0 | K28: 0 | L28: 0 | M28: 0 | N28: 0 | O28: 0 | P28: 0 | Q28: 0
J29: 0 | K29: 0 | L29: 0 | M29: 0 | N29: 0 | O29: 0 | P29: 0 | Q29: 0
B30: Total | D30: =SUM(D17:D29) -> 175546.8476 | E30: =SUM(E17:E29) -> 3972635063 | F30: 5864284.083 | J30: =SUM(J17:J29) -> 26066577.01 | K30: =SUM(K17:K29) -> 26102165.32 | L30: 17400756.24 | M30: 69569498.58 | Q30: =SUM(Q17:Q29) -> 1
B33: Rate Class | D33: Total kWh (most recent RRR filing) | E33: Total kW (most recent RRR filing) | F33: Allocation of Tax Savings by Rate Class | G33: Distribution Rate Rider
B34: =B17 -> RESIDENTIAL SERVICE CLASSIFICATION | C34: kWh | D34: ='4. Billing Det. for Def-Var'!D17 -> 1239997164 | E34: ='4. Billing Det. for Def-Var'!E17 -> 0 | F34: =F$48*Q17 -> 0 | G34: =ROUND(F34/'4. Billing Det. for Def-Var'!V17,2) -> 0 | H34: $/Customer | I34: If the allocated tax sharing amount does not produce a rate rider in one or more rate class (except for the Standby rate class), a distributor is required to transfer the entire OEB-approved tax sharing amount into account 1595 for disposition at a later date (see Filing Requirements, Appendix B)
B35: GENERAL SERVICE LESS THAN 50 kW SERVICE CLASSIFICATION | C35: kWh | D35: ='4. Billing Det. for Def-Var'!D18 -> 334239807 | E35: ='4. Billing Det. for Def-Var'!E18 -> 0 | F35: 0 | G35: =IFERROR(ROUND(IF(E35<>0,F35/E35,F35/D35),4),"") -> 0 | H35: $/kWh
B36: GENERAL SERVICE 50 TO 699 KW SERVICE CLASSIFICATION | C36: kW | D36: ='4. Billing Det. for Def-Var'!D19 -> 1107692803 | E36: ='4. Billing Det. for Def-Var'!E19 -> 3139342.391 | F36: 0 | G36: =IFERROR(ROUND(IF(E36<>0,F36/E36,F36/D36),4),"") -> 0 | H36: $/kW
B37: GENERAL SERVICE 700 to 4,999 KW SERVICE CLASSIFICATION | C37: kW | D37: ='4. Billing Det. for Def-Var'!D20 -> 847190593.7 | E37: ='4. Billing Det. for Def-Var'!E20 -> 1984988.844 | F37: 0 | G37: 0 | H37: $/kW
B38: LARGE USE SERVICE CLASSIFICATION | C38: kW | D38: ='4. Billing Det. for Def-Var'!D21 -> 354854755 | E38: ='4. Billing Det. for Def-Var'!E21 -> 653806 | F38: 0 | G38: 0 | H38: $/kWh
B39: STANDBY POWER SERVICE CLASSIFICATION | C39: kW | D39: ='4. Billing Det. for Def-Var'!D22 -> 0 | E39: ='4. Billing Det. for Def-Var'!E22 -> 0 | F39: 0 | H39: $/kWh
B40: UNMETERED SCATTERED LOAD SERVICE CLASSIFICATION | C40: kWh | D40: ='4. Billing Det. for Def-Var'!D23 -> 5971806 | E40: ='4. Billing Det. for Def-Var'!E23 -> 0 | F40: 0 | G40: 0 | H40: $/kW
B41: STREET LIGHTING SERVICE CLASSIFICATION | C41: kW | D41: ='4. Billing Det. for Def-Var'!D24 -> 36552543 | E41: ='4. Billing Det. for Def-Var'!E24 -> 104166 | F41: 0 | G41: 0 | H41: $/kW
B42: EMBEDDED DISTRIBUTOR SERVICE CLASSIFICATION | C42: kWh | D42: ='4. Billing Det. for Def-Var'!D25 -> 10618669 | E42: ='4. Billing Det. for Def-Var'!E25 -> 0 | F42: 0 | G42: 0 | H42: $/kWh
B43: DISTRIBUTED GENERATION [DGEN] SERVICE CLASSIFICATION | C43: kWh | D43: ='4. Billing Det. for Def-Var'!D26 -> 192022 | E43: ='4. Billing Det. for Def-Var'!E26 -> 0 | F43: =F$48*Q30 -> 0 | G43: 0 | H43: $/kWh
B44: ENERGY FROM WASTE SERVICE CLASSIFICATION | C44: kW | D44: ='4. Billing Det. for Def-Var'!D27 -> 0 | E44: ='4. Billing Det. for Def-Var'!E27 -> 0 | F44: =F$48*Q31 -> 0 | H44: $/kW
F45: 0 | G45: =IFERROR(ROUND(IF(E45<>"",F45/E45,F45/D45),4),"") -> 
F46: 0
D48: =SUM(D34:D47) -> 3937310163 | E48: =SUM(E34:E47) -> 5882303.235 | F48: =ROUND('9. STS-Tax Change'!O46,2) -> 0

Sheet 11. RTSR - Current Rates
A1: Back to Index | B1: Back to Index | BA1: 1
B2: =+'1. Information Sheet'!B2 -> INCENTIVE REGULATION MODEL FOR 2019 FILERS | E2: =+'1. Information Sheet'!E2 -> 0 | H2: =+'1. Information Sheet'!H2 -> 0
B13: Columns F and G must match the data from the most recent RRR filing. Rates have been imported from Tab "RATES". As well, the Loss Factor has been imported from "Model Specs" tab. If the data needs to be modified, please make the necessary adjustments and note the changes in your manager's summary.
B15: Rate Class | C15: Rate Description | D15: Unit | E15: Rate | F15: Non-Loss Adjusted Metered kWh | G15: Non-Loss Adjusted Metered kW | H15: Applicable Loss Factor | I15: Loss Adjusted Billed kWh
A16: R_TN | B16: ='Model Specs'!C15 -> RESIDENTIAL SERVICE CLASSIFICATION | C16: Retail Transmission Rate – Network Service Rate | D16: $/kWh | E16: =VLOOKUP(A16,RATES,4,FALSE) -> 0.0074 | F16: ='4. Billing Det. for Def-Var'!D17 -> 1239997164 | G16: 0 | H16: =LLF -> 1.0341 | I16: =F16*H16 -> 1282281067
A17: R_TC | B17: =B16 -> RESIDENTIAL SERVICE CLASSIFICATION | C17: Retail Transmission Rate – Line and Transformation Connection Service Rate | D17: $/kWh | E17: 0.0065 | F17: =F16 -> 1239997164 | G17: 0 | H17: 1.0341 | I17: =F17*H17 -> 1282281067
A18: GSL_TN | B18: ='Model Specs'!C16 -> GENERAL SERVICE LESS THAN 50 kW SERVICE CLASSIFICATION | C18: Retail Transmission Rate – Network Service Rate | D18: $/kWh | E18: 0.0066 | F18: ='4. Billing Det. for Def-Var'!D18 -> 334239807 | G18: 0 | H18: 1.0341 | I18: 345637384.4
A19: GSL_TC | B19: =B18 -> GENERAL SERVICE LESS THAN 50 kW SERVICE CLASSIFICATION | C19: Retail Transmission Rate – Line and Transformation Connection Service Rate | D19: $/kWh | E19: 0.0055 | F19: =F18 -> 334239807 | G19: 0 | H19: 1.0341 | I19: 345637384.4
A20: GS50_699_TN | B20: ='Model Specs'!C17 -> GENERAL SERVICE 50 TO 699 KW SERVICE CLASSIFICATION | C20: Retail Transmission Rate – Network Service Rate | D20: $/kW | E20: 2.563 | F20: ='4. Billing Det. for Def-Var'!D19 -> 1107692803 | G20: ='4. Billing Det. for Def-Var'!E19 -> 3139342.391 | H20: 1.0341 | I20: 1145465128
A21: GS50_699_TC | B21: =B20 -> GENERAL SERVICE 50 TO 699 KW SERVICE CLASSIFICATION | C21: Retail Transmission Rate – Line and Transformation Connection Service Rate | D21: $/kW | E21: 2.1878 | F21: =F20 -> 1107692803 | G21: =G20 -> 3139342.391 | H21: 1.0341 | I21: 1145465128
A22: GS700_TN | B22: ='Model Specs'!C18 -> GENERAL SERVICE 700 to 4,999 KW SERVICE CLASSIFICATION | C22: Retail Transmission Rate – Network Service Rate | D22: $/kW | E22: 2.8743 | F22: ='4. Billing Det. for Def-Var'!D20 -> 847190593.7 | G22: ='4. Billing Det. for Def-Var'!E20 -> 1984988.844 | H22: 1.0341 | I22: 876079793
A23: GS700_TC | B23: =B22 -> GENERAL SERVICE 700 to 4,999 KW SERVICE CLASSIFICATION | C23: Retail Transmission Rate – Line and Transformation Connection Service Rate | D23: $/kW | E23: 2.3517 | F23: =F22 -> 847190593.7 | G23: =G22 -> 1984988.844 | H23: 1.0341 | I23: =F23*H23 -> 876079793
A24: LU_TN | B24: ='Model Specs'!C19 -> LARGE USE SERVICE CLASSIFICATION | C24: Retail Transmission Rate – Network Service Rate | D24: $/kW | E24: 3.2532 | F24: ='4. Billing Det. for Def-Var'!D21 -> 354854755 | G24: ='4. Billing Det. for Def-Var'!E21 -> 653806 | H24: 1.0341 | I24: 366955302.1
A25: LU_TC | B25: =B24 -> LARGE USE SERVICE CLASSIFICATION | C25: Retail Transmission Rate – Line and Transformation Connection Service Rate | D25: $/kW | E25: 2.7181 | F25: =F24 -> 354854755 | G25: =G24 -> 653806 | H25: 1.0341 | I25: 366955302.1
A26: USL_TN | B26: ='Model Specs'!C21 -> UNMETERED SCATTERED LOAD SERVICE CLASSIFICATION | C26: Retail Transmission Rate – Network Service Rate | D26: $/kWh | E26: 0.0066 | F26: ='4. Billing Det. for Def-Var'!D23 -> 5971806 | G26: ='4. Billing Det. for Def-Var'!E23 -> 0 | H26: 1.0341 | I26: 6175444.585
A27: USL_TC | B27: =B26 -> UNMETERED SCATTERED LOAD SERVICE CLASSIFICATION | C27: Retail Transmission Rate – Line and Transformation Connection Service Rate | D27: $/kWh | E27: 0.0055 | F27: =F26 -> 5971806 | G27: =G26 -> 0 | H27: 1.0341 | I27: =F27*H27 -> 6175444.585
A28: SL_TN | B28: ='4. Billing Det. for Def-Var'!B24 -> STREET LIGHTING SERVICE CLASSIFICATION | C28: Retail Transmission Rate – Network Service Rate | D28: $/kW | E28: 2.1341 | F28: ='4. Billing Det. for Def-Var'!D24 -> 36552543 | G28: ='4. Billing Det. for Def-Var'!E24 -> 104166 | H28: 1.0341 | I28: 37798984.72
A29: SL_TC | B29: =B28 -> STREET LIGHTING SERVICE CLASSIFICATION | C29: Retail Transmission Rate – Line and Transformation Connection Service Rate | D29: $/kW | E29: 1.8215 | F29: =F28 -> 36552543 | G29: =G28 -> 104166 | H29: 1.0341 | I29: 37798984.72
A30: EMD_TN | B30: ='Model Specs'!C23 -> EMBEDDED DISTRIBUTOR SERVICE CLASSIFICATION | C30: Retail Transmission Rate – Network Service Rate | D30: $/kW | E30: 2.8743 | F30: ='4. Billing Det. for Def-Var'!D25 -> 10618669 | G30: ='4. Billing Det. for Def-Var'!E25 -> 0 | H30: 1.0341 | I30: 10980765.61
A31: EMD_TC | B31: =B30 -> EMBEDDED DISTRIBUTOR SERVICE CLASSIFICATION | C31: Retail Transmission Rate – Line and Transformation Connection Service Rate | D31: $/kW | E31: 2.3517 | F31: =F30 -> 10618669 | G31: =G30 -> 0 | H31: 1.0341 | I31: 10980765.61
A32: DG_TN | B32: ='Model Specs'!C24 -> DISTRIBUTED GENERATION [DGEN] SERVICE CLASSIFICATION | C32: Retail Transmission Rate – Network Service Rate | D32: $/kWh | E32: 0.0066 | F32: ='4. Billing Det. for Def-Var'!D26 -> 192022 | G32: ='4. Billing Det. for Def-Var'!E26 -> 0 | H32: 1.0341 | I32: 198569.9502
A33: DG_TC | B33: =B32 -> DISTRIBUTED GENERATION [DGEN] SERVICE CLASSIFICATION | C33: Retail Transmission Rate – Line and Transformation Connection Service Rate | D33: $/kWh | E33: 0.0055 | F33: =F32 -> 192022 | G33: =G32 -> 0 | H33: 1.0341 | I33: 198569.9502

Sheet 12. RTSR-UTRs & Sub-Tx
A1: Back to Index
B2: =+'1. Information Sheet'!B2 -> INCENTIVE REGULATION MODEL FOR 2019 FILERS | E2: =+'1. Information Sheet'!E2 -> 0 | H2: =+'1. Information Sheet'!H2 -> 0
B12: Uniform Transmission Rates | C12: Unit | E12: 2017 | H12: 2018 | J12: 2019
B14: Rate Description | E14: Rate | H14: Rate | J14: Rate
B16: Network Service Rate | C16: kW | E16: 3.52 | H16: 3.61 | J16: =H16 -> 3.61
B18: Line Connection Service Rate | C18: kW | E18: 0.88 | H18: 0.95 | J18: =H18 -> 0.95
B20: Transformation Connection Service Rate | C20: kW | E20: 2.13 | H20: 2.34 | J20: =H20 -> 2.34
B23: Hydro One Sub-Transmission Rates | C23: Unit | E23: 2017 | H23: 2018 | J23: 2019
H24: Jan - Dec 2017
B27: Rate Description | F27: Rate | H27: Rate | J27: Rate
B29: Network Service Rate | C29: kW | F29: 3.1942 | H29: 3.1942 | J29: =H29 -> 3.1942
B31: Line Connection Service Rate | C31: kW | F31: 0.771 | H31: 0.771 | J31: =H31 -> 0.771
B33: Transformation Connection Service Rate | C33: kW | F33: 1.7493 | H33: 1.7493 | J33: =H33 -> 1.7493
B35: Both Line and Transformation Connection Service Rate | C35: kW | F35: =SUM(F33,F31) -> 2.5203 | H35: =SUM(H33,H31) -> 2.5203 | J35: =H35 -> 2.5203
B38: If needed, add extra host here. (I) | C38: Unit | E38: 2016 | H38: 2017 | J38: 2018
B42: Rate Description | E42: Rate | H42: Rate | J42: Rate
B44: Network Service Rate | C44: kW
B46: Line Connection Service Rate | C46: kW
B48: Transformation Connection Service Rate | C48: kW
B50: Both Line and Transformation Connection Service Rate | C50: kW | E50: =F48+F46 -> 0 | H50: =H48+H46 -> 0 | J50: =J48+J46 -> 0
B53: If needed, add extra host here. (II) | C53: Unit | E53: 2016 | H53: 2017 | J53: 2018
B57: Rate Description | E57: Rate | H57: Rate | J57: Rate
B59: Network Service Rate | C59: kW
B61: Line Connection Service Rate | C61: kW
B63: Transformation Connection Service Rate | C63: kW
B65: Both Line and Transformation Connection Service Rate | C65: kW | E65: =F63+F61 -> 0 | H65: =H63+H61 -> 0 | J65: =J63+J61 -> 0
E67: Historical 2016 | H67: Current 2017 | J67: Forecast 2018
B68: Low Voltage Switchgear Credit (if applicable, enter as a negative value) | C68: $

Sheet 13. RTSR-Historic Wholesale
A1: Back to Index
B2: =+'1. Information Sheet'!B2 -> INCENTIVE REGULATION MODEL FOR 2019 FILERS
B13: In the green shaded cells, enter billing detail for wholesale transmission for the same reporting period as the billing determinants on Tab 10. For Hydro One Sub-transmission Rates, if you are charged a combined Line and Transformer connection rate, please ensure that both the Line Connection and Transformation Connection columns are completed. If any of the Hydro One Sub-transmission rates (column E, I and M) are highlighted in orange, please double check the billing data entered in "Units Billed" and "Amount" columns. The highlighted rates do not match the Hydro One Sub-transmission rates approved for that time period. If data has been entered correctly, please provide explanation for the discrepancy in rates.
B16: IESO | D16: Network | H16: Line Connection | L16: Transformation Connection | P16: Total Line
B17: Month | D17: Units Billed | E17: Rate | F17: Amount | H17: Units Billed | I17: Rate | J17: Amount | L17: Units Billed | M17: Rate | N17: Amount | P17: Amount
B19: January | D19: 570724 | E19: =IF(D19<>0,F19/D19,0) -> 3.66 | F19: 2088849.84 | H19: 599963 | I19: =IF(H19<>0,J19/H19,0) -> 0.87 | J19: 521967.81 | L19: 514384 | M19: =IF(L19<>0,N19/L19,0) -> 2.02 | N19: 1039055.68 | P19: =J19+N19 -> 1561023.49
B20: February | D20: 566516 | E20: 3.66 | F20: 2073448.56 | H20: 580052 | I20: 0.87 | J20: 504645.24 | L20: 499139 | M20: 2.02 | N20: 1008260.78 | P20: 1512906.02
B21: March | D21: 570256 | E21: 3.66 | F21: 2087136.96 | H21: 587020 | I21: 0.87 | J21: 510707.4 | L21: 508363 | M21: 2.02 | N21: 1026893.26 | P21: 1537600.66
B22: April | D22: 507236 | E22: 3.66 | F22: 1856483.76 | H22: 542096 | I22: 0.87 | J22: 471623.52 | L22: 468158 | M22: 2.02 | N22: 945679.16 | P22: 1417302.68
B23: May | D23: 572253 | E23: 3.66 | F23: 2094445.98 | H23: 588418 | I23: 0.87 | J23: 511923.66 | L23: 504212 | M23: 2.02 | N23: 1018508.24 | P23: 1530431.9
B24: June | D24: 739531 | E24: 3.66 | F24: 2706683.46 | H24: 748760 | I24: 0.87 | J24: 651421.2 | L24: 634882 | M24: 2.02 | N24: 1282461.64 | P24: 1933882.84
B25: July | D25: 738061 | E25: 3.66 | F25: 2701303.26 | H25: 764670 | I25: 0.87 | J25: 665262.9 | L25: 644954 | M25: 2.02 | N25: 1302807.08 | P25: 1968069.98
B26: August | D26: 716788 | E26: 3.66 | F26: 2623444.08 | H26: 715627 | I26: 0.87 | J26: 622595.49 | L26: 606769 | M26: 2.02 | N26: 1225673.38 | P26: 1848268.87
B27: September | D27: 768694 | E27: 3.66 | F27: 2813420.04 | H27: 819894 | I27: 0.87 | J27: 713307.78 | L27: 710062 | M27: 2.02 | N27: 1434325.24 | P27: 2147633.02
B28: October | D28: 546552 | E28: 3.66 | F28: 2000380.32 | H28: 562684 | I28: 0.87 | J28: 489535.08 | L28: 487731 | M28: 2.02 | N28: 985216.62 | P28: 1474751.7
B29: November | D29: 542070 | E29: 1.893779143 | F29: 1026560.86 | H29: 576138 | I29: 0.9929795986 | J29: 572093.28 | L29: 492319 | M29: 3.376451874 | N29: 1662291.41 | P29: 2234384.69
B30: December | D30: 586000 | E30: 5.024309795 | F30: 2944245.54 | H30: 610673 | I30: 0.7734096644 | J30: 472300.4 | L30: 527541 | M30: 0.966769199 | N30: 510010.39 | P30: 982310.79
B32: Total | D32: =SUM(D19:D30) -> 7424681 | E32: =IF(D32<>0,F32/D32,0) -> 3.638729079 | F32: =SUM(F19:F30) -> 27016402.66 | H32: =SUM(H19:H30) -> 7695995 | I32: =IF(H32<>0,J32/H32,0) -> 0.8715421151 | J32: =SUM(J19:J30) -> 6707383.76 | L32: =SUM(L19:L30) -> 6598514 | M32: =IF(L32<>0,N32/L32,0) -> 2.037001495 | N32: =SUM(N19:N30) -> 13441182.88 | P32: =SUM(P19:P30) -> 20148566.64
B34: Hydro One | D34: Network | H34: Line Connection | L34: Transformation Connection | P34: Total Line
B36: Month | D36: Units Billed | E36: Rate | F36: Amount | H36: Units Billed | I36: Rate | J36: Amount | L36: Units Billed | M36: Rate | N36: Amount | P36: Amount
B38: January | D38: 12130.35 | E38: =IF(D38<>0,F38/D38,0) -> 3.194199673 | F38: 38746.76 | H38: =+D38 -> 12130.35 | I38: =IF(H38<>0,J38/H38,0) -> 0.7710000124 | J38: 9352.5 | L38: =+D38 -> 12130.35 | M38: =IF(L38<>0,N38/L38,0) -> 1.749299897 | N38: 21219.62 | P38: =J38+N38 -> 30572.12
B39: February | D39: 11888.27 | E39: =IF(D39<>0,F39/D39,0) -> 3.19420067 | F39: 37973.52 | H39: =+D39 -> 11888.27 | I39: 0.7710003222 | J39: 9165.86 | L39: =+D39 -> 11888.27 | M39: 1.749300781 | N39: 20796.16 | P39: =J39+N39 -> 29962.02
B40: March | D40: 11599.35 | E40: 3.194199675 | F40: 37050.64 | H40: 11650.45 | I40: 0.7710002618 | J40: 8982.5 | L40: 11650.45 | M40: 1.749299812 | N40: 20380.13 | P40: 29362.63
B41: April | D41: 10386.76 | E41: 3.194199154 | F41: 33177.38 | H41: =+D41 -> 10386.76 | I41: 0.7709998113 | J41: 8008.19 | L41: =+D41 -> 10386.76 | M41: 1.749299108 | N41: 18169.55 | P41: 26177.74
B42: May | D42: 10761.95 | E42: 3.194199007 | F42: 34375.81 | H42: 10761.95 | I42: 0.7709996794 | J42: 8297.46 | L42: 10761.95 | M42: 1.749299151 | N42: 18825.87 | P42: 27123.33
B43: June | D43: 14169.32 | E43: 3.194201274 | F43: 45259.66 | H43: 14169.32 | I43: 0.7710003021 | J43: 10924.55 | L43: 14169.32 | M43: 1.749300602 | N43: 24786.4 | P43: 35710.95
B44: July | D44: 13809.76 | E44: 3.194201058 | F44: 44111.15 | H44: 13809.76 | I44: 0.771000365 | J44: 10647.33 | L44: 13809.76 | M44: 1.749300495 | N44: 24157.42 | P44: 34804.75
B45: August | D45: 13562.15 | E45: 3.194199297 | F45: 43320.21 | H45: 13562.15 | I45: 0.7709994359 | J45: 10456.41 | L45: 13562.15 | M45: 1.749299337 | N45: 23724.26 | P45: 34180.67
B46: September | D46: 14829.38 | E46: 3.194200297 | F46: 47368.01 | H46: 14829.38 | I46: 0.7709998665 | J46: 11433.45 | L46: 14829.38 | M46: 1.749300375 | N46: 25941.04 | P46: 37374.49
B47: October | D47: 5025.53 | E47: 3.194198423 | F47: 16052.54 | H47: 5456.01 | I47: 0.77099932 | J47: 4206.58 | L47: 5456.01 | M47: 1.74929848 | N47: 9544.19 | P47: 13750.77
B48: November | D48: 5137.69 | E48: 3.194198171 | F48: 16410.8 | H48: 5137.69 | I48: 0.7710001966 | J48: 3961.16 | L48: 5137.69 | M48: 1.749299783 | N48: 8987.36 | P48: 12948.52
B49: December | D49: 4984.92 | E49: 3.1941977 | F49: 15922.82 | H49: 4984.92 | I49: 0.770999334 | J49: 3843.37 | L49: 4984.92 | M49: 1.749297882 | N49: 8720.11 | P49: 12563.48
B51: Total | D51: =SUM(D38:D49) -> 128285.43 | E51: =IF(D51<>0,F51/D51,0) -> 3.19419984 | F51: =SUM(F38:F49) -> 409769.3 | H51: =SUM(H38:H49) -> 128767.01 | I51: =IF(H51<>0,J51/H51,0) -> 0.7709999634 | J51: =SUM(J38:J49) -> 99279.36 | L51: =SUM(L38:L49) -> 128767.01 | M51: =IF(L51<>0,N51/L51,0) -> 1.74929984 | N51: =SUM(N38:N49) -> 225252.11 | P51: =SUM(P38:P49) -> 324531.47
B53: Add Extra Host Here (I) | D53: Network | H53: Line Connection | L53: Transformation Connection | P53: Total Line
B54: (if needed)
B55: Month | D55: Units Billed | E55: Rate | F55: Amount | H55: Units Billed | I55: Rate | J55: Amount | L55: Units Billed | M55: Rate | N55: Amount | P55: Amount
B57: January | E57: =IF(D57<>0,F57/D57,0) -> 0 | I57: =IF(H57<>0,J57/H57,0) -> 0 | M57: =IF(L57<>0,N57/L57,0) -> 0 | P57: =J57+N57 -> 0
B58: February | E58: 0 | I58: 0 | M58: 0 | P58: 0
B59: March | E59: 0 | I59: 0 | M59: 0 | P59: 0
B60: April | E60: 0 | I60: 0 | M60: 0 | P60: 0
B61: May | E61: 0 | I61: 0 | M61: 0 | P61: 0
B62: June | E62: 0 | I62: 0 | M62: 0 | P62: 0
B63: July | E63: 0 | I63: 0 | M63: 0 | P63: 0
B64: August | E64: 0 | I64: 0 | M64: 0 | P64: 0
B65: September | E65: 0 | I65: 0 | M65: 0 | P65: 0
B66: October | E66: 0 | I66: 0 | M66: 0 | P66: 0
B67: November | E67: 0 | I67: 0 | M67: 0 | P67: 0
B68: December | E68: 0 | I68: 0 | M68: 0 | P68: 0
B70: Total | D70: =SUM(D57:D68) -> 0 | E70: =IF(D70<>0,F70/D70,0) -> 0 | F70: =SUM(F57:F68) -> 0 | H70: =SUM(H57:H68) -> 0 | I70: =IF(H70<>0,J70/H70,0) -> 0 | J70: =SUM(J57:J68) -> 0 | L70: =SUM(L57:L68) -> 0 | M70: =IF(L70<>0,N70/L70,0) -> 0 | N70: =SUM(N57:N68) -> 0 | P70: =SUM(P57:P68) -> 0
B72: Add Extra Host Here (II) | D72: Network | H72: Line Connection | L72: Transformation Connection | P72: Total Line
B73: (if needed)
B74: Month | D74: Units Billed | E74: Rate | F74: Amount | H74: Units Billed | I74: Rate | J74: Amount | L74: Units Billed | M74: Rate | N74: Amount | P74: Amount
B76: January | E76: =IF(D76<>0,F76/D76,0) -> 0 | I76: =IF(H76<>0,J76/H76,0) -> 0 | M76: =IF(L76<>0,N76/L76,0) -> 0 | P76: =J76+N76 -> 0
B77: February | E77: 0 | I77: 0 | M77: 0 | P77: 0
B78: March | E78: 0 | I78: 0 | M78: 0 | P78: 0
B79: April | E79: 0 | I79: 0 | M79: 0 | P79: 0
B80: May | E80: 0 | I80: 0 | M80: 0 | P80: 0
B81: June | E81: 0 | I81: 0 | M81: 0 | P81: 0
B82: July | E82: 0 | I82: 0 | M82: 0 | P82: 0
B83: August | E83: 0 | I83: 0 | M83: 0 | P83: 0
B84: September | E84: 0 | I84: 0 | M84: 0 | P84: 0
B85: October | E85: 0 | I85: 0 | M85: 0 | P85: 0
B86: November | E86: 0 | I86: 0 | M86: 0 | P86: 0
B87: December | E87: 0 | I87: 0 | M87: 0 | P87: 0
B89: Total | D89: =SUM(D76:D87) -> 0 | E89: =IF(D89<>0,F89/D89,0) -> 0 | F89: =SUM(F76:F87) -> 0 | H89: =SUM(H76:H87) -> 0 | I89: =IF(H89<>0,J89/H89,0) -> 0 | J89: =SUM(J76:J87) -> 0 | L89: =SUM(L76:L87) -> 0 | M89: =IF(L89<>0,N89/L89,0) -> 0 | N89: =SUM(N76:N87) -> 0 | P89: =SUM(P76:P87) -> 0
B91: Total | D91: Network | H91: Line Connection | L91: Transformation Connection | P91: Total Line
B93: Month | D93: Units Billed | E93: Rate | F93: Amount | H93: Units Billed | I93: Rate | J93: Amount | L93: Units Billed | M93: Rate | N93: Amount | P93: Amount
B95: January | D95: =D19+D38+D57+D76 -> 582854.35 | E95: =IF(D95<>0,F95/D95,0) -> 3.650305775 | F95: =F19+F38+F57+F76 -> 2127596.6 | H95: =H19+H38+H57+H76 -> 612093.35 | I95: =IF(H95<>0,J95/H95,0) -> 0.868038037 | J95: =J19+J38+J57+J76 -> 531320.31 | L95: =L19+L38+L57+L76 -> 526514.35 | M95: =IF(L95<>0,N95/L95,0) -> 2.013763348 | N95: =N19+N38+N57+N76 -> 1060275.3 | P95: =J95+N95 -> 1591595.61
B96: February | D96: =D20+D39+D58+D77 -> 578404.27 | E96: 3.650426163 | F96: =F20+F39+F58+F77 -> 2111422.08 | H96: =H20+H39+H58+H77 -> 591940.27 | I96: 0.8680117337 | J96: =J20+J39+J58+J77 -> 513811.1 | L96: =L20+L39+L58+L77 -> 511027.27 | M96: 2.013702596 | N96: =N20+N39+N58+N77 -> 1029056.94 | P96: 1542868.04
B97: March | D97: 581855.35 | E97: 3.65071422 | F97: 2124187.6 | H97: 598670.45 | I97: 0.8680734117 | J97: 519689.9 | L97: 520013.45 | M97: 2.013935197 | N97: 1047273.39 | P97: 1566963.29
B98: April | D98: 517622.76 | E98: 3.650653113 | F98: 1889661.14 | H98: 552482.76 | I98: 0.8681387814 | J98: 479631.71 | L98: 478544.76 | M98: 2.014124468 | N98: 963848.71 | P98: 1443480.42
B99: May | D99: 583014.95 | E99: 3.651401718 | F99: 2128821.79 | H99: 599179.95 | I99: 0.8682218422 | J99: 520221.12 | L99: 514973.95 | M99: 2.014342881 | N99: 1037334.11 | P99: 1557555.23
B100: June | D100: 753700.32 | E100: 3.651243136 | F100: 2751943.12 | H100: 762929.32 | I100: 0.8681613521 | J100: 662345.75 | L100: 649051.32 | M100: 2.014090411 | N100: 1307248.04 | P100: 1969593.79
B101: July | D101: 751870.76 | E101: 3.651444578 | F101: 2745414.41 | H101: 778479.76 | I101: 0.8682438064 | J101: 675910.23 | L101: 658763.76 | M101: 2.014325287 | N101: 1326964.5 | P101: 2002874.73
B102: August | D102: 730350.15 | E102: 3.651350369 | F102: 2666764.29 | H102: 729189.15 | I102: 0.8681586938 | J102: 633051.9 | L102: 620331.15 | M102: 2.014081737 | N102: 1249397.64 | P102: 1882449.54
B103: September | D103: 783523.38 | E103: 3.651184027 | F103: 2860788.05 | H103: 834723.38 | I103: 0.8682412011 | J103: 724741.23 | L103: 724891.38 | M103: 2.014462194 | N103: 1460266.28 | P103: 2185007.51
B104: October | D104: 551577.53 | E104: 3.655755991 | F104: 2016432.86 | H104: 568140.01 | I104: 0.8690492683 | J104: 493741.66 | L104: 493187.01 | M104: 2.017005294 | N104: 994760.81 | P104: 1488502.47
B105: November | D105: 547207.69 | E105: 1.905988675 | F105: 1042971.66 | H105: 581275.69 | I105: 0.9910176013 | J105: 576054.44 | L105: 497456.69 | M105: 3.359646787 | N105: 1671278.77 | P105: 2247333.21
B106: December | D106: 590984.92 | E106: 5.008872917 | F106: 2960168.36 | H106: 615657.92 | I106: 0.7733901482 | J106: 476143.77 | L106: 532525.92 | M106: 0.974094369 | N106: 518730.5 | P106: 994874.27
B108: Total | D108: =SUM(D95:D106) -> 7552966.43 | E108: =IF(D108<>0,F108/D108,0) -> 3.631178851 | F108: =SUM(F95:F106) -> 27426171.96 | H108: =SUM(H95:H106) -> 7824762.01 | I108: =IF(H108<>0,J108/H108,0) -> 0.8698875584 | J108: =SUM(J95:J106) -> 6806663.12 | L108: =SUM(L95:L106) -> 6727281.01 | M108: =IF(L108<>0,N108/L108,0) -> 2.031494592 | N108: =SUM(N95:N106) -> 13666434.99 | P108: =SUM(P95:P106) -> 20473098.11
N110: Low Voltage Switchgear Credit (if applicable) | P110: ='12. RTSR-UTRs & Sub-Tx'!F68 -> 0
N112: Total including deduction for Low Voltage Switchgear Credit | P112: =P108+P110 -> 20473098.11

Sheet 14. RTSR-Current Wholesale
A1: Back to Index
B2: =+'1. Information Sheet'!B2 -> INCENTIVE REGULATION MODEL FOR 2019 FILERS
B13: The purpose of this sheet is to calculate the expected billing when current 2018 Uniform Transmission Rates are applied against historical 2017 transmission units.
B16: IESO | D16: Network | H16: Line Connection | L16: Transformation Connection | P16: Total Line
B18: Month | D18: Units Billed | E18: Rate | F18: Amount | H18: Units Billed | I18: Rate | J18: Amount | L18: Units Billed | M18: Rate | N18: Amount | P18: Amount
B20: January | D20: ='13. RTSR-Historic Wholesale'!D19 -> 570724 | E20: ='12. RTSR-UTRs & Sub-Tx'!H16 -> 3.61 | F20: =D20*E20 -> 2060313.64 | H20: ='13. RTSR-Historic Wholesale'!H19 -> 599963 | I20: ='12. RTSR-UTRs & Sub-Tx'!H18 -> 0.95 | J20: =H20*I20 -> 569964.85 | L20: ='13. RTSR-Historic Wholesale'!L19 -> 514384 | M20: ='12. RTSR-UTRs & Sub-Tx'!H20 -> 2.34 | N20: =L20*M20 -> 1203658.56 | P20: =J20+N20 -> 1773623.41
B21: February | D21: ='13. RTSR-Historic Wholesale'!D20 -> 566516 | E21: =E20 -> 3.61 | F21: =D21*E21 -> 2045122.76 | H21: ='13. RTSR-Historic Wholesale'!H20 -> 580052 | I21: =I20 -> 0.95 | J21: =H21*I21 -> 551049.4 | L21: ='13. RTSR-Historic Wholesale'!L20 -> 499139 | M21: =M20 -> 2.34 | N21: =L21*M21 -> 1167985.26 | P21: 1719034.66
B22: March | D22: ='13. RTSR-Historic Wholesale'!D21 -> 570256 | E22: =E21 -> 3.61 | F22: 2058624.16 | H22: ='13. RTSR-Historic Wholesale'!H21 -> 587020 | I22: =I21 -> 0.95 | J22: 557669 | L22: ='13. RTSR-Historic Wholesale'!L21 -> 508363 | M22: =M21 -> 2.34 | N22: 1189569.42 | P22: 1747238.42
B23: April | D23: ='13. RTSR-Historic Wholesale'!D22 -> 507236 | E23: 3.61 | F23: 1831121.96 | H23: ='13. RTSR-Historic Wholesale'!H22 -> 542096 | I23: 0.95 | J23: 514991.2 | L23: ='13. RTSR-Historic Wholesale'!L22 -> 468158 | M23: 2.34 | N23: 1095489.72 | P23: 1610480.92
B24: May | D24: ='13. RTSR-Historic Wholesale'!D23 -> 572253 | E24: 3.61 | F24: 2065833.33 | H24: ='13. RTSR-Historic Wholesale'!H23 -> 588418 | I24: 0.95 | J24: 558997.1 | L24: ='13. RTSR-Historic Wholesale'!L23 -> 504212 | M24: 2.34 | N24: 1179856.08 | P24: 1738853.18
B25: June | D25: ='13. RTSR-Historic Wholesale'!D24 -> 739531 | E25: 3.61 | F25: 2669706.91 | H25: ='13. RTSR-Historic Wholesale'!H24 -> 748760 | I25: 0.95 | J25: 711322 | L25: ='13. RTSR-Historic Wholesale'!L24 -> 634882 | M25: 2.34 | N25: 1485623.88 | P25: 2196945.88
B26: July | D26: ='13. RTSR-Historic Wholesale'!D25 -> 738061 | E26: 3.61 | F26: 2664400.21 | H26: ='13. RTSR-Historic Wholesale'!H25 -> 764670 | I26: 0.95 | J26: 726436.5 | L26: ='13. RTSR-Historic Wholesale'!L25 -> 644954 | M26: 2.34 | N26: 1509192.36 | P26: 2235628.86
B27: August | D27: ='13. RTSR-Historic Wholesale'!D26 -> 716788 | E27: 3.61 | F27: 2587604.68 | H27: ='13. RTSR-Historic Wholesale'!H26 -> 715627 | I27: 0.95 | J27: 679845.65 | L27: ='13. RTSR-Historic Wholesale'!L26 -> 606769 | M27: 2.34 | N27: 1419839.46 | P27: 2099685.11
B28: September | D28: ='13. RTSR-Historic Wholesale'!D27 -> 768694 | E28: 3.61 | F28: 2774985.34 | H28: ='13. RTSR-Historic Wholesale'!H27 -> 819894 | I28: 0.95 | J28: 778899.3 | L28: ='13. RTSR-Historic Wholesale'!L27 -> 710062 | M28: 2.34 | N28: 1661545.08 | P28: 2440444.38
B29: October | D29: ='13. RTSR-Historic Wholesale'!D28 -> 546552 | E29: 3.61 | F29: 1973052.72 | H29: ='13. RTSR-Historic Wholesale'!H28 -> 562684 | I29: 0.95 | J29: 534549.8 | L29: ='13. RTSR-Historic Wholesale'!L28 -> 487731 | M29: 2.34 | N29: 1141290.54 | P29: 1675840.34
B30: November | D30: ='13. RTSR-Historic Wholesale'!D29 -> 542070 | E30: 3.61 | F30: 1956872.7 | H30: ='13. RTSR-Historic Wholesale'!H29 -> 576138 | I30: 0.95 | J30: 547331.1 | L30: ='13. RTSR-Historic Wholesale'!L29 -> 492319 | M30: 2.34 | N30: 1152026.46 | P30: 1699357.56
B31: December | D31: ='13. RTSR-Historic Wholesale'!D30 -> 586000 | E31: 3.61 | F31: 2115460 | H31: ='13. RTSR-Historic Wholesale'!H30 -> 610673 | I31: 0.95 | J31: 580139.35 | L31: ='13. RTSR-Historic Wholesale'!L30 -> 527541 | M31: 2.34 | N31: 1234445.94 | P31: 1814585.29
B33: Total | D33: =SUM(D20:D31) -> 7424681 | E33: =IF(D33<>0,F33/D33,0) -> 3.61 | F33: =SUM(F20:F31) -> 26803098.41 | H33: =SUM(H20:H31) -> 7695995 | I33: =IF(H33<>0,J33/H33,0) -> 0.95 | J33: =SUM(J20:J31) -> 7311195.25 | L33: =SUM(L20:L31) -> 6598514 | M33: =IF(L33<>0,N33/L33,0) -> 2.34 | N33: =SUM(N20:N31) -> 15440522.76 | P33: =SUM(P20:P31) -> 22751718.01
B35: Hydro One | D35: Network | H35: Line Connection | L35: Transformation Connection | P35: Total Line
B37: Month | D37: Units Billed | E37: Rate | F37: Amount | H37: Units Billed | I37: Rate | J37: Amount | L37: Units Billed | M37: Rate | N37: Amount | P37: Amount
B39: January | D39: ='13. RTSR-Historic Wholesale'!D38 -> 12130.35 | E39: ='12. RTSR-UTRs & Sub-Tx'!H29 -> 3.1942 | F39: =D39*E39 -> 38746.76397 | H39: ='13. RTSR-Historic Wholesale'!H38 -> 12130.35 | I39: ='12. RTSR-UTRs & Sub-Tx'!H31 -> 0.771 | J39: =H39*I39 -> 9352.49985 | L39: ='13. RTSR-Historic Wholesale'!L38 -> 12130.35 | M39: ='12. RTSR-UTRs & Sub-Tx'!H33 -> 1.7493 | N39: =L39*M39 -> 21219.62126 | P39: =J39+N39 -> 30572.12111
B40: February | D40: ='13. RTSR-Historic Wholesale'!D39 -> 11888.27 | E40: =E39 -> 3.1942 | F40: =D40*E40 -> 37973.51203 | H40: ='13. RTSR-Historic Wholesale'!H39 -> 11888.27 | I40: =I39 -> 0.771 | J40: =H40*I40 -> 9165.85617 | L40: ='13. RTSR-Historic Wholesale'!L39 -> 11888.27 | M40: =M39 -> 1.7493 | N40: =L40*M40 -> 20796.15071 | P40: 29962.00688
B41: March | D41: ='13. RTSR-Historic Wholesale'!D40 -> 11599.35 | E41: =E40 -> 3.1942 | F41: 37050.64377 | H41: ='13. RTSR-Historic Wholesale'!H40 -> 11650.45 | I41: =I40 -> 0.771 | J41: 8982.49695 | L41: ='13. RTSR-Historic Wholesale'!L40 -> 11650.45 | M41: =M40 -> 1.7493 | N41: 20380.13219 | P41: 29362.62914
B42: April | D42: ='13. RTSR-Historic Wholesale'!D41 -> 10386.76 | E42: 3.1942 | F42: 33177.38879 | H42: ='13. RTSR-Historic Wholesale'!H41 -> 10386.76 | I42: 0.771 | J42: 8008.19196 | L42: ='13. RTSR-Historic Wholesale'!L41 -> 10386.76 | M42: =M41 -> 1.7493 | N42: 18169.55927 | P42: 26177.75123
B43: May | D43: ='13. RTSR-Historic Wholesale'!D42 -> 10761.95 | E43: 3.1942 | F43: 34375.82069 | H43: ='13. RTSR-Historic Wholesale'!H42 -> 10761.95 | I43: 0.771 | J43: 8297.46345 | L43: ='13. RTSR-Historic Wholesale'!L42 -> 10761.95 | M43: 1.7493 | N43: 18825.87914 | P43: 27123.34259
B44: June | D44: ='13. RTSR-Historic Wholesale'!D43 -> 14169.32 | E44: 3.1942 | F44: 45259.64194 | H44: ='13. RTSR-Historic Wholesale'!H43 -> 14169.32 | I44: 0.771 | J44: 10924.54572 | L44: ='13. RTSR-Historic Wholesale'!L43 -> 14169.32 | M44: 1.7493 | N44: 24786.39148 | P44: 35710.9372
B45: July | D45: ='13. RTSR-Historic Wholesale'!D44 -> 13809.76 | E45: 3.1942 | F45: 44111.13539 | H45: ='13. RTSR-Historic Wholesale'!H44 -> 13809.76 | I45: 0.771 | J45: 10647.32496 | L45: ='13. RTSR-Historic Wholesale'!L44 -> 13809.76 | M45: 1.7493 | N45: 24157.41317 | P45: 34804.73813
B46: August | D46: ='13. RTSR-Historic Wholesale'!D45 -> 13562.15 | E46: 3.1942 | F46: 43320.21953 | H46: ='13. RTSR-Historic Wholesale'!H45 -> 13562.15 | I46: 0.771 | J46: 10456.41765 | L46: ='13. RTSR-Historic Wholesale'!L45 -> 13562.15 | M46: 1.7493 | N46: 23724.269 | P46: 34180.68665
B47: September | D47: ='13. RTSR-Historic Wholesale'!D46 -> 14829.38 | E47: 3.1942 | F47: 47368.0056 | H47: ='13. RTSR-Historic Wholesale'!H46 -> 14829.38 | I47: 0.771 | J47: 11433.45198 | L47: ='13. RTSR-Historic Wholesale'!L46 -> 14829.38 | M47: 1.7493 | N47: 25941.03443 | P47: 37374.48641
B48: October | D48: ='13. RTSR-Historic Wholesale'!D47 -> 5025.53 | E48: 3.1942 | F48: 16052.54793 | H48: ='13. RTSR-Historic Wholesale'!H47 -> 5456.01 | I48: 0.771 | J48: 4206.58371 | L48: ='13. RTSR-Historic Wholesale'!L47 -> 5456.01 | M48: 1.7493 | N48: 9544.198293 | P48: 13750.782
B49: November | D49: ='13. RTSR-Historic Wholesale'!D48 -> 5137.69 | E49: 3.1942 | F49: 16410.8094 | H49: ='13. RTSR-Historic Wholesale'!H48 -> 5137.69 | I49: 0.771 | J49: 3961.15899 | L49: ='13. RTSR-Historic Wholesale'!L48 -> 5137.69 | M49: 1.7493 | N49: 8987.361117 | P49: 12948.52011
B50: December | D50: ='13. RTSR-Historic Wholesale'!D49 -> 4984.92 | E50: 3.1942 | F50: 15922.83146 | H50: ='13. RTSR-Historic Wholesale'!H49 -> 4984.92 | I50: 0.771 | J50: 3843.37332 | L50: ='13. RTSR-Historic Wholesale'!L49 -> 4984.92 | M50: 1.7493 | N50: 8720.120556 | P50: 12563.49388
B52: Total | D52: =SUM(D39:D50) -> 128285.43 | E52: =IF(D52<>0,F52/D52,0) -> 3.1942 | F52: =SUM(F39:F50) -> 409769.3205 | H52: =SUM(H39:H50) -> 128767.01 | I52: =IF(H52<>0,J52/H52,0) -> 0.771 | J52: =SUM(J39:J50) -> 99279.36471 | L52: =SUM(L39:L50) -> 128767.01 | M52: =IF(L52<>0,N52/L52,0) -> 1.7493 | N52: =SUM(N39:N50) -> 225252.1306 | P52: =SUM(P39:P50) -> 324531.4953
B54: Add Extra Host Here (I) | D54: Network | H54: Line Connection | L54: Transformation Connection | P54: Total Line
B56: Month | D56: Units Billed | E56: Rate | F56: Amount | H56: Units Billed | I56: Rate | J56: Amount | L56: Units Billed | M56: Rate | N56: Amount | P56: Amount
B58: January | D58: ='13. RTSR-Historic Wholesale'!D57 -> 0 | E58: ='12. RTSR-UTRs & Sub-Tx'!H44 -> 0 | F58: =D58*E58 -> 0 | H58: ='13. RTSR-Historic Wholesale'!H57 -> 0 | I58: ='12. RTSR-UTRs & Sub-Tx'!H46 -> 0 | J58: =H58*I58 -> 0 | L58: ='13. RTSR-Historic Wholesale'!L57 -> 0 | M58: ='12. RTSR-UTRs & Sub-Tx'!H48 -> 0 | N58: =L58*M58 -> 0 | P58: =J58+N58 -> 0
B59: February | D59: ='13. RTSR-Historic Wholesale'!D58 -> 0 | E59: =E58 -> 0 | F59: =D59*E59 -> 0 | H59: ='13. RTSR-Historic Wholesale'!H58 -> 0 | I59: =I58 -> 0 | J59: =H59*I59 -> 0 | L59: ='13. RTSR-Historic Wholesale'!L58 -> 0 | M59: =M58 -> 0 | N59: =L59*M59 -> 0 | P59: 0
B60: March | D60: ='13. RTSR-Historic Wholesale'!D59 -> 0 | E60: =E59 -> 0 | F60: 0 | H60: ='13. RTSR-Historic Wholesale'!H59 -> 0 | I60: =I59 -> 0 | J60: 0 | L60: ='13. RTSR-Historic Wholesale'!L59 -> 0 | M60: =M59 -> 0 | N60: 0 | P60: 0
B61: April | D61: ='13. RTSR-Historic Wholesale'!D60 -> 0 | E61: 0 | F61: 0 | H61: ='13. RTSR-Historic Wholesale'!H60 -> 0 | I61: 0 | J61: 0 | L61: ='13. RTSR-Historic Wholesale'!L60 -> 0 | M61: 0 | N61: 0 | P61: 0
B62: May | D62: ='13. RTSR-Historic Wholesale'!D61 -> 0 | E62: 0 | F62: 0 | H62: ='13. RTSR-Historic Wholesale'!H61 -> 0 | I62: 0 | J62: 0 | L62: ='13. RTSR-Historic Wholesale'!L61 -> 0 | M62: 0 | N62: 0 | P62: 0
B63: June | D63: ='13. RTSR-Historic Wholesale'!D62 -> 0 | E63: 0 | F63: 0 | H63: ='13. RTSR-Historic Wholesale'!H62 -> 0 | I63: 0 | J63: 0 | L63: ='13. RTSR-Historic Wholesale'!L62 -> 0 | M63: 0 | N63: 0 | P63: 0
B64: July | D64: ='13. RTSR-Historic Wholesale'!D63 -> 0 | E64: 0 | F64: 0 | H64: ='13. RTSR-Historic Wholesale'!H63 -> 0 | I64: 0 | J64: 0 | L64: ='13. RTSR-Historic Wholesale'!L63 -> 0 | M64: 0 | N64: 0 | P64: 0
B65: August | D65: ='13. RTSR-Historic Wholesale'!D64 -> 0 | E65: 0 | F65: 0 | H65: ='13. RTSR-Historic Wholesale'!H64 -> 0 | I65: 0 | J65: 0 | L65: ='13. RTSR-Historic Wholesale'!L64 -> 0 | M65: 0 | N65: 0 | P65: 0
B66: September | D66: ='13. RTSR-Historic Wholesale'!D65 -> 0 | E66: 0 | F66: 0 | H66: ='13. RTSR-Historic Wholesale'!H65 -> 0 | I66: 0 | J66: 0 | L66: ='13. RTSR-Historic Wholesale'!L65 -> 0 | M66: 0 | N66: 0 | P66: 0
B67: October | D67: ='13. RTSR-Historic Wholesale'!D66 -> 0 | E67: 0 | F67: 0 | H67: ='13. RTSR-Historic Wholesale'!H66 -> 0 | I67: 0 | J67: 0 | L67: ='13. RTSR-Historic Wholesale'!L66 -> 0 | M67: 0 | N67: 0 | P67: 0
B68: November | D68: ='13. RTSR-Historic Wholesale'!D67 -> 0 | E68: 0 | F68: 0 | H68: ='13. RTSR-Historic Wholesale'!H67 -> 0 | I68: 0 | J68: 0 | L68: ='13. RTSR-Historic Wholesale'!L67 -> 0 | M68: 0 | N68: 0 | P68: 0
B69: December | D69: ='13. RTSR-Historic Wholesale'!D68 -> 0 | E69: 0 | F69: 0 | H69: ='13. RTSR-Historic Wholesale'!H68 -> 0 | I69: 0 | J69: 0 | L69: ='13. RTSR-Historic Wholesale'!L68 -> 0 | M69: 0 | N69: 0 | P69: 0
B71: Total | D71: =SUM(D58:D69) -> 0 | E71: =IF(D71<>0,F71/D71,0) -> 0 | F71: =SUM(F58:F69) -> 0 | H71: =SUM(H58:H69) -> 0 | I71: =IF(H71<>0,J71/H71,0) -> 0 | J71: =SUM(J58:J69) -> 0 | L71: =SUM(L58:L69) -> 0 | M71: =IF(L71<>0,N71/L71,0) -> 0 | N71: =SUM(N58:N69) -> 0 | P71: =SUM(P58:P69) -> 0
B73: Add Extra Host Here (II) | D73: Network | H73: Line Connection | L73: Transformation Connection | P73: Total Line
B75: Month | D75: Units Billed | E75: Rate | F75: Amount | H75: Units Billed | I75: Rate | J75: Amount | L75: Units Billed | M75: Rate | N75: Amount | P75: Amount
B77: January | D77: ='13. RTSR-Historic Wholesale'!D76 -> 0 | E77: ='12. RTSR-UTRs & Sub-Tx'!H59 -> 0 | F77: =D77*E77 -> 0 | H77: ='13. RTSR-Historic Wholesale'!H76 -> 0 | I77: ='12. RTSR-UTRs & Sub-Tx'!H61 -> 0 | J77: =H77*I77 -> 0 | L77: ='13. RTSR-Historic Wholesale'!L76 -> 0 | M77: ='12. RTSR-UTRs & Sub-Tx'!H63 -> 0 | N77: =L77*M77 -> 0 | P77: =J77+N77 -> 0
B78: February | D78: ='13. RTSR-Historic Wholesale'!D77 -> 0 | E78: =E77 -> 0 | F78: =D78*E78 -> 0 | H78: ='13. RTSR-Historic Wholesale'!H77 -> 0 | I78: =I77 -> 0 | J78: =H78*I78 -> 0 | L78: ='13. RTSR-Historic Wholesale'!L77 -> 0 | M78: =M77 -> 0 | N78: =L78*M78 -> 0 | P78: 0
B79: March | D79: ='13. RTSR-Historic Wholesale'!D78 -> 0 | E79: =E78 -> 0 | F79: 0 | H79: ='13. RTSR-Historic Wholesale'!H78 -> 0 | I79: =I78 -> 0 | J79: 0 | L79: ='13. RTSR-Historic Wholesale'!L78 -> 0 | M79: =M78 -> 0 | N79: 0 | P79: 0
B80: April | D80: ='13. RTSR-Historic Wholesale'!D79 -> 0 | E80: 0 | F80: 0 | H80: ='13. RTSR-Historic Wholesale'!H79 -> 0 | I80: 0 | J80: 0 | L80: ='13. RTSR-Historic Wholesale'!L79 -> 0 | M80: =M79 -> 0 | N80: 0 | P80: 0
B81: May | D81: ='13. RTSR-Historic Wholesale'!D80 -> 0 | E81: 0 | F81: 0 | H81: ='13. RTSR-Historic Wholesale'!H80 -> 0 | I81: 0 | J81: 0 | L81: ='13. RTSR-Historic Wholesale'!L80 -> 0 | M81: 0 | N81: 0 | P81: 0
B82: June | D82: ='13. RTSR-Historic Wholesale'!D81 -> 0 | E82: 0 | F82: 0 | H82: ='13. RTSR-Historic Wholesale'!H81 -> 0 | I82: 0 | J82: 0 | L82: ='13. RTSR-Historic Wholesale'!L81 -> 0 | M82: 0 | N82: 0 | P82: 0
B83: July | D83: ='13. RTSR-Historic Wholesale'!D82 -> 0 | E83: 0 | F83: 0 | H83: ='13. RTSR-Historic Wholesale'!H82 -> 0 | I83: 0 | J83: 0 | L83: ='13. RTSR-Historic Wholesale'!L82 -> 0 | M83: 0 | N83: 0 | P83: 0
B84: August | D84: ='13. RTSR-Historic Wholesale'!D83 -> 0 | E84: 0 | F84: 0 | H84: ='13. RTSR-Historic Wholesale'!H83 -> 0 | I84: 0 | J84: 0 | L84: ='13. RTSR-Historic Wholesale'!L83 -> 0 | M84: 0 | N84: 0 | P84: 0
B85: September | D85: ='13. RTSR-Historic Wholesale'!D84 -> 0 | E85: 0 | F85: 0 | H85: ='13. RTSR-Historic Wholesale'!H84 -> 0 | I85: 0 | J85: 0 | L85: ='13. RTSR-Historic Wholesale'!L84 -> 0 | M85: 0 | N85: 0 | P85: 0
B86: October | D86: ='13. RTSR-Historic Wholesale'!D85 -> 0 | E86: 0 | F86: 0 | H86: ='13. RTSR-Historic Wholesale'!H85 -> 0 | I86: 0 | J86: 0 | L86: ='13. RTSR-Historic Wholesale'!L85 -> 0 | M86: 0 | N86: 0 | P86: 0
B87: November | D87: ='13. RTSR-Historic Wholesale'!D86 -> 0 | E87: 0 | F87: 0 | H87: ='13. RTSR-Historic Wholesale'!H86 -> 0 | I87: 0 | J87: 0 | L87: ='13. RTSR-Historic Wholesale'!L86 -> 0 | M87: 0 | N87: 0 | P87: 0
B88: December | D88: ='13. RTSR-Historic Wholesale'!D87 -> 0 | E88: 0 | F88: 0 | H88: ='13. RTSR-Historic Wholesale'!H87 -> 0 | I88: 0 | J88: 0 | L88: ='13. RTSR-Historic Wholesale'!L87 -> 0 | M88: 0 | N88: 0 | P88: 0
B90: Total | D90: =SUM(D77:D88) -> 0 | E90: =IF(D90<>0,F90/D90,0) -> 0 | F90: =SUM(F77:F88) -> 0 | H90: =SUM(H77:H88) -> 0 | I90: =IF(H90<>0,J90/H90,0) -> 0 | J90: =SUM(J77:J88) -> 0 | L90: =SUM(L77:L88) -> 0 | M90: =IF(L90<>0,N90/L90,0) -> 0 | N90: =SUM(N77:N88) -> 0 | P90: =SUM(P77:P88) -> 0
B92: Total | D92: Network | H92: Line Connection | L92: Transformation Connection | P92: Total Line
B94: Month | D94: Units Billed | E94: Rate | F94: Amount | H94: Units Billed | I94: Rate | J94: Amount | L94: Units Billed | M94: Rate | N94: Amount | P94: Amount
B96: January | D96: =D20+D39+D58+D77 -> 582854.35 | E96: =IF(D96<>0,F96/D96,0) -> 3.601346381 | F96: =F20+F39+F58+F77 -> 2099060.404 | H96: =H20+H39+H58+H77 -> 612093.35 | I96: =IF(H96<>0,J96/H96,0) -> 0.9464526119 | J96: =J20+J39+J58+J77 -> 579317.3498 | L96: =L20+L39+L58+L77 -> 526514.35 | M96: =IF(L96<>0,N96/L96,0) -> 2.326390879 | N96: =N20+N39+N58+N77 -> 1224878.181 | P96: =J96+N96 -> 1804195.531
B97: February | D97: =D21+D40+D59+D78 -> 578404.27 | E97: 3.601453828 | F97: =F21+F40+F59+F78 -> 2083096.272 | H97: =H21+H40+H59+H78 -> 591940.27 | I97: 0.9464050421 | J97: =J21+J40+J59+J78 -> 560215.2562 | L97: =L21+L40+L59+L78 -> 511027.27 | M97: 2.326258265 | N97: =N21+N40+N59+N78 -> 1188781.411 | P97: 1748996.667
B98: March | D98: 581855.35 | E98: 3.601710982 | F98: 2095674.804 | H98: 598670.45 | I98: 0.9465165634 | J98: 566651.497 | L98: 520013.45 | M98: 2.326765879 | N98: 1209949.552 | P98: 1776601.049
B99: April | D99: 517622.76 | E99: 3.601656443 | F99: 1864299.349 | H99: 552482.76 | I99: 0.9466347727 | J99: 522999.392 | L99: 478544.76 | M99: 2.327178923 | N99: 1113659.279 | P99: 1636658.671
B100: May | D100: 583014.95 | E100: 3.602324693 | F100: 2100209.151 | H100: 599179.95 | I100: 0.9467849574 | J100: 567294.5635 | L100: 514973.95 | M100: 2.327655523 | N100: 1198681.959 | P100: 1765976.523
B101: June | D101: 753700.32 | E101: 3.602183096 | F101: 2714966.552 | H101: 762929.32 | I101: 0.9466755659 | J101: 722246.5457 | L101: 649051.32 | M101: 2.327104537 | N101: 1510410.271 | P101: 2232656.817
B102: July | D102: 751870.76 | E102: 3.602362919 | F102: 2708511.345 | H102: 778479.76 | I102: 0.9468246483 | J102: 737083.825 | L102: 658763.76 | M102: 2.32761707 | N102: 1533349.773 | P102: 2270433.598
B103: August | D103: 730350.15 | E103: 3.602278851 | F103: 2630924.9 | H103: 729189.15 | I103: 0.9466707886 | J103: 690302.0676 | L103: 620331.15 | M103: 2.327085669 | N103: 1443563.729 | P103: 2133865.797
B104: September | D104: 783523.38 | E104: 3.602130348 | F104: 2822353.346 | H104: 834723.38 | I104: 0.9468199537 | J104: 790332.752 | L104: 724891.38 | M104: 2.327915824 | N104: 1687486.114 | P104: 2477818.866
B105: October | D105: 551577.53 | E105: 3.606211565 | F105: 1989105.268 | H105: 568140.01 | I105: 0.9482810121 | J105: 538756.3837 | L105: 493187.01 | M105: 2.333465227 | N105: 1150834.738 | P105: 1689591.122
B106: November | D106: 547207.69 | E106: 3.606096086 | F106: 1973283.509 | H106: 581275.69 | I106: 0.9484178824 | J106: 551292.259 | L106: 497456.69 | M106: 2.333899301 | N106: 1161013.821 | P106: 1712306.08
B107: December | D107: 590984.92 | E107: 3.606492754 | F107: 2131382.831 | H107: 615657.92 | I107: 0.9485506551 | J107: 583982.7233 | L107: 532525.92 | M107: 2.334470518 | N107: 1243166.061 | P107: 1827148.784
B109: Total | D109: =SUM(D96:D107) -> 7552966.43 | E109: =IF(D109<>0,F109/D109,0) -> 3.602937731 | F109: =SUM(F96:F107) -> 27212867.73 | H109: =SUM(H96:H107) -> 7824762.01 | I109: =IF(H109<>0,J109/H109,0) -> 0.9470543136 | J109: =SUM(J96:J107) -> 7410474.615 | L109: =SUM(L96:L107) -> 6727281.01 | M109: =IF(L109<>0,N109/L109,0) -> 2.3286934 | N109: =SUM(N96:N107) -> 15665774.89 | P109: =SUM(P96:P107) -> 23076249.51
N111: Low Voltage Switchgear Credit (if applicable) | P111: ='12. RTSR-UTRs & Sub-Tx'!H68 -> 0
N113: Total including deduction for Low Voltage Switchgear Credit | P113: =P109+P111 -> 23076249.51

Sheet 15. RTSR-Forecast Wholesale
A1: Back to Index
B2: =+'1. Information Sheet'!B2 -> INCENTIVE REGULATION MODEL FOR 2019 FILERS
B13: The purpose of this sheet is to calculate the expected billing when forecasted 2019 Uniform Transmission Rates are applied against historical 2017 transmission units.
B16: IESO | D16: Network | H16: Line Connection | L16: Transformation Connection | P16: Total Line
B18: Month | D18: Units Billed | E18: Rate | F18: Amount | H18: Units Billed | I18: Rate | J18: Amount | L18: Units Billed | M18: Rate | N18: Amount | P18: Amount
B20: January | D20: ='13. RTSR-Historic Wholesale'!D19 -> 570724 | E20: ='12. RTSR-UTRs & Sub-Tx'!J16 -> 3.61 | F20: =D20*E20 -> 2060313.64 | H20: ='13. RTSR-Historic Wholesale'!H19 -> 599963 | I20: ='12. RTSR-UTRs & Sub-Tx'!J18 -> 0.95 | J20: =H20*I20 -> 569964.85 | L20: ='13. RTSR-Historic Wholesale'!L19 -> 514384 | M20: ='12. RTSR-UTRs & Sub-Tx'!J20 -> 2.34 | N20: =L20*M20 -> 1203658.56 | P20: =J20+N20 -> 1773623.41
B21: February | D21: ='13. RTSR-Historic Wholesale'!D20 -> 566516 | E21: =E20 -> 3.61 | F21: 2045122.76 | H21: ='13. RTSR-Historic Wholesale'!H20 -> 580052 | I21: =I20 -> 0.95 | J21: 551049.4 | L21: ='13. RTSR-Historic Wholesale'!L20 -> 499139 | M21: =M20 -> 2.34 | N21: 1167985.26 | P21: 1719034.66
B22: March | D22: ='13. RTSR-Historic Wholesale'!D21 -> 570256 | E22: 3.61 | F22: 2058624.16 | H22: ='13. RTSR-Historic Wholesale'!H21 -> 587020 | I22: 0.95 | J22: 557669 | L22: ='13. RTSR-Historic Wholesale'!L21 -> 508363 | M22: 2.34 | N22: 1189569.42 | P22: 1747238.42
B23: April | D23: ='13. RTSR-Historic Wholesale'!D22 -> 507236 | E23: 3.61 | F23: 1831121.96 | H23: ='13. RTSR-Historic Wholesale'!H22 -> 542096 | I23: 0.95 | J23: 514991.2 | L23: ='13. RTSR-Historic Wholesale'!L22 -> 468158 | M23: 2.34 | N23: 1095489.72 | P23: 1610480.92
B24: May | D24: ='13. RTSR-Historic Wholesale'!D23 -> 572253 | E24: 3.61 | F24: 2065833.33 | H24: ='13. RTSR-Historic Wholesale'!H23 -> 588418 | I24: 0.95 | J24: 558997.1 | L24: ='13. RTSR-Historic Wholesale'!L23 -> 504212 | M24: 2.34 | N24: 1179856.08 | P24: 1738853.18
B25: June | D25: ='13. RTSR-Historic Wholesale'!D24 -> 739531 | E25: 3.61 | F25: 2669706.91 | H25: ='13. RTSR-Historic Wholesale'!H24 -> 748760 | I25: 0.95 | J25: 711322 | L25: ='13. RTSR-Historic Wholesale'!L24 -> 634882 | M25: 2.34 | N25: 1485623.88 | P25: 2196945.88
B26: July | D26: ='13. RTSR-Historic Wholesale'!D25 -> 738061 | E26: 3.61 | F26: 2664400.21 | H26: ='13. RTSR-Historic Wholesale'!H25 -> 764670 | I26: 0.95 | J26: 726436.5 | L26: ='13. RTSR-Historic Wholesale'!L25 -> 644954 | M26: 2.34 | N26: 1509192.36 | P26: 2235628.86
B27: August | D27: ='13. RTSR-Historic Wholesale'!D26 -> 716788 | E27: 3.61 | F27: 2587604.68 | H27: ='13. RTSR-Historic Wholesale'!H26 -> 715627 | I27: 0.95 | J27: 679845.65 | L27: ='13. RTSR-Historic Wholesale'!L26 -> 606769 | M27: 2.34 | N27: 1419839.46 | P27: 2099685.11
B28: September | D28: ='13. RTSR-Historic Wholesale'!D27 -> 768694 | E28: 3.61 | F28: 2774985.34 | H28: ='13. RTSR-Historic Wholesale'!H27 -> 819894 | I28: 0.95 | J28: 778899.3 | L28: ='13. RTSR-Historic Wholesale'!L27 -> 710062 | M28: 2.34 | N28: 1661545.08 | P28: 2440444.38
B29: October | D29: ='13. RTSR-Historic Wholesale'!D28 -> 546552 | E29: 3.61 | F29: 1973052.72 | H29: ='13. RTSR-Historic Wholesale'!H28 -> 562684 | I29: 0.95 | J29: 534549.8 | L29: ='13. RTSR-Historic Wholesale'!L28 -> 487731 | M29: 2.34 | N29: 1141290.54 | P29: 1675840.34
B30: November | D30: ='13. RTSR-Historic Wholesale'!D29 -> 542070 | E30: 3.61 | F30: 1956872.7 | H30: ='13. RTSR-Historic Wholesale'!H29 -> 576138 | I30: 0.95 | J30: 547331.1 | L30: ='13. RTSR-Historic Wholesale'!L29 -> 492319 | M30: 2.34 | N30: 1152026.46 | P30: 1699357.56
B31: December | D31: ='13. RTSR-Historic Wholesale'!D30 -> 586000 | E31: 3.61 | F31: 2115460 | H31: ='13. RTSR-Historic Wholesale'!H30 -> 610673 | I31: 0.95 | J31: 580139.35 | L31: ='13. RTSR-Historic Wholesale'!L30 -> 527541 | M31: 2.34 | N31: 1234445.94 | P31: 1814585.29
B33: Total | D33: =SUM(D20:D31) -> 7424681 | E33: =IF(D33<>0,F33/D33,0) -> 3.61 | F33: =SUM(F20:F31) -> 26803098.41 | H33: =SUM(H20:H31) -> 7695995 | I33: =IF(H33<>0,J33/H33,0) -> 0.95 | J33: =SUM(J20:J31) -> 7311195.25 | L33: =SUM(L20:L31) -> 6598514 | M33: =IF(L33<>0,N33/L33,0) -> 2.34 | N33: =SUM(N20:N31) -> 15440522.76 | P33: =SUM(P20:P31) -> 22751718.01
B35: Hydro One | D35: Network | H35: Line Connection | L35: Transformation Connection | P35: Total Line
B37: Month | D37: Units Billed | E37: Rate | F37: Amount | H37: Units Billed | I37: Rate | J37: Amount | L37: Units Billed | M37: Rate | N37: Amount | P37: Amount
B39: January | D39: ='13. RTSR-Historic Wholesale'!D38 -> 12130.35 | E39: ='12. RTSR-UTRs & Sub-Tx'!J29 -> 3.1942 | F39: =D39*E39 -> 38746.76397 | H39: ='13. RTSR-Historic Wholesale'!H38 -> 12130.35 | I39: ='12. RTSR-UTRs & Sub-Tx'!J31 -> 0.771 | J39: =H39*I39 -> 9352.49985 | L39: ='13. RTSR-Historic Wholesale'!L38 -> 12130.35 | M39: ='12. RTSR-UTRs & Sub-Tx'!J33 -> 1.7493 | N39: =L39*M39 -> 21219.62126 | P39: =J39+N39 -> 30572.12111
B40: February | D40: ='13. RTSR-Historic Wholesale'!D39 -> 11888.27 | E40: =E39 -> 3.1942 | F40: 37973.51203 | H40: ='13. RTSR-Historic Wholesale'!H39 -> 11888.27 | I40: =I39 -> 0.771 | J40: 9165.85617 | L40: ='13. RTSR-Historic Wholesale'!L39 -> 11888.27 | M40: =M39 -> 1.7493 | N40: 20796.15071 | P40: 29962.00688
B41: March | D41: ='13. RTSR-Historic Wholesale'!D40 -> 11599.35 | E41: 3.1942 | F41: 37050.64377 | H41: ='13. RTSR-Historic Wholesale'!H40 -> 11650.45 | I41: 0.771 | J41: 8982.49695 | L41: ='13. RTSR-Historic Wholesale'!L40 -> 11650.45 | M41: 1.7493 | N41: 20380.13219 | P41: 29362.62914
B42: April | D42: ='13. RTSR-Historic Wholesale'!D41 -> 10386.76 | E42: 3.1942 | F42: 33177.38879 | H42: ='13. RTSR-Historic Wholesale'!H41 -> 10386.76 | I42: 0.771 | J42: 8008.19196 | L42: ='13. RTSR-Historic Wholesale'!L41 -> 10386.76 | M42: 1.7493 | N42: 18169.55927 | P42: 26177.75123
B43: May | D43: ='13. RTSR-Historic Wholesale'!D42 -> 10761.95 | E43: 3.1942 | F43: 34375.82069 | H43: ='13. RTSR-Historic Wholesale'!H42 -> 10761.95 | I43: 0.771 | J43: 8297.46345 | L43: ='13. RTSR-Historic Wholesale'!L42 -> 10761.95 | M43: 1.7493 | N43: 18825.87914 | P43: 27123.34259
B44: June | D44: ='13. RTSR-Historic Wholesale'!D43 -> 14169.32 | E44: 3.1942 | F44: 45259.64194 | H44: ='13. RTSR-Historic Wholesale'!H43 -> 14169.32 | I44: 0.771 | J44: 10924.54572 | L44: ='13. RTSR-Historic Wholesale'!L43 -> 14169.32 | M44: 1.7493 | N44: 24786.39148 | P44: 35710.9372
B45: July | D45: ='13. RTSR-Historic Wholesale'!D44 -> 13809.76 | E45: 3.1942 | F45: 44111.13539 | H45: ='13. RTSR-Historic Wholesale'!H44 -> 13809.76 | I45: 0.771 | J45: 10647.32496 | L45: ='13. RTSR-Historic Wholesale'!L44 -> 13809.76 | M45: 1.7493 | N45: 24157.41317 | P45: 34804.73813
B46: August | D46: ='13. RTSR-Historic Wholesale'!D45 -> 13562.15 | E46: 3.1942 | F46: 43320.21953 | H46: ='13. RTSR-Historic Wholesale'!H45 -> 13562.15 | I46: 0.771 | J46: 10456.41765 | L46: ='13. RTSR-Historic Wholesale'!L45 -> 13562.15 | M46: 1.7493 | N46: 23724.269 | P46: 34180.68665
B47: September | D47: ='13. RTSR-Historic Wholesale'!D46 -> 14829.38 | E47: 3.1942 | F47: 47368.0056 | H47: ='13. RTSR-Historic Wholesale'!H46 -> 14829.38 | I47: 0.771 | J47: 11433.45198 | L47: ='13. RTSR-Historic Wholesale'!L46 -> 14829.38 | M47: 1.7493 | N47: 25941.03443 | P47: 37374.48641
B48: October | D48: ='13. RTSR-Historic Wholesale'!D47 -> 5025.53 | E48: 3.1942 | F48: 16052.54793 | H48: ='13. RTSR-Historic Wholesale'!H47 -> 5456.01 | I48: 0.771 | J48: 4206.58371 | L48: ='13. RTSR-Historic Wholesale'!L47 -> 5456.01 | M48: 1.7493 | N48: 9544.198293 | P48: 13750.782
B49: November | D49: ='13. RTSR-Historic Wholesale'!D48 -> 5137.69 | E49: 3.1942 | F49: 16410.8094 | H49: ='13. RTSR-Historic Wholesale'!H48 -> 5137.69 | I49: 0.771 | J49: 3961.15899 | L49: ='13. RTSR-Historic Wholesale'!L48 -> 5137.69 | M49: 1.7493 | N49: 8987.361117 | P49: 12948.52011
B50: December | D50: ='13. RTSR-Historic Wholesale'!D49 -> 4984.92 | E50: 3.1942 | F50: 15922.83146 | H50: ='13. RTSR-Historic Wholesale'!H49 -> 4984.92 | I50: 0.771 | J50: 3843.37332 | L50: ='13. RTSR-Historic Wholesale'!L49 -> 4984.92 | M50: 1.7493 | N50: 8720.120556 | P50: 12563.49388
B52: Total | D52: =SUM(D39:D50) -> 128285.43 | E52: =IF(D52<>0,F52/D52,0) -> 3.1942 | F52: =SUM(F39:F50) -> 409769.3205 | H52: =SUM(H39:H50) -> 128767.01 | I52: =IF(H52<>0,J52/H52,0) -> 0.771 | J52: =SUM(J39:J50) -> 99279.36471 | L52: =SUM(L39:L50) -> 128767.01 | M52: =IF(L52<>0,N52/L52,0) -> 1.7493 | N52: =SUM(N39:N50) -> 225252.1306 | P52: =SUM(P39:P50) -> 324531.4953
B54: Add Extra Host Here (I) | D54: Network | H54: Line Connection | L54: Transformation Connection | P54: Total Line
B56: Month | D56: Units Billed | E56: Rate | F56: Amount | H56: Units Billed | I56: Rate | J56: Amount | L56: Units Billed | M56: Rate | N56: Amount | P56: Amount
B58: January | D58: ='13. RTSR-Historic Wholesale'!D57 -> 0 | E58: ='12. RTSR-UTRs & Sub-Tx'!J44 -> 0 | F58: =D58*E58 -> 0 | H58: ='13. RTSR-Historic Wholesale'!H57 -> 0 | I58: ='12. RTSR-UTRs & Sub-Tx'!J46 -> 0 | J58: =H58*I58 -> 0 | L58: ='13. RTSR-Historic Wholesale'!L57 -> 0 | M58: ='12. RTSR-UTRs & Sub-Tx'!J48 -> 0 | N58: =L58*M58 -> 0 | P58: =J58+N58 -> 0
B59: February | D59: ='13. RTSR-Historic Wholesale'!D58 -> 0 | E59: =E58 -> 0 | F59: 0 | H59: ='13. RTSR-Historic Wholesale'!H58 -> 0 | I59: =I58 -> 0 | J59: 0 | L59: ='13. RTSR-Historic Wholesale'!L58 -> 0 | M59: =M58 -> 0 | N59: 0 | P59: 0
B60: March | D60: ='13. RTSR-Historic Wholesale'!D59 -> 0 | E60: 0 | F60: 0 | H60: ='13. RTSR-Historic Wholesale'!H59 -> 0 | I60: 0 | J60: 0 | L60: ='13. RTSR-Historic Wholesale'!L59 -> 0 | M60: 0 | N60: 0 | P60: 0
B61: April | D61: ='13. RTSR-Historic Wholesale'!D60 -> 0 | E61: 0 | F61: 0 | H61: ='13. RTSR-Historic Wholesale'!H60 -> 0 | I61: 0 | J61: 0 | L61: ='13. RTSR-Historic Wholesale'!L60 -> 0 | M61: 0 | N61: 0 | P61: 0
B62: May | D62: ='13. RTSR-Historic Wholesale'!D61 -> 0 | E62: 0 | F62: 0 | H62: ='13. RTSR-Historic Wholesale'!H61 -> 0 | I62: 0 | J62: 0 | L62: ='13. RTSR-Historic Wholesale'!L61 -> 0 | M62: 0 | N62: 0 | P62: 0
B63: June | D63: ='13. RTSR-Historic Wholesale'!D62 -> 0 | E63: 0 | F63: 0 | H63: ='13. RTSR-Historic Wholesale'!H62 -> 0 | I63: 0 | J63: 0 | L63: ='13. RTSR-Historic Wholesale'!L62 -> 0 | M63: 0 | N63: 0 | P63: 0
B64: July | D64: ='13. RTSR-Historic Wholesale'!D63 -> 0 | E64: 0 | F64: 0 | H64: ='13. RTSR-Historic Wholesale'!H63 -> 0 | I64: 0 | J64: 0 | L64: ='13. RTSR-Historic Wholesale'!L63 -> 0 | M64: 0 | N64: 0 | P64: 0
B65: August | D65: ='13. RTSR-Historic Wholesale'!D64 -> 0 | E65: 0 | F65: 0 | H65: ='13. RTSR-Historic Wholesale'!H64 -> 0 | I65: 0 | J65: 0 | L65: ='13. RTSR-Historic Wholesale'!L64 -> 0 | M65: 0 | N65: 0 | P65: 0
B66: September | D66: ='13. RTSR-Historic Wholesale'!D65 -> 0 | E66: 0 | F66: 0 | H66: ='13. RTSR-Historic Wholesale'!H65 -> 0 | I66: 0 | J66: 0 | L66: ='13. RTSR-Historic Wholesale'!L65 -> 0 | M66: 0 | N66: 0 | P66: 0
B67: October | D67: ='13. RTSR-Historic Wholesale'!D66 -> 0 | E67: 0 | F67: 0 | H67: ='13. RTSR-Historic Wholesale'!H66 -> 0 | I67: 0 | J67: 0 | L67: ='13. RTSR-Historic Wholesale'!L66 -> 0 | M67: 0 | N67: 0 | P67: 0
B68: November | D68: ='13. RTSR-Historic Wholesale'!D67 -> 0 | E68: 0 | F68: 0 | H68: ='13. RTSR-Historic Wholesale'!H67 -> 0 | I68: 0 | J68: 0 | L68: ='13. RTSR-Historic Wholesale'!L67 -> 0 | M68: 0 | N68: 0 | P68: 0
B69: December | D69: ='13. RTSR-Historic Wholesale'!D68 -> 0 | E69: 0 | F69: 0 | H69: ='13. RTSR-Historic Wholesale'!H68 -> 0 | I69: 0 | J69: 0 | L69: ='13. RTSR-Historic Wholesale'!L68 -> 0 | M69: 0 | N69: 0 | P69: 0
B71: Total | D71: =SUM(D58:D69) -> 0 | E71: =IF(D71<>0,F71/D71,0) -> 0 | F71: =SUM(F58:F69) -> 0 | H71: =SUM(H58:H69) -> 0 | I71: =IF(H71<>0,J71/H71,0) -> 0 | J71: =SUM(J58:J69) -> 0 | L71: =SUM(L58:L69) -> 0 | M71: =IF(L71<>0,N71/L71,0) -> 0 | N71: =SUM(N58:N69) -> 0 | P71: =SUM(P58:P69) -> 0
B73: Add Extra Host Here (II) | D73: Network | H73: Line Connection | L73: Transformation Connection | P73: Total Line
B75: Month | D75: Units Billed | E75: Rate | F75: Amount | H75: Units Billed | I75: Rate | J75: Amount | L75: Units Billed | M75: Rate | N75: Amount | P75: Amount
B77: January | D77: ='13. RTSR-Historic Wholesale'!D76 -> 0 | E77: ='12. RTSR-UTRs & Sub-Tx'!J59 -> 0 | F77: =D77*E77 -> 0 | H77: ='13. RTSR-Historic Wholesale'!H76 -> 0 | I77: ='12. RTSR-UTRs & Sub-Tx'!J61 -> 0 | J77: =H77*I77 -> 0 | L77: ='13. RTSR-Historic Wholesale'!L76 -> 0 | M77: ='12. RTSR-UTRs & Sub-Tx'!J63 -> 0 | N77: =L77*M77 -> 0 | P77: =J77+N77 -> 0
B78: February | D78: ='13. RTSR-Historic Wholesale'!D77 -> 0 | E78: =E77 -> 0 | F78: 0 | H78: ='13. RTSR-Historic Wholesale'!H77 -> 0 | I78: =I77 -> 0 | J78: 0 | L78: ='13. RTSR-Historic Wholesale'!L77 -> 0 | M78: =M77 -> 0 | N78: 0 | P78: 0
B79: March | D79: ='13. RTSR-Historic Wholesale'!D78 -> 0 | E79: 0 | F79: 0 | H79: ='13. RTSR-Historic Wholesale'!H78 -> 0 | I79: 0 | J79: 0 | L79: ='13. RTSR-Historic Wholesale'!L78 -> 0 | M79: 0 | N79: 0 | P79: 0
B80: April | D80: ='13. RTSR-Historic Wholesale'!D79 -> 0 | E80: 0 | F80: 0 | H80: ='13. RTSR-Historic Wholesale'!H79 -> 0 | I80: 0 | J80: 0 | L80: ='13. RTSR-Historic Wholesale'!L79 -> 0 | M80: 0 | N80: 0 | P80: 0
B81: May | D81: ='13. RTSR-Historic Wholesale'!D80 -> 0 | E81: 0 | F81: 0 | H81: ='13. RTSR-Historic Wholesale'!H80 -> 0 | I81: 0 | J81: 0 | L81: ='13. RTSR-Historic Wholesale'!L80 -> 0 | M81: 0 | N81: 0 | P81: 0
B82: June | D82: ='13. RTSR-Historic Wholesale'!D81 -> 0 | E82: 0 | F82: 0 | H82: ='13. RTSR-Historic Wholesale'!H81 -> 0 | I82: 0 | J82: 0 | L82: ='13. RTSR-Historic Wholesale'!L81 -> 0 | M82: 0 | N82: 0 | P82: 0
B83: July | D83: ='13. RTSR-Historic Wholesale'!D82 -> 0 | E83: 0 | F83: 0 | H83: ='13. RTSR-Historic Wholesale'!H82 -> 0 | I83: 0 | J83: 0 | L83: ='13. RTSR-Historic Wholesale'!L82 -> 0 | M83: 0 | N83: 0 | P83: 0
B84: August | D84: ='13. RTSR-Historic Wholesale'!D83 -> 0 | E84: 0 | F84: 0 | H84: ='13. RTSR-Historic Wholesale'!H83 -> 0 | I84: 0 | J84: 0 | L84: ='13. RTSR-Historic Wholesale'!L83 -> 0 | M84: 0 | N84: 0 | P84: 0
B85: September | D85: ='13. RTSR-Historic Wholesale'!D84 -> 0 | E85: 0 | F85: 0 | H85: ='13. RTSR-Historic Wholesale'!H84 -> 0 | I85: 0 | J85: 0 | L85: ='13. RTSR-Historic Wholesale'!L84 -> 0 | M85: 0 | N85: 0 | P85: 0
B86: October | D86: ='13. RTSR-Historic Wholesale'!D85 -> 0 | E86: 0 | F86: 0 | H86: ='13. RTSR-Historic Wholesale'!H85 -> 0 | I86: 0 | J86: 0 | L86: ='13. RTSR-Historic Wholesale'!L85 -> 0 | M86: 0 | N86: 0 | P86: 0
B87: November | D87: ='13. RTSR-Historic Wholesale'!D86 -> 0 | E87: 0 | F87: 0 | H87: ='13. RTSR-Historic Wholesale'!H86 -> 0 | I87: 0 | J87: 0 | L87: ='13. RTSR-Historic Wholesale'!L86 -> 0 | M87: 0 | N87: 0 | P87: 0
B88: December | D88: ='13. RTSR-Historic Wholesale'!D87 -> 0 | E88: 0 | F88: 0 | H88: ='13. RTSR-Historic Wholesale'!H87 -> 0 | I88: 0 | J88: 0 | L88: ='13. RTSR-Historic Wholesale'!L87 -> 0 | M88: 0 | N88: 0 | P88: 0
L89: ='13. RTSR-Historic Wholesale'!L88 -> 0
B90: Total | D90: =SUM(D77:D88) -> 0 | E90: =IF(D90<>0,F90/D90,0) -> 0 | F90: =SUM(F77:F88) -> 0 | H90: =SUM(H77:H88) -> 0 | I90: =IF(H90<>0,J90/H90,0) -> 0 | J90: =SUM(J77:J88) -> 0 | L90: =SUM(L77:L88) -> 0 | M90: =IF(L90<>0,N90/L90,0) -> 0 | N90: =SUM(N77:N88) -> 0 | P90: =SUM(P77:P88) -> 0
B92: Total | D92: Network | H92: Line Connection | L92: Transformation Connection | P92: Total Line
B94: Month | D94: Units Billed | E94: Rate | F94: Amount | H94: Units Billed | I94: Rate | J94: Amount | L94: Units Billed | M94: Rate | N94: Amount | P94: Amount
B96: January | D96: =D20+D39+D58+D77 -> 582854.35 | E96: =IF(D96<>0,F96/D96,0) -> 3.601346381 | F96: =F20+F39+F58+F77 -> 2099060.404 | H96: =H20+H39+H58+H77 -> 612093.35 | I96: =IF(H96<>0,J96/H96,0) -> 0.9464526119 | J96: =J20+J39+J58+J77 -> 579317.3498 | L96: =L20+L39+L58+L77 -> 526514.35 | M96: =IF(L96<>0,N96/L96,0) -> 2.326390879 | N96: =N20+N39+N58+N77 -> 1224878.181 | P96: =J96+N96 -> 1804195.531
B97: February | D97: =D21+D40+D59+D78 -> 578404.27 | E97: 3.601453828 | F97: =F21+F40+F59+F78 -> 2083096.272 | H97: =H21+H40+H59+H78 -> 591940.27 | I97: 0.9464050421 | J97: =J21+J40+J59+J78 -> 560215.2562 | L97: =L21+L40+L59+L78 -> 511027.27 | M97: 2.326258265 | N97: =N21+N40+N59+N78 -> 1188781.411 | P97: 1748996.667
B98: March | D98: 581855.35 | E98: 3.601710982 | F98: 2095674.804 | H98: 598670.45 | I98: 0.9465165634 | J98: 566651.497 | L98: 520013.45 | M98: 2.326765879 | N98: 1209949.552 | P98: 1776601.049
B99: April | D99: 517622.76 | E99: 3.601656443 | F99: 1864299.349 | H99: 552482.76 | I99: 0.9466347727 | J99: 522999.392 | L99: 478544.76 | M99: 2.327178923 | N99: 1113659.279 | P99: 1636658.671
B100: May | D100: 583014.95 | E100: 3.602324693 | F100: 2100209.151 | H100: 599179.95 | I100: 0.9467849574 | J100: 567294.5635 | L100: 514973.95 | M100: 2.327655523 | N100: 1198681.959 | P100: 1765976.523
B101: June | D101: 753700.32 | E101: 3.602183096 | F101: 2714966.552 | H101: 762929.32 | I101: 0.9466755659 | J101: 722246.5457 | L101: 649051.32 | M101: 2.327104537 | N101: 1510410.271 | P101: 2232656.817
B102: July | D102: 751870.76 | E102: 3.602362919 | F102: 2708511.345 | H102: 778479.76 | I102: 0.9468246483 | J102: 737083.825 | L102: 658763.76 | M102: 2.32761707 | N102: 1533349.773 | P102: 2270433.598
B103: August | D103: 730350.15 | E103: 3.602278851 | F103: 2630924.9 | H103: 729189.15 | I103: 0.9466707886 | J103: 690302.0676 | L103: 620331.15 | M103: 2.327085669 | N103: 1443563.729 | P103: 2133865.797
B104: September | D104: 783523.38 | E104: 3.602130348 | F104: 2822353.346 | H104: 834723.38 | I104: 0.9468199537 | J104: 790332.752 | L104: 724891.38 | M104: 2.327915824 | N104: 1687486.114 | P104: 2477818.866
B105: October | D105: 551577.53 | E105: 3.606211565 | F105: 1989105.268 | H105: 568140.01 | I105: 0.9482810121 | J105: 538756.3837 | L105: 493187.01 | M105: 2.333465227 | N105: 1150834.738 | P105: 1689591.122
B106: November | D106: 547207.69 | E106: 3.606096086 | F106: 1973283.509 | H106: 581275.69 | I106: 0.9484178824 | J106: 551292.259 | L106: 497456.69 | M106: 2.333899301 | N106: 1161013.821 | P106: 1712306.08
B107: December | D107: 590984.92 | E107: 3.606492754 | F107: 2131382.831 | H107: 615657.92 | I107: 0.9485506551 | J107: 583982.7233 | L107: 532525.92 | M107: 2.334470518 | N107: 1243166.061 | P107: 1827148.784
B109: Total | D109: =SUM(D96:D107) -> 7552966.43 | E109: =IF(D109<>0,F109/D109,0) -> 3.602937731 | F109: =SUM(F96:F107) -> 27212867.73 | H109: =SUM(H96:H107) -> 7824762.01 | I109: =IF(H109<>0,J109/H109,0) -> 0.9470543136 | J109: =SUM(J96:J107) -> 7410474.615 | L109: =SUM(L96:L107) -> 6727281.01 | M109: =IF(L109<>0,N109/L109,0) -> 2.3286934 | N109: =SUM(N96:N107) -> 15665774.89 | P109: =SUM(P96:P107) -> 23076249.51
N111: Low Voltage Switchgear Credit (if applicable) | P111: ='12. RTSR-UTRs & Sub-Tx'!J68 -> 0
N113: Total including deduction for Low Voltage Switchgear Credit | P113: =P109+P111 -> 23076249.51

Sheet 16. RTSR-Rates to Forecast
A1: Back to Index | B1: Back to Index
B2: =+'1. Information Sheet'!B2 -> INCENTIVE REGULATION MODEL FOR 2019 FILERS
F6: to do: Adjust Emb. Distributor Rates
B13: The purpose of this table is to re-align the current RTS Network Rates to recover current wholesale network costs.
B15: Rate Class | C15: Rate Description | D15: Unit | E15: Current RTSR-Network | F15: Loss Adjusted Billed kWh | G15: Billed kW | H15: Billed Amount | I15: Billed Amount % | J15: Current Wholesale Billing | K15: Adjusted RTSR Network
A17: ='11. RTSR - Current Rates'!A16 -> R_TN | B17: ='4. Billing Det. for Def-Var'!B17 -> RESIDENTIAL SERVICE CLASSIFICATION | C17: =VLOOKUP(A17,RTSR,3,FALSE) -> Retail Transmission Rate – Network Service Rate | D17: =VLOOKUP(A17,RTSR,4,FALSE) -> $/kWh | E17: =VLOOKUP(A17,RATES,4,FALSE) -> 0.0074 | F17: =VLOOKUP(A17,RTSR,9,FALSE) -> 1282281067 | G17: =VLOOKUP(A17,RTSR,7,FALSE) -> 0 | H17: =IF(ISERROR(E17*F17), 0, ROUND(E17*F17, 2)) -> 9488879.9 | I17: =H17/SUM(H$17:H$26) -> 0.3399447585 | J17: =I17*total_wholesale_TN -> 9250871.749 | K17: =IF(ISERROR(J17/F17), 0, J17/F17) -> 0.007214386911
A18: ='11. RTSR - Current Rates'!A18 -> GSL_TN | B18: ='4. Billing Det. for Def-Var'!B18 -> GENERAL SERVICE LESS THAN 50 kW SERVICE CLASSIFICATION | C18: =VLOOKUP(A18,RTSR,3,FALSE) -> Retail Transmission Rate – Network Service Rate | D18: =VLOOKUP(A18,RTSR,4,FALSE) -> $/kWh | E18: =VLOOKUP(A18,RATES,4,FALSE) -> 0.0066 | F18: =VLOOKUP(A18,RTSR,9,FALSE) -> 345637384.4 | G18: =VLOOKUP(A18,RTSR,7,FALSE) -> 0 | H18: =IF(ISERROR(E18*F18), 0, ROUND(E18*F18, 2)) -> 2281206.74 | I18: =H18/SUM(H$17:H$26) -> 0.08172558642 | J18: =I18*total_wholesale_TN -> 2223987.573 | K18: =IF(ISERROR(J18/F18), 0, J18/F18) -> 0.006434453198
A19: ='11. RTSR - Current Rates'!A20 -> GS50_699_TN | B19: ='4. Billing Det. for Def-Var'!B19 -> GENERAL SERVICE 50 TO 699 KW SERVICE CLASSIFICATION | C19: =VLOOKUP(A19,RTSR,3,FALSE) -> Retail Transmission Rate – Network Service Rate | D19: =VLOOKUP(A19,RTSR,4,FALSE) -> $/kW | E19: =VLOOKUP(A19,RATES,4,FALSE) -> 2.563 | F19: =VLOOKUP(A19,RTSR,9,FALSE) -> 1145465128 | G19: =VLOOKUP(A19,RTSR,7,FALSE) -> 3139342.391 | H19: =IF(ISERROR(E19*G19), 0, ROUND(E19*G19, 2)) -> 8046134.55 | I19: =H19/SUM(H$17:H$26) -> 0.2882575494 | J19: =I19*total_wholesale_TN -> 7844314.564 | K19: =IF(ISERROR(J19/G19), 0, J19/G19) -> 2.498712656
A20: ='11. RTSR - Current Rates'!A22 -> GS700_TN | B20: ='4. Billing Det. for Def-Var'!B20 -> GENERAL SERVICE 700 to 4,999 KW SERVICE CLASSIFICATION | C20: =VLOOKUP(A20,RTSR,3,FALSE) -> Retail Transmission Rate – Network Service Rate | D20: =VLOOKUP(A20,RTSR,4,FALSE) -> $/kW | E20: =VLOOKUP(A20,RATES,4,FALSE) -> 2.8743 | F20: =VLOOKUP(A20,RTSR,9,FALSE) -> 876079793 | G20: =VLOOKUP(A20,RTSR,7,FALSE) -> 1984988.844 | H20: =IF(ISERROR(E20*G20), 0, ROUND(E20*G20, 2)) -> 5705453.44 | I20: =H20/SUM(H$17:H$26) -> 0.2044012583 | J20: =I20*total_wholesale_TN -> 5562344.407 | K20: =IF(ISERROR(J20/G20), 0, J20/G20) -> 2.802204367
A21: ='11. RTSR - Current Rates'!A24 -> LU_TN | B21: ='4. Billing Det. for Def-Var'!B21 -> LARGE USE SERVICE CLASSIFICATION | C21: =VLOOKUP(A21,RTSR,3,FALSE) -> Retail Transmission Rate – Network Service Rate | D21: =VLOOKUP(A21,RTSR,4,FALSE) -> $/kW | E21: =VLOOKUP(A21,RATES,4,FALSE) -> 3.2532 | F21: =VLOOKUP(A21,RTSR,9,FALSE) -> 366955302.1 | G21: =VLOOKUP(A21,RTSR,7,FALSE) -> 653806 | H21: =IF(ISERROR(E21*G21), 0, ROUND(E21*G21, 2)) -> 2126961.68 | I21: =H21/SUM(H$17:H$26) -> 0.07619966553 | J21: =I21*total_wholesale_TN -> 2073611.419 | K21: =IF(ISERROR(J21/G21), 0, J21/G21) -> 3.171600474
B22: ='4. Billing Det. for Def-Var'!B22 -> STANDBY POWER SERVICE CLASSIFICATION
A23: ='11. RTSR - Current Rates'!A26 -> USL_TN | B23: ='4. Billing Det. for Def-Var'!B23 -> UNMETERED SCATTERED LOAD SERVICE CLASSIFICATION | C23: =VLOOKUP(A23,RTSR,3,FALSE) -> Retail Transmission Rate – Network Service Rate | D23: =VLOOKUP(A23,RTSR,4,FALSE) -> $/kWh | E23: =VLOOKUP(A23,RATES,4,FALSE) -> 0.0066 | F23: =VLOOKUP(A23,RTSR,9,FALSE) -> 6175444.585 | G23: =VLOOKUP(A23,RTSR,7,FALSE) -> 0 | H23: =IF(ISERROR(E23*F23), 0, ROUND(E23*F23, 2)) -> 40757.93 | I23: =H23/SUM(H$17:H$26) -> 0.001460177051 | J23: =I23*total_wholesale_TN -> 39735.60495 | K23: =IF(ISERROR(J23/F23), 0, J23/F23) -> 0.006434452518
A24: SL_TN | B24: ='4. Billing Det. for Def-Var'!B24 -> STREET LIGHTING SERVICE CLASSIFICATION | C24: =VLOOKUP(A24,RTSR,3,FALSE) -> Retail Transmission Rate – Network Service Rate | D24: =VLOOKUP(A24,RTSR,4,FALSE) -> $/kW | E24: =VLOOKUP(A24,RATES,4,FALSE) -> 2.1341 | F24: =VLOOKUP(A24,RTSR,9,FALSE) -> 37798984.72 | G24: =VLOOKUP(A24,RTSR,7,FALSE) -> 104166 | H24: =IF(ISERROR(E24*G24), 0, ROUND(E24*G24, 2)) -> 222300.66 | I24: =H24/SUM(H$17:H$26) -> 0.007964053184 | J24: =I24*total_wholesale_TN -> 216724.7259 | K24: =IF(ISERROR(J24/G24), 0, J24/G24) -> 2.080570684
A25: ='11. RTSR - Current Rates'!A30 -> EMD_TN | B25: ='4. Billing Det. for Def-Var'!B25 -> EMBEDDED DISTRIBUTOR SERVICE CLASSIFICATION | C25: =VLOOKUP(A25,RTSR,3,FALSE) -> Retail Transmission Rate – Network Service Rate | D25: =VLOOKUP(A25,RTSR,4,FALSE) -> $/kW | E25: =VLOOKUP(A25,RATES,4,FALSE) -> 2.8743 | F25: 0 | G25: =VLOOKUP(A25,RTSR,7,FALSE) -> 0 | H25: =IF(ISERROR(E25*F25), 0, ROUND(E25*F25, 2)) -> 0 | I25: =H25/SUM(H$17:H$26) -> 0 | J25: =I25*total_wholesale_TN -> 0 | K25: =+K20 -> 2.802204367
A26: ='11. RTSR - Current Rates'!A32 -> DG_TN | B26: ='4. Billing Det. for Def-Var'!B26 -> DISTRIBUTED GENERATION [DGEN] SERVICE CLASSIFICATION | C26: =VLOOKUP(A26,RTSR,3,FALSE) -> Retail Transmission Rate – Network Service Rate | D26: =VLOOKUP(A26,RTSR,4,FALSE) -> $/kWh | E26: =VLOOKUP(A26,RATES,4,FALSE) -> 0.0066 | F26: =VLOOKUP(A26,RTSR,9,FALSE) -> 198569.9502 | G26: =VLOOKUP(A26,RTSR,7,FALSE) -> 0 | H26: =IF(ISERROR(E26*F26), 0, ROUND(E26*F26, 2)) -> 1310.56 | I26: =H26/SUM(H$17:H$26) -> 4.695159043e-05 | J26: =I26*total_wholesale_TN -> 1277.68742 | K26: =IF(ISERROR(J26/F26), 0, J26/F26) -> 0.006434444984
B27: The purpose of this table is to re-align the current RTS Connection Rates to recover current wholesale connection costs.
B28: Rate Class | C28: Rate Description | D28: Unit | E28: Current RTSR-Connection | F28: Loss Adjusted Billed kWh | G28: Billed kW | H28: Billed Amount | I28: Billed Amount % | J28: Current Wholesale Billing | K28: Adjusted RTSR-Connection
A30: R_TC | B30: =B17 -> RESIDENTIAL SERVICE CLASSIFICATION | C30: =VLOOKUP(A30,RTSR,3,FALSE) -> Retail Transmission Rate – Line and Transformation Connection Service Rate | D30: =VLOOKUP(A30,RTSR,4,FALSE) -> $/kWh | E30: =VLOOKUP(A30,RATES,4,FALSE) -> 0.0065 | F30: =F17 -> 1282281067 | G30: 0 | H30: =IF(ISERROR(E30*F30), 0, ROUND(E30*F30, 2)) -> 8334826.94 | I30: =H30/SUM(H$30:H$39) -> 0.3505844836 | J30: =I30*total_wholesale_LinePlus -> 8090175.017 | K30: =IF(ISERROR(J30/F30), 0, J30/F30) -> 0.006309205698
A31: GSL_TC | B31: GENERAL SERVICE LESS THAN 50 kW SERVICE CLASSIFICATION | C31: =VLOOKUP(A31,RTSR,3,FALSE) -> Retail Transmission Rate – Line and Transformation Connection Service Rate | D31: =VLOOKUP(A31,RTSR,4,FALSE) -> $/kWh | E31: =VLOOKUP(A31,RATES,4,FALSE) -> 0.0055 | F31: 345637384.4 | G31: 0 | H31: =IF(ISERROR(E31*F31), 0, ROUND(E31*F31, 2)) -> 1901005.61 | I31: =H31/SUM(H$30:H$39) -> 0.07996123674 | J31: =I31*total_wholesale_LinePlus -> 1845205.45 | K31: =IF(ISERROR(J31/F31), 0, J31/F31) -> 0.005338558654
A32: GS50_699_TC | B32: GENERAL SERVICE 50 TO 699 KW SERVICE CLASSIFICATION | C32: =VLOOKUP(A32,RTSR,3,FALSE) -> Retail Transmission Rate – Line and Transformation Connection Service Rate | D32: =VLOOKUP(A32,RTSR,4,FALSE) -> $/kW | E32: =VLOOKUP(A32,RATES,4,FALSE) -> 2.1878 | F32: 1145465128 | G32: 3139342.391 | H32: =IF(ISERROR(E32*G32), 0, ROUND(E32*G32, 2)) -> 6868253.28 | I32: =H32/SUM(H$30:H$39) -> 0.2888965838 | J32: =I32*total_wholesale_LinePlus -> 6666649.649 | K32: =IF(ISERROR(J32/G32), 0, J32/G32) -> 2.123581572
A33: GS700_TC | B33: GENERAL SERVICE 700 to 4,999 KW SERVICE CLASSIFICATION | C33: =VLOOKUP(A33,RTSR,3,FALSE) -> Retail Transmission Rate – Line and Transformation Connection Service Rate | D33: =VLOOKUP(A33,RTSR,4,FALSE) -> $/kW | E33: =VLOOKUP(A33,RATES,4,FALSE) -> 2.3517 | F33: 876079793 | G33: 1984988.844 | H33: =IF(ISERROR(E33*G33), 0, ROUND(E33*G33, 2)) -> 4668098.27 | I33: =H33/SUM(H$30:H$39) -> 0.1963523458 | J33: =I33*total_wholesale_LinePlus -> 4531075.723 | K33: =IF(ISERROR(J33/G33), 0, J33/G33) -> 2.282670623
A34: LU_TC | B34: LARGE USE SERVICE CLASSIFICATION | C34: =VLOOKUP(A34,RTSR,3,FALSE) -> Retail Transmission Rate – Line and Transformation Connection Service Rate | D34: =VLOOKUP(A34,RTSR,4,FALSE) -> $/kW | E34: =VLOOKUP(A34,RATES,4,FALSE) -> 2.7181 | F34: 366955302.1 | G34: 653806 | H34: =IF(ISERROR(E34*G34), 0, ROUND(E34*G34, 2)) -> 1777110.09 | I34: =H34/SUM(H$30:H$39) -> 0.07474986916 | J34: =I34*total_wholesale_LinePlus -> 1724946.631 | K34: =IF(ISERROR(J34/G34), 0, J34/G34) -> 2.638315695
B35: STANDBY POWER SERVICE CLASSIFICATION
A36: USL_TC | B36: UNMETERED SCATTERED LOAD SERVICE CLASSIFICATION | C36: =VLOOKUP(A36,RTSR,3,FALSE) -> Retail Transmission Rate – Line and Transformation Connection Service Rate | D36: =VLOOKUP(A36,RTSR,4,FALSE) -> $/kWh | E36: =VLOOKUP(A36,RATES,4,FALSE) -> 0.0055 | F36: =F23 -> 6175444.585 | G36: 0 | H36: =IF(ISERROR(E36*F36), 0, ROUND(E36*F36, 2)) -> 33964.95 | I36: =H36/SUM(H$30:H$39) -> 0.001428654073 | J36: =I36*total_wholesale_LinePlus -> 32967.97785 | K36: =IF(ISERROR(J36/F36), 0, J36/F36) -> 0.005338559418
A37: SL_TC | B37: STREET LIGHTING SERVICE CLASSIFICATION | C37: =VLOOKUP(A37,RTSR,3,FALSE) -> Retail Transmission Rate – Line and Transformation Connection Service Rate | D37: =VLOOKUP(A37,RTSR,4,FALSE) -> $/kW | E37: =VLOOKUP(A37,RATES,4,FALSE) -> 1.8215 | F37: 37798984.72 | G37: 104166 | H37: =IF(ISERROR(E37*G37), 0, ROUND(E37*G37, 2)) -> 189738.37 | I37: =H37/SUM(H$30:H$39) -> 0.007980888979 | J37: =I37*total_wholesale_LinePlus -> 184168.9854 | K37: =IF(ISERROR(J37/G37), 0, J37/G37) -> 1.768033575
A38: EMD_TC | B38: EMBEDDED DISTRIBUTOR SERVICE CLASSIFICATION | C38: =VLOOKUP(A38,RTSR,3,FALSE) -> Retail Transmission Rate – Line and Transformation Connection Service Rate | D38: =VLOOKUP(A38,RTSR,4,FALSE) -> $/kW | E38: =VLOOKUP(A38,RATES,4,FALSE) -> 2.3517 | F38: 0 | G38: 0 | H38: =IF(ISERROR(E38*F38), 0, ROUND(E38*F38, 2)) -> 0 | I38: =H38/SUM(H$30:H$39) -> 0 | J38: =I38*total_wholesale_LinePlus -> 0 | K38: =+K33 -> 2.282670623
A39: DG_TC | B39: DISTRIBUTED GENERATION [DGEN] SERVICE CLASSIFICATION | C39: =VLOOKUP(A39,RTSR,3,FALSE) -> Retail Transmission Rate – Line and Transformation Connection Service Rate | D39: =VLOOKUP(A39,RTSR,4,FALSE) -> $/kWh | E39: =VLOOKUP(A39,RATES,4,FALSE) -> 0.0055 | F39: 198569.9502 | G39: 0 | H39: =IF(ISERROR(E39*F39), 0, ROUND(E39*F39, 2)) -> 1092.13 | I39: =H39/SUM(H$30:H$39) -> 4.593782629e-05 | J39: =I39*total_wholesale_LinePlus -> 1060.072741 | K39: =IF(ISERROR(J39/F39), 0, J39/F39) -> 0.005338535564
B40: The purpose of this table is to update the re-aligned RTS Network Rates to recover future wholesale network costs.
B41: Rate Class | C41: Rate Description | D41: Unit | E41: Adjusted RTSR-Network | F41: Loss Adjusted Billed kWh | G41: Billed kW | H41: Billed Amount | I41: Billed Amount % | J41: Current Wholesale Billing | K41: Proposed RTSR-Network
A43: R_TN | B43: =B17 -> RESIDENTIAL SERVICE CLASSIFICATION | C43: =VLOOKUP(A43,RTSR,3,FALSE) -> Retail Transmission Rate – Network Service Rate | D43: =VLOOKUP(A43,RTSR,4,FALSE) -> $/kWh | E43: =K17 -> 0.007214386911 | F43: =VLOOKUP(A43,RTSR,9,FALSE) -> 1282281067 | G43: =VLOOKUP(A43,RTSR,7,FALSE) -> 0 | H43: =IF(ISERROR(E43*F43), 0, ROUND(E43*F43, 2)) -> 9250871.75 | I43: =H43/SUM(H$43:H$52) -> 0.3399447586 | J43: =I43*forecast_wholesale_TN -> 9250871.75 | K43: =IF(ISERROR(J43/F43), 0, J43/F43) -> 0.007214386913
A44: GSL_TN | B44: GENERAL SERVICE LESS THAN 50 kW SERVICE CLASSIFICATION | C44: =VLOOKUP(A44,RTSR,3,FALSE) -> Retail Transmission Rate – Network Service Rate | D44: =VLOOKUP(A44,RTSR,4,FALSE) -> $/kWh | E44: =K18 -> 0.006434453198 | F44: =VLOOKUP(A44,RTSR,9,FALSE) -> 345637384.4 | G44: =VLOOKUP(A44,RTSR,7,FALSE) -> 0 | H44: =IF(ISERROR(E44*F44), 0, ROUND(E44*F44, 2)) -> 2223987.57 | I44: =H44/SUM(H$43:H$52) -> 0.08172558629 | J44: =I44*forecast_wholesale_TN -> 2223987.57 | K44: =IF(ISERROR(J44/F44), 0, J44/F44) -> 0.006434453188
A45: GS50_699_TN | B45: GENERAL SERVICE 50 TO 699 KW SERVICE CLASSIFICATION | C45: =VLOOKUP(A45,RTSR,3,FALSE) -> Retail Transmission Rate – Network Service Rate | D45: =VLOOKUP(A45,RTSR,4,FALSE) -> $/kW | E45: =K19 -> 2.498712656 | F45: =VLOOKUP(A45,RTSR,9,FALSE) -> 1145465128 | G45: =VLOOKUP(A45,RTSR,7,FALSE) -> 3139342.391 | H45: =IF(ISERROR(E45*G45), 0, ROUND(E45*G45, 2)) -> 7844314.56 | I45: =H45/SUM(H$43:H$52) -> 0.2882575493 | J45: =I45*forecast_wholesale_TN -> 7844314.56 | K45: =IF(ISERROR(J45/G45), 0, J45/G45) -> 2.498712655
A46: GS700_TN | B46: GENERAL SERVICE 700 to 4,999 KW SERVICE CLASSIFICATION | C46: =VLOOKUP(A46,RTSR,3,FALSE) -> Retail Transmission Rate – Network Service Rate | D46: =VLOOKUP(A46,RTSR,4,FALSE) -> $/kW | E46: =K20 -> 2.802204367 | F46: =VLOOKUP(A46,RTSR,9,FALSE) -> 876079793 | G46: =VLOOKUP(A46,RTSR,7,FALSE) -> 1984988.844 | H46: =IF(ISERROR(E46*G46), 0, ROUND(E46*G46, 2)) -> 5562344.41 | I46: =H46/SUM(H$43:H$52) -> 0.2044012584 | J46: =I46*forecast_wholesale_TN -> 5562344.41 | K46: =IF(ISERROR(J46/G46), 0, J46/G46) -> 2.802204368
A47: LU_TN | B47: LARGE USE SERVICE CLASSIFICATION | C47: =VLOOKUP(A47,RTSR,3,FALSE) -> Retail Transmission Rate – Network Service Rate | D47: =VLOOKUP(A47,RTSR,4,FALSE) -> $/kW | E47: =K21 -> 3.171600474 | F47: =VLOOKUP(A47,RTSR,9,FALSE) -> 366955302.1 | G47: =VLOOKUP(A47,RTSR,7,FALSE) -> 653806 | H47: =IF(ISERROR(E47*G47), 0, ROUND(E47*G47, 2)) -> 2073611.42 | I47: =H47/SUM(H$43:H$52) -> 0.07619966556 | J47: =I47*forecast_wholesale_TN -> 2073611.42 | K47: =IF(ISERROR(J47/G47), 0, J47/G47) -> 3.171600475
B48: STANDBY POWER SERVICE CLASSIFICATION
A49: USL_TN | B49: UNMETERED SCATTERED LOAD SERVICE CLASSIFICATION | C49: =VLOOKUP(A49,RTSR,3,FALSE) -> Retail Transmission Rate – Network Service Rate | D49: =VLOOKUP(A49,RTSR,4,FALSE) -> $/kWh | E49: =K23 -> 0.006434452518 | F49: =VLOOKUP(A49,RTSR,9,FALSE) -> 6175444.585 | G49: =VLOOKUP(A49,RTSR,7,FALSE) -> 0 | H49: =IF(ISERROR(E49*F49), 0, ROUND(E49*F49, 2)) -> 39735.6 | I49: =H49/SUM(H$43:H$52) -> 0.001460176869 | J49: =I49*forecast_wholesale_TN -> 39735.6 | K49: =IF(ISERROR(J49/F49), 0, J49/F49) -> 0.006434451715
A50: SL_TN | B50: STREET LIGHTING SERVICE CLASSIFICATION | C50: =VLOOKUP(A50,RTSR,3,FALSE) -> Retail Transmission Rate – Network Service Rate | D50: =VLOOKUP(A50,RTSR,4,FALSE) -> $/kW | E50: =K24 -> 2.080570684 | F50: =VLOOKUP(A50,RTSR,9,FALSE) -> 37798984.72 | G50: =VLOOKUP(A50,RTSR,7,FALSE) -> 104166 | H50: =IF(ISERROR(E50*G50), 0, ROUND(E50*G50, 2)) -> 216724.73 | I50: =H50/SUM(H$43:H$52) -> 0.007964053335 | J50: =I50*forecast_wholesale_TN -> 216724.73 | K50: =IF(ISERROR(J50/G50), 0, J50/G50) -> 2.080570724
A51: EMD_TN | B51: EMBEDDED DISTRIBUTOR SERVICE CLASSIFICATION | C51: =VLOOKUP(A51,RTSR,3,FALSE) -> Retail Transmission Rate – Network Service Rate | D51: =VLOOKUP(A51,RTSR,4,FALSE) -> $/kW | E51: =K25 -> 2.802204367 | F51: 0 | G51: =VLOOKUP(A51,RTSR,7,FALSE) -> 0 | H51: =IF(ISERROR(E51*F51), 0, ROUND(E51*F51, 2)) -> 0 | I51: =H51/SUM(H$43:H$52) -> 0 | J51: =I51*forecast_wholesale_TN -> 0 | K51: =+K46 -> 2.802204368
A52: DG_TN | B52: DISTRIBUTED GENERATION [DGEN] SERVICE CLASSIFICATION | C52: =VLOOKUP(A52,RTSR,3,FALSE) -> Retail Transmission Rate – Network Service Rate | D52: =VLOOKUP(A52,RTSR,4,FALSE) -> $/kWh | E52: =K26 -> 0.006434444984 | F52: =VLOOKUP(A52,RTSR,9,FALSE) -> 198569.9502 | G52: =VLOOKUP(A52,RTSR,7,FALSE) -> 0 | H52: =IF(ISERROR(E52*F52), 0, ROUND(E52*F52, 2)) -> 1277.69 | I52: =H52/SUM(H$43:H$52) -> 4.695168523e-05 | J52: =I52*forecast_wholesale_TN -> 1277.69 | K52: =IF(ISERROR(J52/F52), 0, J52/F52) -> 0.006434457977
B53: The purpose of this table is to update the re-aligned RTS Connection Rates to recover future wholesale connection costs.
B54: Rate Class | C54: Rate Description | D54: Unit | E54: Adjusted RTSR-Connection | F54: Loss Adjusted Billed kWh | G54: Billed kW | H54: Billed Amount | I54: Billed Amount % | J54: Current Wholesale Billing | K54: Proposed RTSR-Connection
A56: R_TC | B56: =B17 -> RESIDENTIAL SERVICE CLASSIFICATION | C56: =VLOOKUP(A56,RTSR,3,FALSE) -> Retail Transmission Rate – Line and Transformation Connection Service Rate | D56: =VLOOKUP(A56,RTSR,4,FALSE) -> $/kWh | E56: =K30 -> 0.006309205698 | F56: =VLOOKUP(A56,RTSR,9,FALSE) -> 1282281067 | G56: =VLOOKUP(A56,RTSR,7,FALSE) -> 0 | H56: =IF(ISERROR(E56*F56), 0, ROUND(E56*F56, 2)) -> 8090175.02 | I56: =H56/SUM(H$56:H$65) -> 0.3505844837 | J56: =I56*forecast_wholesale_LNPlus -> 8090175.018 | K56: =IF(ISERROR(J56/F56), 0, J56/F56) -> 0.0063092057
A57: GSL_TC | B57: GENERAL SERVICE LESS THAN 50 kW SERVICE CLASSIFICATION | C57: =VLOOKUP(A57,RTSR,3,FALSE) -> Retail Transmission Rate – Line and Transformation Connection Service Rate | D57: =VLOOKUP(A57,RTSR,4,FALSE) -> $/kWh | E57: =K31 -> 0.005338558654 | F57: =VLOOKUP(A57,RTSR,9,FALSE) -> 345637384.4 | G57: =VLOOKUP(A57,RTSR,7,FALSE) -> 0 | H57: =IF(ISERROR(E57*F57), 0, ROUND(E57*F57, 2)) -> 1845205.45 | I57: =H57/SUM(H$56:H$65) -> 0.07996123673 | J57: =I57*forecast_wholesale_LNPlus -> 1845205.45 | K57: =IF(ISERROR(J57/F57), 0, J57/F57) -> 0.005338558654
A58: GS50_699_TC | B58: GENERAL SERVICE 50 TO 699 KW SERVICE CLASSIFICATION | C58: =VLOOKUP(A58,RTSR,3,FALSE) -> Retail Transmission Rate – Line and Transformation Connection Service Rate | D58: =VLOOKUP(A58,RTSR,4,FALSE) -> $/kW | E58: =K32 -> 2.123581572 | F58: =VLOOKUP(A58,RTSR,9,FALSE) -> 1145465128 | G58: =VLOOKUP(A58,RTSR,7,FALSE) -> 3139342.391 | H58: =IF(ISERROR(E58*G58), 0, ROUND(E58*G58, 2)) -> 6666649.65 | I58: =H58/SUM(H$56:H$65) -> 0.2888965838 | J58: =I58*forecast_wholesale_LNPlus -> 6666649.649 | K58: =IF(ISERROR(J58/G58), 0, J58/G58) -> 2.123581572
A59: GS700_TC | B59: GENERAL SERVICE 700 to 4,999 KW SERVICE CLASSIFICATION | C59: =VLOOKUP(A59,RTSR,3,FALSE) -> Retail Transmission Rate – Line and Transformation Connection Service Rate | D59: =VLOOKUP(A59,RTSR,4,FALSE) -> $/kW | E59: =K33 -> 2.282670623 | F59: =VLOOKUP(A59,RTSR,9,FALSE) -> 876079793 | G59: =VLOOKUP(A59,RTSR,7,FALSE) -> 1984988.844 | H59: =IF(ISERROR(E59*G59), 0, ROUND(E59*G59, 2)) -> 4531075.72 | I59: =H59/SUM(H$56:H$65) -> 0.1963523456 | J59: =I59*forecast_wholesale_LNPlus -> 4531075.719 | K59: =IF(ISERROR(J59/G59), 0, J59/G59) -> 2.282670622
A60: LU_TC | B60: LARGE USE SERVICE CLASSIFICATION | C60: =VLOOKUP(A60,RTSR,3,FALSE) -> Retail Transmission Rate – Line and Transformation Connection Service Rate | D60: =VLOOKUP(A60,RTSR,4,FALSE) -> $/kW | E60: =K34 -> 2.638315695 | F60: =VLOOKUP(A60,RTSR,9,FALSE) -> 366955302.1 | G60: =VLOOKUP(A60,RTSR,7,FALSE) -> 653806 | H60: =IF(ISERROR(E60*G60), 0, ROUND(E60*G60, 2)) -> 1724946.63 | I60: =H60/SUM(H$56:H$65) -> 0.07474986909 | J60: =I60*forecast_wholesale_LNPlus -> 1724946.63 | K60: =IF(ISERROR(J60/G60), 0, J60/G60) -> 2.638315692
B61: STANDBY POWER SERVICE CLASSIFICATION
A62: USL_TC | B62: UNMETERED SCATTERED LOAD SERVICE CLASSIFICATION | C62: =VLOOKUP(A62,RTSR,3,FALSE) -> Retail Transmission Rate – Line and Transformation Connection Service Rate | D62: =VLOOKUP(A62,RTSR,4,FALSE) -> $/kWh | E62: =K36 -> 0.005338559418 | F62: =VLOOKUP(A62,RTSR,9,FALSE) -> 6175444.585 | G62: =VLOOKUP(A62,RTSR,7,FALSE) -> 0 | H62: =IF(ISERROR(E62*F62), 0, ROUND(E62*F62, 2)) -> 32967.98 | I62: =H62/SUM(H$56:H$65) -> 0.001428654166 | J62: =I62*forecast_wholesale_LNPlus -> 32967.97999 | K62: =IF(ISERROR(J62/F62), 0, J62/F62) -> 0.005338559765
A63: SL_TC | B63: STREET LIGHTING SERVICE CLASSIFICATION | C63: =VLOOKUP(A63,RTSR,3,FALSE) -> Retail Transmission Rate – Line and Transformation Connection Service Rate | D63: =VLOOKUP(A63,RTSR,4,FALSE) -> $/kW | E63: =K37 -> 1.768033575 | F63: =VLOOKUP(A63,RTSR,9,FALSE) -> 37798984.72 | G63: =VLOOKUP(A63,RTSR,7,FALSE) -> 104166 | H63: =IF(ISERROR(E63*G63), 0, ROUND(E63*G63, 2)) -> 184168.99 | I63: =H63/SUM(H$56:H$65) -> 0.007980889179 | J63: =I63*forecast_wholesale_LNPlus -> 184168.99 | K63: =IF(ISERROR(J63/G63), 0, J63/G63) -> 1.768033619
A64: EMD_TC | B64: EMBEDDED DISTRIBUTOR SERVICE CLASSIFICATION | C64: =VLOOKUP(A64,RTSR,3,FALSE) -> Retail Transmission Rate – Line and Transformation Connection Service Rate | D64: =VLOOKUP(A64,RTSR,4,FALSE) -> $/kW | E64: =K38 -> 2.282670623 | F64: 0 | G64: =VLOOKUP(A64,RTSR,7,FALSE) -> 0 | H64: =IF(ISERROR(E64*F64), 0, ROUND(E64*F64, 2)) -> 0 | I64: =H64/SUM(H$56:H$65) -> 0 | J64: =I64*forecast_wholesale_LNPlus -> 0 | K64: =+K59 -> 2.282670622
A65: DG_TC | B65: DISTRIBUTED GENERATION [DGEN] SERVICE CLASSIFICATION | C65: =VLOOKUP(A65,RTSR,3,FALSE) -> Retail Transmission Rate – Line and Transformation Connection Service Rate | D65: =VLOOKUP(A65,RTSR,4,FALSE) -> $/kWh | E65: =K39 -> 0.005338535564 | F65: =VLOOKUP(A65,RTSR,9,FALSE) -> 198569.9502 | G65: =VLOOKUP(A65,RTSR,7,FALSE) -> 0 | H65: =IF(ISERROR(E65*F65), 0, ROUND(E65*F65, 2)) -> 1060.07 | I65: =H65/SUM(H$56:H$65) -> 4.593770749e-05 | J65: =I65*forecast_wholesale_LNPlus -> 1060.07 | K65: =IF(ISERROR(J65/F65), 0, J65/F65) -> 0.005338521759

Sheet 17. Rev2Cost-GDPIPI
A1: Back to Index | C1: Back to Index | AA1: FALSE | AB1: 0 | AE1: NO
C2: =+'1. Information Sheet'!B2 -> INCENTIVE REGULATION MODEL FOR 2019 FILERS | S2: TRUE
C11: If applicable, please enter any adjustments related to the revenue to cost ratio model into columns C and E. The Price Escalator and Stretch Factor have been set at the 2016 values and will be updated by OEB staff at a later date.
C12: Price Escalator | D12: 0.012 | E12: Productivity Factor | F12: 0 | G12: # of Residential Customers (approved in the last CoS) | H12: 140979 | I12: Effective Year of Residential Rate Design Transition (yyyy) | J12: 2016
C13: Choose Stretch Factor Group | D13: III | E13: Price Cap Index | F13: =D12-F12-D14 -> 0.009 | G13: Billed kWh for Residential Class (approved in the last CoS) | H13: 1308264983 | I13: OEB-approved # of Transition Years | J13: 4
C14: Associated Stretch Factor Value | D14: =IF(D13="I", 0%, IF(D13="II", 0.15%, IF(D13="III", 0.3%, IF(D13="IV", 0.45%, 0.6%)))) -> 0.003 | G14: Rate Design Transition Years Left | H14: 1
C15: Rate Class | D15: Current MFC | E15: MFC Adjustment from R/C Model | F15: Current Volumetric Charge | G15: DVR Adjustment from R/C Model | H15: Price Cap Index to be Applied to MFC and DVR | I15: Proposed MFC | J15: Proposed Volumetric Charge
A17: R_F | B17: R_V | C17: RESIDENTIAL SERVICE CLASSIFICATION | D17: =IFERROR(VLOOKUP(A17,RATES,4,FALSE),"") -> 20.92 | F17: =IFERROR(VLOOKUP(B17,RATES,4,FALSE),"") -> 0.004 | H17: =F$13 -> 0.009 | I17: =J31*(1+F13) -> 24.22609 | J17: =J32*(1+F13) -> 0
A18: GSL_F | B18: GSL_V | C18: GENERAL SERVICE LESS THAN 50 kW SERVICE CLASSIFICATION | D18: =IFERROR(VLOOKUP(A18,RATES,4,FALSE),"") -> 25.35 | F18: 0.0169 | H18: =F$13 -> 0.009 | I18: =(D18+E18)*(1+F$13) -> 25.57815 | J18: =(F18+G18)*(1+F$13) -> 0.0170521
A19: GS50_699_F | B19: GS50_699_V | C19: GENERAL SERVICE 50 TO 699 KW SERVICE CLASSIFICATION | D19: =IFERROR(VLOOKUP(A19,RATES,4,FALSE),"") -> 126.46 | F19: 2.8642 | H19: 0.009 | I19: =(D19+E19)*(1+F$13) -> 127.59814 | J19: =(F19+G19)*(1+F$13) -> 2.8899778
A20: GS700_F | B20: GS700_V | C20: GENERAL SERVICE 700 to 4,999 KW SERVICE CLASSIFICATION | D20: =IFERROR(VLOOKUP(A20,RATES,4,FALSE),"") -> 1141.02 | F20: 3.325 | H20: 0.009 | I20: =(D20+E20)*(1+F$13) -> 1151.28918 | J20: 3.354925
A21: LU_F | B21: LU_V | C21: LARGE USE SERVICE CLASSIFICATION | D21: 4748.01 | F21: 2.5174 | H21: 0.009 | I21: 4790.74209 | J21: 2.5400566
B22: SB_V | C22: STANDBY POWER SERVICE CLASSIFICATION | F22: 1.6931 | H22: 0.009 | I22: 0 | J22: 1.7083379
A23: USL_F | B23: USL_V | C23: UNMETERED SCATTERED LOAD SERVICE CLASSIFICATION | D23: 1.1 | F23: 0.02 | H23: 0.009 | I23: 1.1099 | J23: 0.02018
A24: SL_F | B24: SL_V | C24: STREET LIGHTING SERVICE CLASSIFICATION | D24: 2.32 | F24: 11.6426 | H24: 0.009 | I24: 2.34088 | J24: 11.7473834
A25: EMD_F | C25: EMBEDDED DISTRIBUTOR SERVICE CLASSIFICATION | D25: 4197.26 | H25: 0.009 | I25: 4235.03534 | J25: 0
A26: DG_F | C26: DISTRIBUTED GENERATION [DGEN] SERVICE CLASSIFICATION | D26: 104.91 | H26: 0.009 | I26: 105.85419 | J26: 0
A27: WST_F | C27: ENERGY FROM WASTE SERVICE CLASSIFICATION | D27: 63.66 | H27: 0.009 | I27: 64.23294 | J27: 0
C28: microFIT SERVICE CLASSIFICATION | D28: 5.4 | H28: 0.009 | I28: =D28 -> 5.4 | J28: 0
C30: Rate Design Transition | E30: Revenue from Rates | F30: Current F/V Split | G30: Decoupling MFC Split | H30: Incremental Fixed Charge ($/month/year) | I30: New F/V Split | J30: Adjusted Rates1 | K30: Revenue at New F/V Split
C31: Current Residential Fixed Rate (inclusive of R/C adj.) | D31: =D17+E17 -> 20.92 | E31: =D31*COS_RES_CUSTOMERS*12 -> 35391368.16 | F31: =IF(ISERROR(E31/E33), 0, E31/E33) -> 0.8711844036 | G31: =IF(ISERROR((1-F31)/YRS_LEFT), 0, (1-F31)/YRS_LEFT) -> 0.1288155964 | H31: =IF(ISERROR(ROUND(G31*E33/COS_RES_CUSTOMERS/12, 2)), 0, ROUND(G31*E33/COS_RES_CUSTOMERS/12, 2)) -> 3.09 | I31: =G31+F31 -> 1 | J31: =IF(ISERROR(ROUND(I31*E33/COS_RES_CUSTOMERS/12, 2)), 0, ROUND(I31*E33/COS_RES_CUSTOMERS/12, 2)) -> 24.01 | K31: =ROUND(J31*COS_RES_CUSTOMERS*12, 2) -> 40618869.48
C32: Current Residential Variable Rate (inclusive of R/C adj.) | D32: =F17+G17 -> 0.004 | E32: =D32*COS_RES_KWH -> 5233059.932 | F32: =IF(ISERROR(E32/E33), 0, E32/E33) -> 0.1288155964 | I32: =1-I31 -> 0 | J32: =IF(ISERROR(ROUND(I32*E33/COS_RES_KWH, 4)), 0, ROUND(I32*E33/COS_RES_KWH, 4)) -> 0 | K32: =ROUND(J32*COS_RES_KWH, 2) -> 0
E33: =SUM(E31+E32) -> 40624428.09 | K33: =SUM(K31+K32) -> 40618869.48
C36: =IF((J31-D31)>=4, "The Rate Design Transition has calculated a monthly fixed charge greater than or equal to $4. Please refer to Section 3.2.3 of the Chapter 3 Filing Requirements for mitigation instructions.", "") -> 
C38: 1 These are the residential rates to which the Price Cap Index will be applied to.

Sheet 18. Regulatory Charges
A1: Back to Index
B2: =+'1. Information Sheet'!B2 -> INCENTIVE REGULATION MODEL FOR 2019 FILERS
C12: Update the following rates if an OEB Decision has been issued at the time of completing this application
E13: Proposed
C14: Wholesale Market Service Rate (WMS) - not including CBR | D14: $/kWh | E14: 0.0032
C15: Capacity Based Recovery (CBR) - Applicable for Class B Customers | D15: $/kWh | E15: 0.0004
C16: Rural or Remote Electricity Rate Protection Charge (RRRP) | D16: $/kWh | E16: 0.0003
C17: Standard Supply Service - Administrative Charge (if applicable) | D17: $ | E17: 0.25
C19: Time-of-Use RPP Prices
C20: As of | D20: 2018-05-01
C21: Off-Peak | D21: $/kWh | E21: 0.065
C22: Mid-Peak | D22: $/kWh | E22: 0.094
C23: On-Peak | D23: $/kWh | E23: 0.132

Sheet 19. Additional Rates
A1: Back to Index | AB1: 3
B2: =+'1. Information Sheet'!B2 -> INCENTIVE REGULATION MODEL FOR 2019 FILERS
B11: In the Green Cells below, enter any proposed rate riders that are not already included in this model (e.g.: proposed ICM rate riders). Please note that existing SMIRR and SM Entity Charge do not need to be included below. In column A, the rate rider descriptions must begin with "Rate Rider for". In column B, choose the associated unit from the drop-down menu. In column C, enter the rate. All rate riders with a "$" unit should be rounded to 2 decimal places and all others rounded to 4 decimal places. In column E, enter the expiry date (e.g. April 30, 2018) or description of the expiry date in text (e.g. the effective date of the next cost of service-based rate order). In column G, choose the sub-total as applicable in the bill impact calculation from the drop-down menu
B13: ='4. Billing Det. for Def-Var'!B17 -> RESIDENTIAL SERVICE CLASSIFICATION
B14: Rate Rider for Disposition of Capitalization Policy (2019) - effective until December 31, 2019 | C14: $ | D14: 0.38 | E14: - effective until | F14: 2019-12-31 | H14: A
E15: - effective until
E16: - effective until
E17: - effective until
E18: - effective until
E19: - effective until
E20: - effective until
E21: - effective until
E22: - effective until
E23: - effective until
B26: ='4. Billing Det. for Def-Var'!B18 -> GENERAL SERVICE LESS THAN 50 kW SERVICE CLASSIFICATION
B27: Rate Rider for Disposition of Capitalization Policy (2019) - effective until December 31, 2019 | C27: $ | D27: 0.41 | E27: - effective until | F27: 2019-12-31 | H27: A
B28: Rate Rider for Disposition of Capitalization Policy (2019) - effective until December 31, 2019 | C28: $/kWh | D28: 0.0003 | E28: - effective until | F28: 2019-12-31 | H28: A
E29: - effective until
E30: - effective until
E31: - effective until
E32: - effective until
E33: - effective until
E34: - effective until
E35: - effective until
B38: ='4. Billing Det. for Def-Var'!B19 -> GENERAL SERVICE 50 TO 699 KW SERVICE CLASSIFICATION
B39: Rate Rider for Disposition of Capitalization Policy (2019) - effective until December 31, 2019 | C39: $ | D39: 2.04 | E39: - effective until | F39: 2019-12-31 | H39: A
B40: Rate Rider for Disposition of Capitalization Policy (2019) - effective until December 31, 2019 | C40: $/kW | D40: 0.0463 | E40: - effective until | F40: 2019-12-31 | H40: A
E41: - effective until
E42: - effective until
E43: - effective until
E44: - effective until
E45: - effective until
E46: - effective until
E47: - effective until
B50: ='4. Billing Det. for Def-Var'!B20 -> GENERAL SERVICE 700 to 4,999 KW SERVICE CLASSIFICATION
B51: Rate Rider for Disposition of Capitalization Policy (2019) - effective until December 31, 2019 | C51: $ | D51: 18.45 | E51: - effective until | F51: 2019-12-31 | H51: A
B52: Rate Rider for Disposition of Capitalization Policy (2019) - effective until December 31, 2019 | C52: $/kW | D52: 0.0538 | E52: - effective until | F52: 2019-12-31 | H52: A
E53: - effective until
E54: - effective until
E55: - effective until
E56: - effective until
E57: - effective until
E58: - effective until
E59: - effective until
B62: ='4. Billing Det. for Def-Var'!B21 -> LARGE USE SERVICE CLASSIFICATION
B63: Rate Rider for Disposition of Capitalization Policy (2019) - effective until December 31, 2019 | C63: $ | D63: 76.77 | E63: - effective until | F63: 2019-12-31 | H63: A
B64: Rate Rider for Disposition of Capitalization Policy (2019) - effective until December 31, 2019 | C64: $/kW | D64: 0.0407 | E64: - effective until | F64: 2019-12-31 | H64: A
E65: - effective until
E66: - effective until
E67: - effective until
E68: - effective until
E69: - effective until
E70: - effective until
E71: - effective until
B74: ='4. Billing Det. for Def-Var'!B23 -> UNMETERED SCATTERED LOAD SERVICE CLASSIFICATION
B75: Rate Rider for Disposition of Capitalization Policy (2019) - effective until December 31, 2019 | C75: $ | D75: 0.02 | E75: - effective until | F75: 2019-12-31 | H75: A
B76: Rate Rider for Disposition of Capitalization Policy (2019) - effective until December 31, 2019 | C76: $/kWh | D76: 0.0003 | E76: - effective until | F76: 2019-12-31 | H76: A
E77: - effective until
E78: - effective until
E79: - effective until
E80: - effective until
E81: - effective until
E82: - effective until
E83: - effective until
B86: ='4. Billing Det. for Def-Var'!B24 -> STREET LIGHTING SERVICE CLASSIFICATION
B87: Rate Rider for Disposition of Capitalization Policy (2019) - effective until December 31, 2019 | C87: $ | D87: 0.04 | E87: - effective until | F87: 2019-12-31 | H87: A
B88: Rate Rider for Disposition of Capitalization Policy (2019) - effective until December 31, 2019 | C88: $/kW | D88: 0.1882 | E88: - effective until | F88: 2019-12-31 | H88: A
E89: - effective until
E90: - effective until
E91: - effective until
E92: - effective until
E93: - effective until
E94: - effective until
E95: - effective until
B98: ='4. Billing Det. for Def-Var'!B25 -> EMBEDDED DISTRIBUTOR SERVICE CLASSIFICATION
B99: Rate Rider for Disposition of Capitalization Policy (2019) - effective until December 31, 2019 | C99: $ | D99: 67.87 | E99: - effective until | F99: 2019-12-31 | H99: A
E100: - effective until
E101: - effective until
E102: - effective until
E103: - effective until
E104: - effective until
E105: - effective until
E106: - effective until
E107: - effective until
B110: ='4. Billing Det. for Def-Var'!B26 -> DISTRIBUTED GENERATION [DGEN] SERVICE CLASSIFICATION
B111: Rate Rider for Disposition of Capitalization Policy (2019) - effective until December 31, 2019 | C111: $ | D111: 1.7 | E111: - effective until | F111: 2019-12-31 | H111: A
E112: - effective until
E113: - effective until
E114: - effective until
E115: - effective until
E116: - effective until
E117: - effective until
E118: - effective until
E119: - effective until
B122: ='4. Billing Det. for Def-Var'!B27 -> ENERGY FROM WASTE SERVICE CLASSIFICATION
E123: - effective until
E124: - effective until
E125: - effective until
E126: - effective until
E127: - effective until
E128: - effective until
E129: - effective until
E130: - effective until
E131: - effective until
B134: MICROFIT SERVICE CLASSIFICATION
E135: - effective until
E136: - effective until
E137: - effective until
E138: - effective until
E139: - effective until
E140: - effective until
E141: - effective until
E142: - effective until
E143: - effective until
E144: - effective until

Sheet 20. Final Tariff Schedule
A1: Back to Index
B2: =+'1. Information Sheet'!B2 -> INCENTIVE REGULATION MODEL FOR 2019 FILERS
B11: ='Model Specs'!C4 -> Alectra - Hydro One Brampton
B12: TARIFF OF RATES AND CHARGES
B13: Effective Date January 1, 2019
B14: Implementation Date January 1, 2019
B16: This schedule supersedes and replaces all previously
B17: approved schedules of Rates, Charges and Loss Factors
B18: EB-2018-0016
B19: RESIDENTIAL SERVICE CLASSIFICATION
B20: This classification applies to an account where the electricity is supplied exclusively to single-family dwelling units for domestic or household purposes, including seasonal occupancy. This includes, but is not limited to, detached houses, one unit of a semi-detached, duplex, triplex or quadruplex house, with a residential zoning. Separately metered dwellings within a town house complex also qualify as residential customers. Class B consumers are defined in accordance with O. Reg. 429/04. Further servicing details are available in the distributor’s Conditions of Service.
B22: APPLICATION
B24: The application of these rates and charges shall be in accordance with the Licence of the Distributor and any Code or Order of the Ontario Energy Board, and amendments thereto as approved by the Ontario Energy Board, which may be applicable to the administration of this schedule.
B26: No rates and charges for the distribution of electricity and charges to meet the costs of any work or service done or furnished for the purpose of the distribution of electricity shall be made except as permitted by this schedule, unless required by the Distributor’s Licence or a Code or Order of the Ontario Energy Ontario Energy Board, and amendments thereto as approved by the Ontario Energy Board, or as specified herein.
B28: Unless specifically noted, this schedule does not contain any charges for the electricity commodity, be it under the Regulated Price Plan, a contract with a retailer or the wholesale market price, as applicable. In addition, the charges in the MONTHLY RATES AND CHARGES - Regulatory Component of this schedule do not apply to a customer that is an embedded wholesale market participant.
B30: It should be noted that this schedule does not list any charges, assessments, or credits that are required by law to be invoiced by a distributor and that are not subject to Ontario Energy Board approval, such as the Debt Retirement Charge, the Global Adjustment and the HST.
B32: MONTHLY RATES AND CHARGES - Delivery Component
A34: R_F | B34: =+RATES!C15 -> Service Charge | C34: =+RATES!G15 -> $ | D34: =VLOOKUP(A34,RATES!A:I,9,FALSE) -> 24.23
A35: R_SME | B35: =+RATES!C18 -> Rate Rider for Smart Metering Entity Charge - effective until December 31, 2022 | C35: =+RATES!G18 -> $ | D35: =VLOOKUP(A35,RATES!A:I,9,FALSE) -> 0.57
A36: R_ICM_F | B36: =+RATES!C24 -> Rate Rider for Incremental Capital Module (ICM) - effective until the date of the next cost of service based rate order | C36: =+RATES!G24 -> $ | D36: =VLOOKUP(A36,RATES!A:I,9,FALSE) -> 0.23
A37: R_CP_F19 | B37: =+RATES!C23 -> Rate Rider for Disposition of Capitalization Policy (2019) - effective until December 31, 2019 | C37: =+RATES!G23 -> $ | D37: =VLOOKUP(A37,RATES!A:I,9,FALSE) -> 0.38
A38: R_V | B38: =+RATES!C16 -> Distribution Volumetric Rate | C38: =+RATES!G16 -> $/kWh | D38: =VLOOKUP(A38,RATES!A:I,9,FALSE) -> 0
A39: R_GA18 | B39: =+RATES!C25 -> Rate Rider for Disposition of Global Adjustment Account (2018) - effective until April 30, 2019 Applicable only for Non-RPP Customers | C39: =+RATES!G25 -> $/kWh | D39: =VLOOKUP(A39,RATES!A:I,9,FALSE) -> -0.0009
A40: R_GA19 | B40: =+RATES!C19 -> Rate Rider for Disposition of Global Adjustment Account (2019) - effective until December 31, 2019 Applicable only for Non-RPP Customers | C40: =+RATES!G19 -> $/kWh | D40: =VLOOKUP(A40,RATES!A:I,9,FALSE) -> 0.0012
A41: R_DVA18 | B41: =+RATES!C26 -> Rate Rider for Disposition of Deferral/Variance Accounts (2018) - effective until April 30, 2019 | C41: =+RATES!G20 -> $/kWh | D41: =VLOOKUP(A41,RATES!A:I,9,FALSE) -> -0.001
A42: R_DVA19 | B42: =+RATES!C21 -> Rate Rider for Disposition of Deferral/Variance Accounts (2019) - effective until December 31, 2019 | C42: =+RATES!G21 -> $/kWh | D42: =VLOOKUP(A42,RATES!A:I,9,FALSE) -> -0.0012
A43: R_LRVA19 | B43: =+RATES!C20 -> Rate Rider for Disposition of Lost Revenue Adjustment Mechanism Variance Account (LRAMVA) (2019) - effective until December 31, 2019 | C43: =+RATES!G20 -> $/kWh | D43: =VLOOKUP(A43,RATES!A:I,9,FALSE) -> 0.0002
A44: R_CBR19 | B44: =+RATES!C22 -> Rate Rider for Disposition of Capacity Based Recovery Account (2019) - effective until December 31, 2019 Applicable Only for Class B Customers | C44: =+RATES!G22 -> $/kWh | D44: =VLOOKUP(A44,RATES!A:I,9,FALSE) -> -4e-05
A45: R_TN | B45: =+RATES!C31 -> Retail Transmission Rate – Network Service Rate | C45: =+RATES!G31 -> $/kWh | D45: =VLOOKUP(A45,RATES!A:I,9,FALSE) -> 0.0072
A46: R_TC | B46: =+RATES!C32 -> Retail Transmission Rate – Line and Transformation Connection Service Rate | C46: =+RATES!G32 -> $/kWh | D46: =VLOOKUP(A46,RATES!A:I,9,FALSE) -> 0.0063
B48: MONTHLY RATES AND CHARGES - Regulatory Component
B50: Wholesale Market Service Rate (WMS) - not including CBR | C50: $/kWh | D50: 0.0032
B51: Capacity Based Recovery (CBR) - Applicable for Class B Customers | C51: $/kWh | D51: 0.0004
B52: Rural or Remote Electricity Rate Protection Charge (RRRP) | C52: $/kWh | D52: 0.0003
B53: Standard Supply Service - Administrative Charge (if applicable) | C53: $ | D53: 0.25
B55: GENERAL SERVICE LESS THAN 50 KW SERVICE CLASSIFICATION
B56: This classification applies to a non residential account whose average monthly maximum demand is less than, or is forecast to be less than, 50 kW. Multi-unit residential establishments such as apartment buildings supplied through one service (bulk metered) shall normally be classified as general service. Where service is provided to combined residential and business, or residential and agricultural, whether seasonal or all-year premises, and the wiring does not provide for separate metering, the service shall normally be classed as general service. Class B consumers are defined in accordance with O. Reg. 429/04. Further servicing details are available in the distributor’s Conditions of Service.
B58: APPLICATION
B60: The application of these rates and charges shall be in accordance with the Licence of the Distributor and any Code or Order of the Ontario Energy Board, and amendments thereto as approved by the Ontario Energy Board, which may be applicable to the administration of this schedule.
B62: No rates and charges for the distribution of electricity and charges to meet the costs of any work or service done or furnished for the purpose of the distribution of electricity shall be made except as permitted by this schedule, unless required by the Distributor’s Licence or a Code or Order of the Ontario Energy Board, and amendments thereto as approved by the Ontario Energy Board, or as specified herein.
B64: Unless specifically noted, this schedule does not contain any charges for the electricity commodity, be it under the Regulated Price Plan, a contract with a retailer or the wholesale market price, as applicable. In addition, the charges in the MONTHLY RATES AND CHARGES - Regulatory Component of this schedule do not apply to a customer that is an embedded wholesale market participant.
B66: It should be noted that this schedule does not list any charges, assessments, or credits that are required by law to be invoiced by a distributor and that are not subject to Ontario Energy Board approval, such as the Debt Retirement Charge, the Global Adjustment and the HST.
B68: MONTHLY RATES AND CHARGES - Delivery Component
A70: GSL_F | B70: =+RATES!C35 -> Service Charge | C70: =+RATES!G35 -> $ | D70: =VLOOKUP(A70,RATES!A:I,9,FALSE) -> 25.58
A71: GSL_SME | B71: =+RATES!C38 -> Rate Rider for Smart Metering Entity Charge - effective until December 31, 2022 | C71: =+RATES!G38 -> $ | D71: =VLOOKUP(A71,RATES!A:I,9,FALSE) -> 0.57
A72: GSL_ICMF | B72: =+RATES!C45 -> Rate Rider for Incremental Capital Module (ICM) - effective until the date of the next cost of service based rate order | C72: =+RATES!G45 -> $ | D72: =VLOOKUP(A72,RATES!A:I,9,FALSE) -> 0.24
A73: GSL_CPF19 | B73: =+RATES!C43 -> Rate Rider for Disposition of Capitalization Policy (2019) - effective until December 31, 2019 | C73: =+RATES!G43 -> $ | D73: =VLOOKUP(A73,RATES!A:I,9,FALSE) -> 0.41
A74: GSL_V | B74: =+RATES!C36 -> Distribution Volumetric Rate | C74: =+RATES!G36 -> $/kWh | D74: =VLOOKUP(A74,RATES!A:I,9,FALSE) -> 0.0171
A75: GSL_GA18 | B75: =+RATES!C48 -> Rate Rider for Disposition of Global Adjustment Account (2018) - effective until April 30, 2019 Applicable only for Non-RPP Customers | C75: =+RATES!G48 -> $/kWh | D75: =VLOOKUP(A75,RATES!A:I,9,FALSE) -> -0.0009
A76: GSL_GA19 | B76: =+RATES!C39 -> Rate Rider for Disposition of Global Adjustment Account (2019) - effective until December 31, 2019 Applicable only for Non-RPP Customers | C76: =+RATES!G39 -> $/kWh | D76: =VLOOKUP(A76,RATES!A:I,9,FALSE) -> 0.0012
A77: GSL_DVA18 | B77: =+RATES!C49 -> Rate Rider for Disposition of Deferral/Variance Accounts (2018) - effective until April 30, 2019 | C77: =+RATES!G40 -> $/kWh | D77: =VLOOKUP(A77,RATES!A:I,9,FALSE) -> -0.001
A78: GSL_DVA19 | B78: =+RATES!C41 -> Rate Rider for Disposition of Deferral/Variance Accounts (2019) - effective until December 31, 2019 | C78: =+RATES!G41 -> $/kWh | D78: =VLOOKUP(A78,RATES!A:I,9,FALSE) -> -0.0012
A79: GSL_LRVA19 | B79: =+RATES!C40 -> Rate Rider for Disposition of Lost Revenue Adjustment Mechanism Variance Account (LRAMVA) (2019) - effective until December 31, 2019 | C79: =+RATES!G40 -> $/kWh | D79: =VLOOKUP(A79,RATES!A:I,9,FALSE) -> 0.0008
A80: GSL_CBR19 | B80: =+RATES!C42 -> Rate Rider for Disposition of Capacity Based Recovery Account (2019) - effective until December 31, 2019 Applicable Only for Class B Customers | C80: =+RATES!G42 -> $/kWh | D80: =VLOOKUP(A80,RATES!A:I,9,FALSE) -> -4e-05
A81: GSL_ICMV | B81: =+RATES!C46 -> Rate Rider for Incremental Capital Module (ICM) - effective until the date of the next cost of service based rate order | C81: =+RATES!G46 -> $/kWh | D81: =VLOOKUP(A81,RATES!A:I,9,FALSE) -> 0.0002
A82: GSL_CPV19 | B82: =+RATES!C44 -> Rate Rider for Disposition of Capitalization Policy (2019) - effective until December 31, 2019 | C82: =+RATES!G44 -> $/kWh | D82: =VLOOKUP(A82,RATES!A:I,9,FALSE) -> 0.0003
A83: GSL_TN | B83: =+RATES!C54 -> Retail Transmission Rate - Network Service Rate | C83: =+RATES!G54 -> $/kWh | D83: =VLOOKUP(A83,RATES!A:I,9,FALSE) -> 0.0064
A84: GSL_TC | B84: =+RATES!C55 -> Retail Transmission Rate - Line and Transformation Connection Service Rate | C84: =+RATES!G55 -> $/kWh | D84: =VLOOKUP(A84,RATES!A:I,9,FALSE) -> 0.0053
B86: MONTHLY RATES AND CHARGES - Regulatory Component
B88: Wholesale Market Service Rate (WMS) - not including CBR | C88: $/kWh | D88: 0.0032
B89: Capacity Based Recovery (CBR) - Applicable for Class B Customers | C89: $/kWh | D89: 0.0004
B90: Rural or Remote Electricity Rate Protection Charge (RRRP) | C90: $/kWh | D90: 0.0003
B91: Standard Supply Service - Administrative Charge (if applicable) | C91: $ | D91: 0.25
B92: GENERAL SERVICE 50 TO 699 KW SERVICE CLASSIFICATION
B93: This classification applies to a non residential account whose average monthly maximum demand used for billing purposes is equal to or greater than, or is forecast to be equal to or greater than, 50 kW but less than 700 kW. Class B consumers are defined in accordance with O. Reg. 429/04. Further servicing details are available in the distributor’s Conditions of Service.
B95: APPLICATION
B97: The application of these rates and charges shall be in accordance with the Licence of the Distributor and any Code or Order of the Ontario Energy Board, and amendments thereto as approved by the Ontario Energy Board, which may be applicable to the administration of this schedule.
B99: No rates and charges for the distribution of electricity and charges to meet the costs of any work or service done or furnished for the purpose of the distribution of electricity shall be made except as permitted by this schedule, unless required by the Distributor’s Licence or a Code or Order of the Ontario Energy Board, and amendments thereto as approved by the Ontario Energy Board, or as specified herein.
B101: Unless specifically noted, this schedule does not contain any charges for the electricity commodity, be it under the Regulated Price Plan, a contract with a retailer or the wholesale market price, as applicable. In addition, the charges in the MONTHLY RATES AND CHARGES - Regulatory Component of this schedule do not apply to a customer that is an embedded wholesale market participant.
B103: It should be noted that this schedule does not list any charges, assessments, or credits that are required by law to be invoiced by a distributor and that are not subject to Ontario Energy Board approval, such as the Debt Retirement Charge, the Global Adjustment and the HST.
B105: MONTHLY RATES AND CHARGES - Delivery Component
A107: GS50_699_F | B107: =+RATES!C58 -> Service Charge | C107: =+RATES!G58 -> $ | D107: =VLOOKUP(A107,RATES!A:I,9,FALSE) -> 127.6
A108: GS50_699_ICMF | B108: =+RATES!C68 -> Rate Rider for Incremental Capital Module (ICM) - effective until the date of the next cost of service based rate order | C108: =+RATES!G68 -> $ | D108: =VLOOKUP(A108,RATES!A:I,9,FALSE) -> 1.21
A109: =+RATES!A66 -> GS50_699_CPF19 | B109: =+RATES!C66 -> Rate Rider for Disposition of Capitalization Policy (2019) - effective until December 31, 2019 | C109: =+RATES!G66 -> $ | D109: =VLOOKUP(A109,RATES!A:I,9,FALSE) -> 2.04
A110: GS50_699_V | B110: =+RATES!C59 -> Distribution Volumetric Rate | C110: =+RATES!G59 -> $/kW | D110: =VLOOKUP(A110,RATES!A:I,9,FALSE) -> 2.89
A111: GS50_699_GA18 | B111: =+RATES!C71 -> Rate Rider for Disposition of Global Adjustment Account (2018) - effective until April 30, 2019 Applicable only for Non-RPP Customers | C111: =+RATES!G71 -> $/kWh | D111: =VLOOKUP(A111,RATES!A:I,9,FALSE) -> -0.0009
A112: GS50_699_GA19 | B112: =+RATES!C61 -> Rate Rider for Disposition of Global Adjustment Account (2019) - effective until December 31, 2019 Applicable only for Non-RPP Customers | C112: =+RATES!G61 -> $/kWh | D112: =VLOOKUP(A112,RATES!A:I,9,FALSE) -> 0.0012
A113: GS50_699_DVA18 | B113: =+RATES!C72 -> Rate Rider for Disposition of Deferral/Variance Accounts (2018) - effective until April 30, 2019 | C113: =+RATES!G72 -> $/kW | D113: =VLOOKUP(A113,RATES!A:I,9,FALSE) -> 0.0055
A114: GS50_699_DVA18_nonWMP | B114: =+RATES!C73 -> Rate Rider for Disposition of Deferral/Variance Accounts (2018) - effective until April 30, 2019 Applicable only for Non-Wholesale Market Participants | C114: =+RATES!G73 -> $/kW | D114: =VLOOKUP(A114,RATES!A:I,9,FALSE) -> -0.3626
A115: GS50_699_DVA19 | B115: =+RATES!C63 -> Rate Rider for Disposition of Deferral/Variance Accounts (2019) - effective until December 31, 2019 | C115: =+RATES!G63 -> $/kW | D115: =VLOOKUP(A115,RATES!A:I,9,FALSE) -> 0.0134
A116: GS50_699_DVA19_nonWMP | B116: =+RATES!C64 -> Rate Rider for Disposition of Deferral/Variance Accounts (2019) - effective until December 31, 2019 Applicable only for Non-Wholesale Market Participants | C116: =+RATES!G64 -> $/kW | D116: =VLOOKUP(A116,RATES!A:I,9,FALSE) -> -0.422
A117: GS50_699_CBR19 | B117: =+RATES!C65 -> Rate Rider for Disposition of Capacity Based Recovery Account (2019) - effective until December 31, 2019 Applicable Only for Class B Customers | C117: =+RATES!G65 -> $/kW | D117: =VLOOKUP(A117,RATES!A:I,9,FALSE) -> -0.01435
A118: GS50_699_LRVA19 | B118: =+RATES!C62 -> Rate Rider for Disposition of Lost Revenue Adjustment Mechanism Variance Account (LRAMVA) (2019) - effective until December 31, 2019 | C118: =+RATES!G62 -> $/kW | D118: =VLOOKUP(A118,RATES!A:I,9,FALSE) -> 0.0309
A119: GS50_699_ICMV | B119: =+RATES!C69 -> Rate Rider for Incremental Capital Module (ICM) - effective until the date of the next cost of service based rate order | C119: =+RATES!G69 -> $/kW | D119: =VLOOKUP(A119,RATES!A:I,9,FALSE) -> 0.0273
A120: GS50_699_CPV19 | B120: =+RATES!C67 -> Rate Rider for Disposition of Capitalization Policy (2019) - effective until December 31, 2019 | C120: =+RATES!G67 -> $/kW | D120: =VLOOKUP(A120,RATES!A:I,9,FALSE) -> 0.0463
A121: GS50_699_TN | B121: =+RATES!C77 -> Retail Transmission Rate - Network Service Rate | C121: =+RATES!G72 -> $/kW | D121: =VLOOKUP(A121,RATES!A:I,9,FALSE) -> 2.4987
A122: GS50_699_TC | B122: =+RATES!C78 -> Retail Transmission Rate - Line and Transformation Connection Service Rate | C122: =+RATES!G73 -> $/kW | D122: =VLOOKUP(A122,RATES!A:I,9,FALSE) -> 2.1236
B124: MONTHLY RATES AND CHARGES - Regulatory Component
B126: Wholesale Market Service Rate (WMS) - not including CBR | C126: $/kWh | D126: 0.0032
B127: Capacity Based Recovery (CBR) - Applicable for Class B Customers | C127: $/kWh | D127: 0.0004
B128: Rural or Remote Electricity Rate Protection Charge (RRRP) | C128: $/kWh | D128: 0.0003
B129: Standard Supply Service - Administrative Charge (if applicable) | C129: $ | D129: 0.25
B130: GENERAL SERVICE 700 TO 4,999 KW SERVICE CLASSIFICATION
B131: This classification applies to a non residential account whose average monthly maximum demand used for billing purposes is equal to or greater than, or is forecast to be equal to or greater than, 700 kW but less than 5,000 kW. Class A and Class B consumers are defined in accordance with O. Reg. 429/04. Further servicing details are available in the distributor’s Conditions of Service.
B133: APPLICATION
B135: The application of these rates and charges shall be in accordance with the Licence of the Distributor and any Code or Order of the Ontario Energy Board, and amendments thereto as approved by the Ontario Energy Board, which may be applicable to the administration of this schedule.
B137: No rates and charges for the distribution of electricity and charges to meet the costs of any work or service done or furnished for the purpose of the distribution of electricity shall be made except as permitted by this schedule, unless required by the Distributor’s Licence or a Code or Order of the Ontario Energy Board, and amendments thereto as approved by the Ontario Energy Board, or as specified herein.
B139: Unless specifically noted, this schedule does not contain any charges for the electricity commodity, be it under the Regulated Price Plan, a contract with a retailer or the wholesale market price, as applicable. In addition, the charges in the MONTHLY RATES AND CHARGES - Regulatory Component of this schedule do not apply to a customer that is an embedded wholesale market participant.
B141: The rate rider for the disposition of WMS – Sub-account CBR Class B is not applicable to wholesale market participants (WMP), customers that transitioned between Class A and Class B during the variance account accumulation period, or to customers that were in Class A for the entire period. Customers who transitioned are to be charged or refunded their share of the variance disposed through customer specific billing adjustments. This rate rider is to be consistently applied for the entire period to the sunset date of the rate rider. In addition, this rate rider is applicable to all new Class B customers.
B143: The rate rider for the disposition of Global Adjustment is only applicable to non-RPP Class B customers. It is not applicable to WMP customers that transitioned between Class A and Class B during the variance account accumulation period, or to customers that were in Class A for the entire period. Customers who transitioned are to be charged or refunded their share of the variance disposed through customer specific billing adjustments. This rate order is applicable to all new non-RPP Class B customers.
B145: It should be noted that this schedule does not list any charges, assessments, or credits that are required by law to be invoiced by a distributor and that are not subject to Ontario Energy Board approval, such as the Debt Retirement Charge, the Global Adjustment and the HST.
B147: MONTHLY RATES AND CHARGES - Delivery Component
A149: GS700_F | B149: =+RATES!C80 -> Service Charge | C149: =+RATES!G80 -> $ | D149: =VLOOKUP(A149,RATES!A:I,9,FALSE) -> 1151.29
A150: GS700_ICMF | B150: =+RATES!C90 -> Rate Rider for Incremental Capital Module (ICM) - effective until the date of the next cost of service based rate order | C150: =+RATES!G90 -> $ | D150: =VLOOKUP(A150,RATES!A:I,9,FALSE) -> 10.89
A151: GS700_CPF19 | B151: =+RATES!C88 -> Rate Rider for Disposition of Capitalization Policy (2019) - effective until December 31, 2019 | C151: =+RATES!G88 -> $ | D151: =VLOOKUP(A151,RATES!A:I,9,FALSE) -> 18.45
A152: GS700_V | B152: =+RATES!C81 -> Distribution Volumetric Rate | C152: =+RATES!G81 -> $/kW | D152: =VLOOKUP(A152,RATES!A:I,9,FALSE) -> 3.3549
A154: GS700_GA18 | B154: =+RATES!C93 -> Rate Rider for Disposition of Global Adjustment Account (2018) - effective until April 30, 2019 Applicable only for Non-RPP Customers | C154: =+RATES!G93 -> $/kWh | D154: =VLOOKUP(A154,RATES!A:I,9,FALSE) -> -0.0009
A155: GS700_GA19 | B155: =+RATES!C83 -> Rate Rider for Disposition of Global Adjustment Account (2019) - effective until December 31, 2019 Applicable only for Non-RPP Customers | C155: =+RATES!G83 -> $/kWh | D155: =VLOOKUP(A155,RATES!A:I,9,FALSE) -> 0.0012
A156: GS700_DVA18 | B156: =+RATES!C94 -> Rate Rider for Disposition of Deferral/Variance Accounts (2018) - effective until April 30, 2019 | C156: =+RATES!G94 -> $/kW | D156: =VLOOKUP(A156,RATES!A:I,9,FALSE) -> 0.0067
A157: GS700_DVA18_nonWMP | B157: =+RATES!C95 -> Rate Rider for Disposition of Deferral/Variance Accounts (2018) - effective until April 30, 2019 Applicable only for Non-Wholesale Market Participants | C157: =+RATES!G95 -> $/kW | D157: =VLOOKUP(A157,RATES!A:I,9,FALSE) -> -0.4225
A158: GS700_DVA19 | B158: =+RATES!C86 -> Rate Rider for Disposition of Deferral/Variance Accounts (2019) - effective until December 31, 2019 | C158: =+RATES!G86 -> $/kW | D158: =VLOOKUP(A158,RATES!A:I,9,FALSE) -> 0.0162
A159: GS700_CBR19 | B159: =+RATES!C87 -> Rate Rider for Disposition of Capacity Based Recovery Account (2019) - effective until December 31, 2019 Applicable Only for Class B Customers | C159: =+RATES!G87 -> $/kW | D159: =VLOOKUP(A159,RATES!A:I,9,FALSE) -> -0.0144
A160: GS700_DVA19_non | B160: =+RATES!C85 -> Rate Rider for Disposition of Deferral/Variance Accounts (2019) - effective until December 31, 2019 Applicable only for Non-Wholesale Market Participants | C160: =+RATES!G85 -> $/kW | D160: =VLOOKUP(A160,RATES!A:I,9,FALSE) -> -0.4994
A161: GS700_LRVA19 | B161: =+RATES!C84 -> Rate Rider for Disposition of Lost Revenue Adjustment Mechanism Variance Account (LRAMVA) (2019) - effective until December 31, 2019 | C161: =+RATES!G84 -> $/kW | D161: =VLOOKUP(A161,RATES!A:I,9,FALSE) -> 0.0269
A162: GS700_ICMV | B162: =+RATES!C91 -> Rate Rider for Incremental Capital Module (ICM) - effective until the date of the next cost of service based rate order | C162: =+RATES!G91 -> $/kW | D162: =VLOOKUP(A162,RATES!A:I,9,FALSE) -> 0.0317
A163: GS700_CPV19 | B163: =+RATES!C89 -> Rate Rider for Disposition of Capitalization Policy (2019) - effective until December 31, 2019 | C163: =+RATES!G89 -> $/kW | D163: =VLOOKUP(A163,RATES!A:I,9,FALSE) -> 0.0538
A164: GS700_TN | B164: =+RATES!C99 -> Retail Transmission Rate - Network Service Rate | C164: =+RATES!G99 -> $/kW | D164: =VLOOKUP(A164,RATES!A:I,9,FALSE) -> 2.8022
A165: GS700_TC | B165: =+RATES!C100 -> Retail Transmission Rate - Line and Transformation Connection Service Rate | C165: =+RATES!G100 -> $/kW | D165: =VLOOKUP(A165,RATES!A:I,9,FALSE) -> 2.2827
B167: MONTHLY RATES AND CHARGES - Regulatory Component
B169: Wholesale Market Service Rate (WMS) - not including CBR | C169: $/kWh | D169: 0.0032
B170: Capacity Based Recovery (CBR) - Applicable for Class B Customers | C170: $/kWh | D170: 0.0004
B171: Rural or Remote Electricity Rate Protection Charge (RRRP) | C171: $/kWh | D171: 0.0003
B172: Standard Supply Service - Administrative Charge (if applicable) | C172: $ | D172: 0.25
B173: LARGE USE SERVICE CLASSIFICATION
B174: This classification applies to an account whose average monthly maximum demand over 12 consecutive months used for billing purposes is equal to or greater than 5,000 kW, or is forecast to be equal to or greater than 5,000 kW. Class A and Class B consumers are defined in accordance with O. Reg. 429/04. Further servicing details are available in the distributor’s Conditions of Service.
B176: APPLICATION
B178: The application of these rates and charges shall be in accordance with the Licence of the Distributor and any Code or Order of the Ontario Energy Board, and amendments thereto as approved by the Ontario Energy Board, which may be applicable to the administration of this schedule.
B180: No rates and charges for the distribution of electricity and charges to meet the costs of any work or service done or furnished for the purpose of the distribution of electricity shall be made except as permitted by this schedule, unless required by the Distributor’s Licence or a Code or Order of the Ontario Energy Board, and amendments thereto as approved by the Ontario Energy Board, or as specified herein.
B182: Unless specifically noted, this schedule does not contain any charges for the electricity commodity, be it under the Regulated Price Plan, a contract with a retailer or the wholesale market price, as applicable. In addition, the charges in the MONTHLY RATES AND CHARGES - Regulatory Component of this schedule do not apply to a customer that is an embedded wholesale market participant.
A184: The rate rider for the disposition of WMS – Sub-account CBR Class B is not applicable to wholesale market participants (WMP), customers that transitioned between Class A and Class B during the variance account accumulation period, or to customers that were in Class A for the entire period. Customers who transitioned are to be charged or refunded their share of the variance disposed through customer specific billing adjustments. This rate rider is to be consistently applied for the entire period to the sunset date of the rate rider. In addition, this rate rider is applicable to all new Class B customers. | B184: The rate rider for the disposition of WMS – Sub-account CBR Class B is not applicable to wholesale market participants (WMP), customers that transitioned between Class A and Class B during the variance account accumulation period, or to customers that were in Class A for the entire period. Customers who transitioned are to be charged or refunded their share of the variance disposed through customer specific billing adjustments. This rate rider is to be consistently applied for the entire period to the sunset date of the rate rider. In addition, this rate rider is applicable to all new Class B customers.
A186: The rate rider for the disposition of WMS – Sub-account CBR Class B is not applicable to wholesale market participants (WMP), customers that transitioned between Class A and Class B during the variance account accumulation period, or to customers that were in Class A for the entire period. Customers who transitioned are to be charged or refunded their share of the variance disposed through customer specific billing adjustments. This rate rider is to be consistently applied for the entire period to the sunset date of the rate rider. In addition, this rate rider is applicable to all new Class B customers. | B186: The rate rider for the disposition of Global Adjustment is only applicable to non-RPP Class B customers. It is not applicable to WMP customers that transitioned between Class A and Class B during the variance account accumulation period, or to customers that were in Class A for the entire period. Customers who transitioned are to be charged or refunded their share of the variance disposed through customer specific billing adjustments. This rate order is applicable to all new non-RPP Class B customers.
A188: The rate rider for the disposition of WMS – Sub-account CBR Class B is not applicable to wholesale market participants (WMP), customers that transitioned between Class A and Class B during the variance account accumulation period, or to customers that were in Class A for the entire period. Customers who transitioned are to be charged or refunded their share of the variance disposed through customer specific billing adjustments. This rate rider is to be consistently applied for the entire period to the sunset date of the rate rider. In addition, this rate rider is applicable to all new Class B customers. | B188: It should be noted that this schedule does not list any charges, assessments, or credits that are required by law to be invoiced by a distributor and that are not subject to Ontario Energy Board approval, such as the Debt Retirement Charge, the Global Adjustment and the HST.
B190: MONTHLY RATES AND CHARGES - Delivery Component
A192: LU_F | B192: =+RATES!C102 -> Service Charge | C192: =+RATES!G102 -> $ | D192: =VLOOKUP(A192,RATES!A:I,9,FALSE) -> 4790.74
A193: LU_ICMF | B193: =+RATES!C111 -> Rate Rider for Incremental Capital Module (ICM) - effective until the date of the next cost of service based rate order | C193: =+RATES!G111 -> $ | D193: =VLOOKUP(A193,RATES!A:I,9,FALSE) -> 45.33
A194: LU_CPF19 | B194: =+RATES!C109 -> Rate Rider for Disposition of Capitalization Policy (2019) - effective until December 31, 2019 | C194: =+RATES!G109 -> $ | D194: =VLOOKUP(A194,RATES!A:I,9,FALSE) -> 76.77
A195: LU_V | B195: =+RATES!C103 -> Distribution Volumetric Rate | C195: =+RATES!G103 -> $/kW | D195: =VLOOKUP(A195,RATES!A:I,9,FALSE) -> 2.5401
A196: LU_GA18 | B196: =+RATES!C114 -> Rate Rider for Disposition of Global Adjustment Account (2018) - effective until April 30, 2019 Applicable only for Non-RPP Customers | C196: =+RATES!G114 -> $/kWh | D196: =VLOOKUP(A196,RATES!A:I,9,FALSE) -> -0.0009
A197: LU_GA19 | B197: =+RATES!C105 -> Rate Rider for Disposition of Global Adjustment Account (2019) - effective until December 31, 2019 Applicable only for Non-RPP Customers | C197: =+RATES!G105 -> $/kWh | D197: =VLOOKUP(A197,RATES!A:I,9,FALSE) -> 0
A198: LU_DVA18 | B198: =+RATES!C115 -> Rate Rider for Disposition of Deferral/Variance Accounts (2018) - effective until April 30, 2019 | C198: =+RATES!G115 -> $/kW | D198: =VLOOKUP(A198,RATES!A:I,9,FALSE) -> -0.552
A199: LU_DVA19 | B199: =+RATES!C107 -> Rate Rider for Disposition of Deferral/Variance Accounts (2019) - effective until December 31, 2019 | C199: =+RATES!G107 -> $/kW | D199: =VLOOKUP(A199,RATES!A:I,9,FALSE) -> -0.629
A200: LU_CBR19 | B200: =+RATES!C108 -> Rate Rider for Disposition of Capacity Based Recovery Account (2019) - effective until December 31, 2019 Applicable Only for Class B Customers | C200: =+RATES!G108 -> $/kW | D200: =VLOOKUP(A200,RATES!A:I,9,FALSE) -> 0
A201: LU_LRVA19 | B201: =+RATES!C106 -> Rate Rider for Disposition of Lost Revenue Adjustment Mechanism Variance Account (LRAMVA) (2019) - effective until December 31, 2019 | C201: =+RATES!G106 -> $/kW | D201: =VLOOKUP(A201,RATES!A:I,9,FALSE) -> 0.0527
A202: LU_ICMV | B202: =+RATES!C112 -> Rate Rider for Incremental Capital Module (ICM) - effective until the date of the next cost of service based rate order | C202: =+RATES!G112 -> $/kW | D202: =VLOOKUP(A202,RATES!A:I,9,FALSE) -> 0.024
A203: LU_CPV19 | B203: =+RATES!C110 -> Rate Rider for Disposition of Capitalization Policy (2019) - effective until December 31, 2019 | C203: =+RATES!G110 -> $/kW | D203: =VLOOKUP(A203,RATES!A:I,9,FALSE) -> 0.0407
A204: LU_TN | B204: =+RATES!C120 -> Retail Transmission Rate - Network Service Rate | C204: =+RATES!G120 -> $/kW | D204: =VLOOKUP(A204,RATES!A:I,9,FALSE) -> 3.1716
A205: LU_TC | B205: =+RATES!C121 -> Retail Transmission Rate - Line and Transformation Connection Service Rate | C205: =+RATES!G121 -> $/kW | D205: =VLOOKUP(A205,RATES!A:I,9,FALSE) -> 2.6383
B207: MONTHLY RATES AND CHARGES - Regulatory Component
B209: Wholesale Market Service Rate (WMS) - not including CBR | C209: $/kWh | D209: 0.0032
B210: Capacity Based Recovery (CBR) - Applicable for Class B Customers | C210: $/kWh | D210: 0.0004
B211: Rural or Remote Electricity Rate Protection Charge (RRRP) | C211: $/kWh | D211: 0.0003
B212: Standard Supply Service - Administrative Charge (if applicable) | C212: $ | D212: 0.25 | E212: =SUM(D192:D212) -> 4920.3794
B213: UNMETERED SCATTERED LOAD SERVICE CLASSIFICATION
B214: This classification applies to an account whose average monthly maximum demand is less than, or is forecast to be less than, 50 kW and the consumption is unmetered. Such connections include cable TV power packs, bus shelters, telephone booths, traffic lights, railway crossings, etc. The level of the consumption will be agreed to by the distributor and the customer, based on detailed manufacturer information/documentation with regard to electrical consumption of the unmetered load or periodic monitoring of actual consumption. Class B consumers are defined in accordance with O. Reg. 429/04. Further servicing details are available in the distributor’s Conditions of Service.
B216: APPLICATION
B218: The application of these rates and charges shall be in accordance with the Licence of the Distributor and any Code or Order of the Ontario Energy Board, and amendments thereto as approved by the Ontario Energy Board, which may be applicable to the administration of this schedule.
B220: No rates and charges for the distribution of electricity and charges to meet the costs of any work or service done or furnished for the purpose of the distribution of electricity shall be made except as permitted by this schedule, unless required by the Distributor’s Licence or a Code or Order of the Ontario Energy Board, and amendments thereto as approved by the Ontario Energy Board, or as specified herein.
B222: Unless specifically noted, this schedule does not contain any charges for the electricity commodity, be it under the Regulated Price Plan, a contract with a retailer or the wholesale market price, as applicable. In addition, the charges in the MONTHLY RATES AND CHARGES - Regulatory Component of this schedule do not apply to a customer that is an embedded wholesale market participant.
B224: It should be noted that this schedule does not list any charges, assessments, or credits that are required by law to be invoiced by a distributor and that are not subject to Ontario Energy Board approval, such as the Debt Retirement Charge, the Global Adjustment and the HST.
B226: MONTHLY RATES AND CHARGES - Delivery Component
A228: USL_F | B228: =+RATES!C123 -> Service Charge | C228: =+RATES!G123 -> $ | D228: =VLOOKUP(A228,RATES!A:I,9,FALSE) -> 1.11
A229: USL_ICMF | B229: =+RATES!C132 -> Rate Rider for Incremental Capital Module (ICM) - effective until the date of the next cost of service based rate order | C229: =+RATES!G132 -> $ | D229: =VLOOKUP(A229,RATES!A:I,9,FALSE) -> 0.01
A230: USL_CPF19 | B230: =+RATES!C130 -> Rate Rider for Disposition of Capitalization Policy (2019) - effective until December 31, 2019 | C230: =+RATES!G130 -> $ | D230: =VLOOKUP(A230,RATES!A:I,9,FALSE) -> 0.02
A231: USL_V | B231: =+RATES!C124 -> Distribution Volumetric Rate | C231: =+RATES!G124 -> $/kWh | D231: =VLOOKUP(A231,RATES!A:I,9,FALSE) -> 0.0202
A232: USL_GA18 | B232: =+RATES!C135 -> Rate Rider for Disposition of Global Adjustment Account (2018) - effective until April 30, 2019 Applicable only for Non-RPP Customers | C232: =+RATES!G135 -> $/kWh | D232: =VLOOKUP(A232,RATES!A:I,9,FALSE) -> -0.0009
A233: USL_GA19 | B233: =+RATES!C126 -> Rate Rider for Disposition of Global Adjustment Account (2019) - effective until December 31, 2019 Applicable only for Non-RPP Customers | C233: =+RATES!G126 -> $/kWh | D233: =VLOOKUP(A233,RATES!A:I,9,FALSE) -> 0.0012
A234: USL_DVA18 | B234: =+RATES!C136 -> Rate Rider for Disposition of Deferral/Variance Accounts (2018) - effective until April 30, 2019 | C234: =+RATES!G136 -> $/kWh | D234: =VLOOKUP(A234,RATES!A:I,9,FALSE) -> -0.001
A235: USL_DVA19 | B235: =+RATES!C128 -> Rate Rider for Disposition of Deferral/Variance Accounts (2019) - effective until December 31, 2019 | C235: =+RATES!G128 -> $/kWh | D235: =VLOOKUP(A235,RATES!A:I,9,FALSE) -> -0.0012
A236: USL_CBR19 | B236: =+RATES!C129 -> Rate Rider for Disposition of Capacity Based Recovery Account (2019) - effective until December 31, 2019 Applicable Only for Class B Customers | C236: =+RATES!G129 -> $/kWh | D236: =VLOOKUP(A236,RATES!A:I,9,FALSE) -> -4e-05
A237: USL_ICMV | B237: =+RATES!C133 -> Rate Rider for Incremental Capital Module (ICM) - effective until the date of the next cost of service based rate order | C237: =+RATES!G133 -> $/kWh | D237: =VLOOKUP(A237,RATES!A:I,9,FALSE) -> 0.0002
A238: USL_CPV19 | B238: =+RATES!C131 -> Rate Rider for Disposition of Capitalization Policy (2019) - effective until December 31, 2019 | C238: =+RATES!G131 -> $/kWh | D238: =VLOOKUP(A238,RATES!A:I,9,FALSE) -> 0.0003
A239: USL_TN | B239: =+RATES!C141 -> Retail Transmission Rate - Network Service Rate | C239: =+RATES!G141 -> $/kWh | D239: =VLOOKUP(A239,RATES!A:I,9,FALSE) -> 0.0064
A240: USL_TC | B240: =+RATES!C142 -> Retail Transmission Rate - Line and Transformation Connection Service Rate | C240: =+RATES!G142 -> $/kWh | D240: =VLOOKUP(A240,RATES!A:I,9,FALSE) -> 0.0053
B242: MONTHLY RATES AND CHARGES - Regulatory Component
B244: Wholesale Market Service Rate (WMS) - not including CBR | C244: $/kWh | D244: 0.0032
B245: Capacity Based Recovery (CBR) - Applicable for Class B Customers | C245: $/kWh | D245: 0.0004
B246: Rural or Remote Electricity Rate Protection Charge (RRRP) | C246: $/kWh | D246: 0.0003
B247: Standard Supply Service - Administrative Charge (if applicable) | C247: $ | D247: 0.25
B248: STREET LIGHTING SERVICE CLASSIFICATION
B249: All service supplied to roadway lighting equipment owned by or operated by the City of Brampton, Regional Municipality of Peel, or the Ministry of Transportation, controlled by photo cells. The consumption for these customers will be based on the calculated connected load times the required lighting times established in the approved Ontario Energy Board street lighting load shape template. Class B consumers are defined in accordance with O. Reg. 429/04. Further servicing details are available in the distributor’s Conditions of Service.
B251: APPLICATION
B253: The application of these rates and charges shall be in accordance with the Licence of the Distributor and any Code or Order of the Ontario Energy Board, and amendments thereto as approved by the Ontario Energy Board, which may be applicable to the administration of this schedule.
B255: No rates and charges for the distribution of electricity and charges to meet the costs of any work or service done or furnished for the purpose of the distribution of electricity shall be made except as permitted by this schedule, unless required by the Distributor’s Licence or a Code or Order of the Ontario Energy Board, and amendments thereto as approved by the Ontario Energy Board, or as specified herein.
B257: Unless specifically noted, this schedule does not contain any charges for the electricity commodity, be it under the Regulated Price Plan, a contract with a retailer or the wholesale market price, as applicable. In addition, the charges in the MONTHLY RATES AND CHARGES - Regulatory Component of this schedule do not apply to a customer that is an embedded wholesale market participant.
B259: It should be noted that this schedule does not list any charges, assessments, or credits that are required by law to be invoiced by a distributor and that are not subject to Ontario Energy Board approval, such as the Debt Retirement Charge, the Global Adjustment and the HST.
B261: MONTHLY RATES AND CHARGES - Delivery Component
A263: SL_F | B263: =+RATES!C144 -> Service Charge | C263: =+RATES!G144 -> $ | D263: =VLOOKUP(A263,RATES!A:I,9,FALSE) -> 2.34
A264: SL_ICMF | B264: =+RATES!C153 -> Rate Rider for Incremental Capital Module (ICM) - effective until the date of the next cost of service based rate order | C264: =+RATES!G153 -> $ | D264: =VLOOKUP(A264,RATES!A:I,9,FALSE) -> 0.02
A265: SL_CPF19 | B265: =+RATES!C151 -> Rate Rider for Disposition of Capitalization Policy (2019) - effective until December 31, 2019 | C265: =+RATES!G151 -> $ | D265: =VLOOKUP(A265,RATES!A:I,9,FALSE) -> 0.04
A266: SL_V | B266: =+RATES!C145 -> Distribution Volumetric Rate | C266: =+RATES!G145 -> $/kW | D266: =VLOOKUP(A266,RATES!A:I,9,FALSE) -> 11.7474
A267: SL_GA18 | B267: =+RATES!C156 -> Rate Rider for Disposition of Global Adjustment Account (2018) - effective until April 30, 2019 Applicable only for Non-RPP Customers | C267: =+RATES!G156 -> $/kWh | D267: =VLOOKUP(A267,RATES!A:I,9,FALSE) -> -0.0009
A268: SL_GA19 | B268: =+RATES!C147 -> Rate Rider for Disposition of Global Adjustment Account (2019) - effective until December 31, 2019 Applicable only for Non-RPP Customers | C268: =+RATES!G147 -> $/kWh | D268: =VLOOKUP(A268,RATES!A:I,9,FALSE) -> 0.0012
A269: SL_DVA18 | B269: =+RATES!C157 -> Rate Rider for Disposition of Deferral/Variance Accounts (2018) - effective until April 30, 2019 | C269: =+RATES!G157 -> $/kW | D269: =VLOOKUP(A269,RATES!A:I,9,FALSE) -> -0.3219
A270: SL_DVA19 | B270: =+RATES!C149 -> Rate Rider for Disposition of Deferral/Variance Accounts (2019) - effective until December 31, 2019 | C270: =+RATES!G149 -> $/kW | D270: =VLOOKUP(A270,RATES!A:I,9,FALSE) -> -0.4067
A271: SL_CBR19 | B271: =+RATES!C150 -> Rate Rider for Disposition of Capacity Based Recovery Account (2019) - effective until December 31, 2019 Applicable Only for Class B Customers | C271: =+RATES!G150 -> $/kW | D271: =VLOOKUP(A271,RATES!A:I,9,FALSE) -> -0.01422
A272: SL_ICMV | B272: =+RATES!C154 -> Rate Rider for Incremental Capital Module (ICM) - effective until the date of the next cost of service based rate order | C272: =+RATES!G154 -> $/kW | D272: =VLOOKUP(A272,RATES!A:I,9,FALSE) -> 0.1112
A273: SL_CPV19 | B273: =+RATES!C152 -> Rate Rider for Disposition of Capitalization Policy (2019) - effective until December 31, 2019 | C273: =+RATES!G152 -> $/kW | D273: =VLOOKUP(A273,RATES!A:I,9,FALSE) -> 0.1882
A274: SL_TN | B274: =+RATES!C162 -> Retail Transmission Rate - Network Service Rate | C274: =+RATES!G162 -> $/kW | D274: =VLOOKUP(A274,RATES!A:I,9,FALSE) -> 2.0806
A275: SL_TC | B275: =+RATES!C163 -> Retail Transmission Rate - Line and Transformation Connection Service Rate | C275: =+RATES!G163 -> $/kW | D275: =VLOOKUP(A275,RATES!A:I,9,FALSE) -> 1.768
B277: MONTHLY RATES AND CHARGES - Regulatory Component
... 143 more rows

Sheet RATES
A1: Back to Index | C1: Back to Index
C4: Alectra - Hydro One Brampton
C5: Rates
A8: A | C8: MONTHLY RATES AND CHARGES - DELIVERY COMPONENT
A10: 1 | C10: 2 | E10: 3 | F10: 4 | G10: 5 | H10: 6 | I10: 7
C11: Description | H11: 2018 | I11: 2019
D13: Effective until | E13: Type | F13: Customers | G13: Billing Determinant
C14: RESIDENTIAL
A15: R_F | B15: R_F | C15: Service Charge | E15: Rate | G15: $ | H15: 20.92 | I15: =ROUND('17. Rev2Cost-GDPIPI'!I17,2) -> 24.23
A16: R_V | B16: R_V | C16: Distribution Volumetric Rate | E16: Rate | G16: $/kWh | H16: 0.004 | I16: =ROUND('17. Rev2Cost-GDPIPI'!J17,4) -> 0
J17: Rate Rider | K17: Extra
A18: R_SME | B18: R_SME | C18: Rate Rider for Smart Metering Entity Charge - effective until December 31, 2022 | D18: 2022-12-31 | E18: Rate Rider | G18: $ | H18: 0.57 | I18: 0.57 | J18: Rate Rider for Smart Metering Entity Charge
A19: R_GA19 | B19: R_GA | C19: Rate Rider for Disposition of Global Adjustment Account (2019) - effective until December 31, 2019 Applicable only for Non-RPP Customers | D19: December 31, 2019 | E19: Rate Rider | F19: non-RPP | G19: $/kWh | I19: =ROUND('6. GA Calculation'!M17,4) -> 0.0012 | J19: Rate Rider for Disposition of Global Adjustment Account Customers | K19: Applicable only for Non-RPP
A20: R_LRVA19 | B20: R_VRR | C20: Rate Rider for Disposition of Lost Revenue Adjustment Mechanism Variance Account (LRAMVA) (2019) - effective until December 31, 2019 | D20: 2019-12-31 | E20: Rate Rider | G20: $/kWh | I20: =ROUND('8. Calculation of Def-Var RR'!L17,4) -> 0.0002 | J20: Rate Rider for Disposition of Lost Revenue Adjustment Mechanism Variance Account (LRAMVA)
A21: R_DVA19 | B21: R_DVA | C21: Rate Rider for Disposition of Deferral/Variance Accounts (2019) - effective until December 31, 2019 | D21: 2019-12-31 | E21: Rate Rider | G21: $/kWh | I21: =ROUND('8. Calculation of Def-Var RR'!J17,4) -> -0.0012 | J21: Rate Rider for Disposition of Deferral/Variance Accounts
A22: R_CBR19 | B22: R_DVA | C22: Rate Rider for Disposition of Capacity Based Recovery Account (2019) - effective until December 31, 2019 Applicable Only for Class B Customers | D22: 2019-12-31 | E22: Rate Rider | F22: Class B | G22: $/kWh | I22: =ROUND('7. CBR Calculation'!O22,5) -> -4e-05 | J22: Rate Rider for Disposition of CBR Class B
A23: R_CP_F19 | B23: R_FRR | C23: Rate Rider for Disposition of Capitalization Policy (2019) - effective until December 31, 2019 | D23: 2019-12-31 | E23: Rate Rider | G23: $ | I23: =+'19. Additional Rates'!D14 -> 0.38
A24: R_ICM_F | B24: R_FRR | C24: Rate Rider for Incremental Capital Module (ICM) - effective until the date of the next cost of service based rate order | D24: next COS | E24: Rate Rider | G24: $ | H24: 0.23 | I24: =+H24 -> 0.23 | J24: Rate Rider for Incremental Capital Module (ICM) | K24: effective until the date of the next cost of service based rate order
A25: R_GA18 | B25: R_GA | C25: Rate Rider for Disposition of Global Adjustment Account (2018) - effective until April 30, 2019 Applicable only for Non-RPP Customers | D25: 2019-04-30 | E25: Rate Rider | F25: non-RPP | G25: $/kWh | H25: -0.0009 | I25: =IF(YEAR(D25)>=YEAR('Model Specs'!$C$6),RATES!H25,"") -> -0.0009 | J25: Rate Rider for Disposition of GA | K25: Applicable only for Non-RPP Customers
A26: R_DVA18 | B26: R_DVA | C26: Rate Rider for Disposition of Deferral/Variance Accounts (2018) - effective until April 30, 2019 | D26: 2019-04-30 | E26: Rate Rider | G26: $/kWh | H26: -0.001 | I26: =IF(YEAR(D26)>=YEAR('Model Specs'!$C$6),RATES!H26,"") -> -0.001 | J26: Rate Rider for Disposition of Deferral/Variance Accounts
A27: R_CBR18 | B27: R_DVA | C27: Rate Rider for Disposition of CBR Class B (2018) - Applicable only to Class B customers effective until April 30, 2019 | D27: 2019-04-30 | E27: Rate Rider | G27: $/kWh | H27: 0 | I27: =IF(YEAR(D27)>=YEAR('Model Specs'!$C$6),RATES!H27,"") -> 0 | J27: Rate Rider for Disposition of CBR Class B | K27: Applicable only to Class B customers
A28: R_LRVA18 | B28: R_VRR | C28: Rate Rider for Disposition of Lost Revenue Adjustment Mechanism Variance Account (LRAMVA) (2018) effective until April 30, 2019 | D28: 2019-04-30 | E28: Rate Rider | G28: $/kWh | H28: 0 | I28: =IF(YEAR(D28)>=YEAR('Model Specs'!$C$6),RATES!H28,"") -> 0 | J28: Rate Rider for Disposition of Lost Revenue Adjustment Mechanism Variance Account (LRAMVA)
A29: R_FRR18 | B29: R_FRR | C29: Rate Rider for Recovery of 2018 Foregone Revenue - effective until December 31, 2018 | D29: 2018-12-31 | E29: Rate Rider | G29: $ | H29: 0.27 | I29: =IF(YEAR(D29)>=YEAR('Model Specs'!$C$6),RATES!H29,"") ->  | J29: Rate Rider for Recovery of 2018 Foregone Revenue
A31: R_TN | B31: R_TN | C31: Retail Transmission Rate – Network Service Rate | E31: Rate | G31: $/kWh | H31: 0.0074 | I31: =ROUND('16. RTSR-Rates to Forecast'!K43,4) -> 0.0072
A32: R_TC | B32: R_TC | C32: Retail Transmission Rate – Line and Transformation Connection Service Rate | E32: Rate | G32: $/kWh | H32: 0.0065 | I32: =ROUND('16. RTSR-Rates to Forecast'!K56,4) -> 0.0063
C34: GENERAL SERVICE LESS THAN 50 KW
A35: GSL_F | B35: GSL_F | C35: Service Charge | E35: Rate | G35: $ | H35: 25.35 | I35: =ROUND('17. Rev2Cost-GDPIPI'!I18,2) -> 25.58
A36: GSL_V | B36: GSL_V | C36: Distribution Volumetric Rate | E36: Rate | G36: $/kWh | H36: 0.0169 | I36: =ROUND('17. Rev2Cost-GDPIPI'!J18,4) -> 0.0171
